Workbook

Sheet Main
E2: CQG S&P 500® and Nasdaq 100® Performance Dashboard | Y2: =RTD("cqg.rtd", ,"SystemInfo", "Linetime") -> 44398.35667
B4: Description | F4: Net | G4: % Net | I4: Open | J4: High | K4: Low | L4: 5-minute Charts | R4: Description | U4: Last | V4: Net | W4: % Net | Y4: Open | Z4: High | AA4: Low
F5: Change | G5: Change | U5: Price | V5: Change | W5: Change
A6: =Symbols!C5 -> X.US.SPC | B6: =RTD("cqg.rtd",,"ContractData",A6,"LongDescription",,"T")&" ("&RIGHT(A6,LEN(A6)-5)&")" -> S&P 500 (SPC) | E6: =IFERROR(RTD("cqg.rtd", ,"ContractData",A6, "LastTrade",, "T"),"") -> 4337.79 | F6: =IFERROR(RTD("cqg.rtd", ,"ContractData",A6, "NetChange",, "T"),"") -> 11.81 | G6: =IFERROR(RTD("cqg.rtd", ,"ContractData",A6, "PerCentNetLastTrade",, "T")/100,"") -> 0.003407308712 | H6: =G6 -> 0.003407308712 | I6: =IFERROR(RTD("cqg.rtd", ,"ContractData",A6, "Open",, "T"),"") -> 4331.13 | J6: =IFERROR(RTD("cqg.rtd", ,"ContractData",A6, "High",, "T"),"") -> 4339.99 | K6: =IFERROR(RTD("cqg.rtd", ,"ContractData",A6, "Low",, "T"),"") -> 4331.13 | L6: =B6 -> S&P 500 (SPC) | R6: =IFERROR(RTD("cqg.rtd", ,"ContractData",AB6, "LongDescription",, "T"),"")&" ("&RIGHT(AB6,LEN(AB6)-5)&")" -> NASDAQ Composite Index (NQCOMP) | U6: =IFERROR(RTD("cqg.rtd", ,"ContractData",AB6, "LastTrade",, "T"),"") -> 14518.98 | V6: =IFERROR(RTD("cqg.rtd", ,"ContractData",AB6, "NetChange",, "T"),"") -> 20.1 | W6: =IFERROR(RTD("cqg.rtd", ,"ContractData",AB6, "PerCentNetLastTrade",, "T")/100,"") -> 0.001386313977 | X6: =W6 -> 0.001386313977 | Y6: =IFERROR(RTD("cqg.rtd", ,"ContractData",AB6, "Open",, "T"),"") -> 14508.75 | Z6: =IFERROR(RTD("cqg.rtd", ,"ContractData",AB6, "High",, "T"),"") -> 14518.98 | AA6: =IFERROR(RTD("cqg.rtd", ,"ContractData",AB6, "Low",, "T"),"") -> 14498.65 | AB6: =Symbols!H5 -> X.US.NQCOMP
A7: =Symbols!C6 -> X.US.DJI | B7: =RTD("cqg.rtd",,"ContractData",A7,"LongDescription",,"T")&" ("&RIGHT(A7,LEN(A7)-5)&")" -> DJ Industrial Average (DJI) | E7: =IFERROR(RTD("cqg.rtd", ,"ContractData",A7, "LastTrade",, "T"),"") -> 34665.2 | F7: =IFERROR(RTD("cqg.rtd", ,"ContractData",A7, "NetChange",, "T"),"") -> 131.1 | G7: =IFERROR(RTD("cqg.rtd", ,"ContractData",A7, "PerCentNetLastTrade",, "T")/100,"") -> 0.004441946111 | H7: 0.004441946111 | I7: =IFERROR(RTD("cqg.rtd", ,"ContractData",A7, "Open",, "T"),"") -> 34556.9 | J7: =IFERROR(RTD("cqg.rtd", ,"ContractData",A7, "High",, "T"),"") -> 34697.5 | K7: =IFERROR(RTD("cqg.rtd", ,"ContractData",A7, "Low",, "T"),"") -> 34556.9 | R7: =IFERROR(RTD("cqg.rtd", ,"ContractData",AB7, "LongDescription",, "T"),"")&" ("&RIGHT(AB7,LEN(AB7)-5)&")" -> NASDAQ-100 Index (NDX) | U7: =IFERROR(RTD("cqg.rtd", ,"ContractData",AB7, "LastTrade",, "T"),"") -> 14733.57 | V7: =IFERROR(RTD("cqg.rtd", ,"ContractData",AB7, "NetChange",, "T"),"") -> 5.36 | W7: =IFERROR(RTD("cqg.rtd", ,"ContractData",AB7, "PerCentNetLastTrade",, "T")/100,"") -> 0.0003639274562 | X7: 0.0003639274562 | Y7: =IFERROR(RTD("cqg.rtd", ,"ContractData",AB7, "Open",, "T"),"") -> 14723.67 | Z7: =IFERROR(RTD("cqg.rtd", ,"ContractData",AB7, "High",, "T"),"") -> 14734.88 | AA7: =IFERROR(RTD("cqg.rtd", ,"ContractData",AB7, "Low",, "T"),"") -> 14710.11 | AB7: =Symbols!H6 -> X.US.NDX
A8: =Symbols!C7 -> S.US.XLF | B8: =RTD("cqg.rtd",,"ContractData",A8,"LongDescription",,"T")&" ("&RIGHT(A8,LEN(A8)-5)&")" -> Financial Select Sector SPDR (XLF) | E8: =IFERROR(RTD("cqg.rtd", ,"ContractData",A8, "LastTrade",, "T"),"") -> 36.3 | F8: =IFERROR(RTD("cqg.rtd", ,"ContractData",A8, "NetChange",, "T"),"") -> 0.32 | G8: =IFERROR(RTD("cqg.rtd", ,"ContractData",A8, "PerCentNetLastTrade",, "T")/100,"") -> 0.008893829906 | H8: 0.008893829906 | I8: =IFERROR(RTD("cqg.rtd", ,"ContractData",A8, "Open",, "T"),"") -> 36.27 | J8: =IFERROR(RTD("cqg.rtd", ,"ContractData",A8, "High",, "T"),"") -> 36.4 | K8: =IFERROR(RTD("cqg.rtd", ,"ContractData",A8, "Low",, "T"),"") -> 36.24 | R8: =IFERROR(RTD("cqg.rtd", ,"ContractData",AB8, "LongDescription",, "T"),"")&" ("&RIGHT(AB8,LEN(AB8)-5)&")" -> NASDAQ Financial 100 (IXF) | U8: =IFERROR(RTD("cqg.rtd", ,"ContractData",AB8, "LastTrade",, "T"),"") -> 6027.88 | V8: =IFERROR(RTD("cqg.rtd", ,"ContractData",AB8, "NetChange",, "T"),"") -> 62.1 | W8: =IFERROR(RTD("cqg.rtd", ,"ContractData",AB8, "PerCentNetLastTrade",, "T")/100,"") -> 0.0104093681 | X8: 0.0104093681 | Y8: =IFERROR(RTD("cqg.rtd", ,"ContractData",AB8, "Open",, "T"),"") -> 6015.46 | Z8: =IFERROR(RTD("cqg.rtd", ,"ContractData",AB8, "High",, "T"),"") -> 6029.65 | AA8: =IFERROR(RTD("cqg.rtd", ,"ContractData",AB8, "Low",, "T"),"") -> 6015.46 | AB8: =Symbols!H7 -> X.US.IXF
A9: =Symbols!C8 -> X.US.BTK | B9: =RTD("cqg.rtd",,"ContractData",A9,"LongDescription",,"T")&" ("&RIGHT(A9,LEN(A9)-5)&")" -> Biotechnology Index (BTK) | E9: =IFERROR(RTD("cqg.rtd", ,"ContractData",A9, "LastTrade",, "T"),"") -> 5741.76 | F9: =IFERROR(RTD("cqg.rtd", ,"ContractData",A9, "NetChange",, "T"),"") -> -4.13 | G9: =IFERROR(RTD("cqg.rtd", ,"ContractData",A9, "PerCentNetLastTrade",, "T")/100,"") -> -0.0007187746372 | H9: -0.0007187746372 | I9: =IFERROR(RTD("cqg.rtd", ,"ContractData",A9, "Open",, "T"),"") -> 5745.89 | J9: =IFERROR(RTD("cqg.rtd", ,"ContractData",A9, "High",, "T"),"") -> 5745.89 | K9: =IFERROR(RTD("cqg.rtd", ,"ContractData",A9, "Low",, "T"),"") -> 5737.34 | R9: =IFERROR(RTD("cqg.rtd", ,"ContractData",AB9, "LongDescription",, "T"),"")&" ("&RIGHT(AB9,LEN(AB9)-5)&")" -> NASDAQ Biotechnology (NBI) | U9: =IFERROR(RTD("cqg.rtd", ,"ContractData",AB9, "LastTrade",, "T"),"") -> 5117.54 | V9: =IFERROR(RTD("cqg.rtd", ,"ContractData",AB9, "NetChange",, "T"),"") -> -7.61 | W9: =IFERROR(RTD("cqg.rtd", ,"ContractData",AB9, "PerCentNetLastTrade",, "T")/100,"") -> -0.00148483459 | X9: -0.00148483459 | Y9: =IFERROR(RTD("cqg.rtd", ,"ContractData",AB9, "Open",, "T"),"") -> 5105.51 | Z9: =IFERROR(RTD("cqg.rtd", ,"ContractData",AB9, "High",, "T"),"") -> 5117.54 | AA9: =IFERROR(RTD("cqg.rtd", ,"ContractData",AB9, "Low",, "T"),"") -> 5100.8 | AB9: =Symbols!H8 -> X.US.NBI
A10: =Symbols!C9 -> X.US.NYPID | B10: =RTD("cqg.rtd",,"ContractData",A10,"LongDescription",,"T")&" ("&RIGHT(A10,LEN(A10)-5)&")" -> NYSE Healthcare Index (NYPID) | E10: =IFERROR(RTD("cqg.rtd", ,"ContractData",A10, "LastTrade",, "T"),"") -> 22205.1 | F10: =IFERROR(RTD("cqg.rtd", ,"ContractData",A10, "NetChange",, "T"),"") -> 42.43 | G10: =IFERROR(RTD("cqg.rtd", ,"ContractData",A10, "PerCentNetLastTrade",, "T")/100,"") -> 0.001914480521 | H10: 0.001914480521 | I10: =IFERROR(RTD("cqg.rtd", ,"ContractData",A10, "Open",, "T"),"") -> 22162.67 | J10: =IFERROR(RTD("cqg.rtd", ,"ContractData",A10, "High",, "T"),"") -> 22263.11 | K10: =IFERROR(RTD("cqg.rtd", ,"ContractData",A10, "Low",, "T"),"") -> 22162.67 | R10: =IFERROR(RTD("cqg.rtd", ,"ContractData",AB10, "LongDescription",, "T"),"")&" ("&RIGHT(AB10,LEN(AB10)-5)&")" -> Nasdaq Health Care Index (NHC) | U10: =IFERROR(RTD("cqg.rtd", ,"ContractData",AB10, "LastTrade",, "T"),"") -> 1263 | V10: =IFERROR(RTD("cqg.rtd", ,"ContractData",AB10, "NetChange",, "T"),"") -> 1.07 | W10: =IFERROR(RTD("cqg.rtd", ,"ContractData",AB10, "PerCentNetLastTrade",, "T")/100,"") -> 0.0008479075702 | X10: 0.0008479075702 | Y10: =IFERROR(RTD("cqg.rtd", ,"ContractData",AB10, "Open",, "T"),"") -> 1262.95 | Z10: =IFERROR(RTD("cqg.rtd", ,"ContractData",AB10, "High",, "T"),"") -> 1263.75 | AA10: =IFERROR(RTD("cqg.rtd", ,"ContractData",AB10, "Low",, "T"),"") -> 1262.03 | AB10: =Symbols!H9 -> X.US.NHC
A11: =Symbols!C10 -> X.US.IXE | B11: =RTD("cqg.rtd",,"ContractData",A11,"LongDescription",,"T")&" ("&RIGHT(A11,LEN(A11)-5)&")" -> S&P 500 Select Sector Energy Index (IXE) | E11: =IFERROR(RTD("cqg.rtd", ,"ContractData",A11, "LastTrade",, "T"),"") -> 508.22 | F11: =IFERROR(RTD("cqg.rtd", ,"ContractData",A11, "NetChange",, "T"),"") -> 9.62 | G11: =IFERROR(RTD("cqg.rtd", ,"ContractData",A11, "PerCentNetLastTrade",, "T")/100,"") -> 0.01929402327 | H11: 0.01929402327 | I11: =IFERROR(RTD("cqg.rtd", ,"ContractData",A11, "Open",, "T"),"") -> 498.6 | J11: =IFERROR(RTD("cqg.rtd", ,"ContractData",A11, "High",, "T"),"") -> 510.05 | K11: =IFERROR(RTD("cqg.rtd", ,"ContractData",A11, "Low",, "T"),"") -> 498.6 | R11: =IFERROR(RTD("cqg.rtd", ,"ContractData",AB11, "LongDescription",, "T"),"")&" ("&RIGHT(AB11,LEN(AB11)-5)&")" -> PHLX Oil Service Sector (OSX) | U11: =IFERROR(RTD("cqg.rtd", ,"ContractData",AB11, "LastTrade",, "T"),"") -> 56.43 | V11: =IFERROR(RTD("cqg.rtd", ,"ContractData",AB11, "NetChange",, "T"),"") -> 1.85 | W11: =IFERROR(RTD("cqg.rtd", ,"ContractData",AB11, "PerCentNetLastTrade",, "T")/100,"") -> 0.03389519971 | X11: 0.03389519971 | Y11: =IFERROR(RTD("cqg.rtd", ,"ContractData",AB11, "Open",, "T"),"") -> 55.96 | Z11: =IFERROR(RTD("cqg.rtd", ,"ContractData",AB11, "High",, "T"),"") -> 56.57 | AA11: =IFERROR(RTD("cqg.rtd", ,"ContractData",AB11, "Low",, "T"),"") -> 55.95 | AB11: =Symbols!H10 -> X.US.OSX
A12: =Symbols!C11 -> S.US.BAC | B12: =RTD("cqg.rtd",,"ContractData",A12,"LongDescription",,"T")&" ("&RIGHT(A12,LEN(A12)-5)&")" -> Bank of America Corp (BAC) | E12: =IFERROR(RTD("cqg.rtd", ,"ContractData",A12, "LastTrade",, "T"),"") -> 38.05 | F12: =IFERROR(RTD("cqg.rtd", ,"ContractData",A12, "NetChange",, "T"),"") -> 0.37 | G12: =IFERROR(RTD("cqg.rtd", ,"ContractData",A12, "PerCentNetLastTrade",, "T")/100,"") -> 0.009816927567 | H12: =G12 -> 0.009816927567 | I12: =IFERROR(RTD("cqg.rtd", ,"ContractData",A12, "Open",, "T"),"") -> 38.05 | J12: =IFERROR(RTD("cqg.rtd", ,"ContractData",A12, "High",, "T"),"") -> 38.18 | K12: =IFERROR(RTD("cqg.rtd", ,"ContractData",A12, "Low",, "T"),"") -> 37.98 | R12: =IFERROR(RTD("cqg.rtd", ,"ContractData",AB12, "LongDescription",, "T"),"")&" ("&RIGHT(AB12,LEN(AB12)-5)&")" -> Energy Select Sector SPDR (XLE) | U12: =IFERROR(RTD("cqg.rtd", ,"ContractData",AB12, "LastTrade",, "T"),"") -> 48.53 | V12: =IFERROR(RTD("cqg.rtd", ,"ContractData",AB12, "NetChange",, "T"),"") -> 0.95 | W12: =IFERROR(RTD("cqg.rtd", ,"ContractData",AB12, "PerCentNetLastTrade",, "T")/100,"") -> 0.01996217693 | X12: 0.01996217693 | Y12: =IFERROR(RTD("cqg.rtd", ,"ContractData",AB12, "Open",, "T"),"") -> 48.53 | Z12: =IFERROR(RTD("cqg.rtd", ,"ContractData",AB12, "High",, "T"),"") -> 48.71 | AA12: =IFERROR(RTD("cqg.rtd", ,"ContractData",AB12, "Low",, "T"),"") -> 48.42 | AB12: =Symbols!H11 -> S.US.XLE
A13: =Symbols!C12 -> S.US.RSP | B13: =RTD("cqg.rtd",,"ContractData",A13,"LongDescription",,"T")&" ("&RIGHT(A13,LEN(A13)-5)&")" -> Invesco S&P 500 Equal Weight ETF (RSP) | E13: =IFERROR(RTD("cqg.rtd", ,"ContractData",A13, "LastTrade",, "T"),"") -> 150.28 | F13: =IFERROR(RTD("cqg.rtd", ,"ContractData",A13, "NetChange",, "T"),"") -> 0.87 | G13: =IFERROR(RTD("cqg.rtd", ,"ContractData",A13, "PerCentNetLastTrade",, "T")/100,"") -> 0.005957560747 | H13: =G13 -> 0.005957560747 | I13: =IFERROR(RTD("cqg.rtd", ,"ContractData",A13, "Open",, "T"),"") -> 150.15 | J13: =IFERROR(RTD("cqg.rtd", ,"ContractData",A13, "High",, "T"),"") -> 150.39 | K13: =IFERROR(RTD("cqg.rtd", ,"ContractData",A13, "Low",, "T"),"") -> 150.13 | R13: =IFERROR(RTD("cqg.rtd", ,"ContractData",AB13, "LongDescription",, "T"),"")&" ("&RIGHT(AB13,LEN(AB13)-5)&")" -> Apple Inc (AAPL) | U13: =IFERROR(RTD("cqg.rtd", ,"ContractData",AB13, "LastTrade",, "T"),"") -> 145.72 | V13: =IFERROR(RTD("cqg.rtd", ,"ContractData",AB13, "NetChange",, "T"),"") -> -0.42 | W13: =IFERROR(RTD("cqg.rtd", ,"ContractData",AB13, "PerCentNetLastTrade",, "T")/100,"") -> -0.002873759836 | X13: =W13 -> -0.002873759836 | Y13: =IFERROR(RTD("cqg.rtd", ,"ContractData",AB13, "Open",, "T"),"") -> 145.53 | Z13: =IFERROR(RTD("cqg.rtd", ,"ContractData",AB13, "High",, "T"),"") -> 145.83 | AA13: =IFERROR(RTD("cqg.rtd", ,"ContractData",AB13, "Low",, "T"),"") -> 145.23 | AB13: =Symbols!H12 -> S.US.AAPL
A14: =Symbols!C13 -> S.US.SPY | B14: =RTD("cqg.rtd",,"ContractData",A14,"LongDescription",,"T")&" ("&RIGHT(A14,LEN(A14)-5)&")" -> SPDR S&P 500 (SPY) | E14: =IFERROR(RTD("cqg.rtd", ,"ContractData",A14, "LastTrade",, "T"),"") -> 432.4 | F14: =IFERROR(RTD("cqg.rtd", ,"ContractData",A14, "NetChange",, "T"),"") -> 1.35 | G14: =IFERROR(RTD("cqg.rtd", ,"ContractData",A14, "PerCentNetLastTrade",, "T")/100,"") -> 0.00310861597 | H14: 0.00310861597 | I14: =IFERROR(RTD("cqg.rtd", ,"ContractData",A14, "Open",, "T"),"") -> 432.34 | J14: =IFERROR(RTD("cqg.rtd", ,"ContractData",A14, "High",, "T"),"") -> 432.59 | K14: =IFERROR(RTD("cqg.rtd", ,"ContractData",A14, "Low",, "T"),"") -> 432.14 | R14: =IFERROR(RTD("cqg.rtd", ,"ContractData",AB14, "LongDescription",, "T"),"")&" ("&RIGHT(AB14,LEN(AB14)-5)&")" -> Tesla, Inc. (TSLA) | U14: =IFERROR(RTD("cqg.rtd", ,"ContractData",AB14, "LastTrade",, "T"),"") -> 661.45 | V14: =IFERROR(RTD("cqg.rtd", ,"ContractData",AB14, "NetChange",, "T"),"") -> 0.95 | W14: =IFERROR(RTD("cqg.rtd", ,"ContractData",AB14, "PerCentNetLastTrade",, "T")/100,"") -> 0.001438304315 | X14: 0.001438304315 | Y14: =IFERROR(RTD("cqg.rtd", ,"ContractData",AB14, "Open",, "T"),"") -> 659.61 | Z14: =IFERROR(RTD("cqg.rtd", ,"ContractData",AB14, "High",, "T"),"") -> 663.66 | AA14: =IFERROR(RTD("cqg.rtd", ,"ContractData",AB14, "Low",, "T"),"") -> 659.24 | AB14: =Symbols!H13 -> S.US.TSLA
A15: =Symbols!C14 -> F.US.EP | B15: =RTD("cqg.rtd",,"ContractData",A15,"LongDescription",,"T")&" ("&RIGHT(A15,LEN(A15)-5)&")" -> E-Mini S&P 500, Sep 21 (EP) | E15: =IFERROR(RTD("cqg.rtd", ,"ContractData",A15, "LastTrade",, "T"),"") -> 4328.75 | F15: =IFERROR(RTD("cqg.rtd", ,"ContractData",A15, "NetChange",, "T"),"") -> 13 | G15: =IFERROR(RTD("cqg.rtd", ,"ContractData",A15, "PerCentNetLastTrade",, "T")/100,"") -> 0.003070327888 | H15: 0.003070327888 | I15: =IFERROR(RTD("cqg.rtd", ,"ContractData",A15, "Open",, "T"),"") -> 4318.75 | J15: =IFERROR(RTD("cqg.rtd", ,"ContractData",A15, "High",, "T"),"") -> 4338.5 | K15: =IFERROR(RTD("cqg.rtd", ,"ContractData",A15, "Low",, "T"),"") -> 4310 | L15: =R6 -> NASDAQ Composite Index (NQCOMP) | R15: =IFERROR(RTD("cqg.rtd", ,"ContractData",AB15, "LongDescription",, "T"),"")&" ("&RIGHT(AB15,LEN(AB15)-5)&")" -> Micron Technology Inc (MU) | U15: =IFERROR(RTD("cqg.rtd", ,"ContractData",AB15, "LastTrade",, "T"),"") -> 75.65 | V15: =IFERROR(RTD("cqg.rtd", ,"ContractData",AB15, "NetChange",, "T"),"") -> 0.28 | W15: =IFERROR(RTD("cqg.rtd", ,"ContractData",AB15, "PerCentNetLastTrade",, "T")/100,"") -> 0.003448733254 | X15: 0.003448733254 | Y15: =IFERROR(RTD("cqg.rtd", ,"ContractData",AB15, "Open",, "T"),"") -> 75.34 | Z15: =IFERROR(RTD("cqg.rtd", ,"ContractData",AB15, "High",, "T"),"") -> 75.83 | AA15: =IFERROR(RTD("cqg.rtd", ,"ContractData",AB15, "Low",, "T"),"") -> 75.34 | AB15: =Symbols!H14 -> S.US.MU
A16: =Symbols!C15 -> F.US.CLE | B16: =RTD("cqg.rtd",,"ContractData",A16,"LongDescription",,"T")&" ("&RIGHT(A16,LEN(A16)-5)&")" -> Crude Light (Globex), Sep 21 (CLE) | E16: =IFERROR(RTD("cqg.rtd", ,"ContractData",A16, "LastTrade",, "T"),"") -> 68.97 | F16: =IFERROR(RTD("cqg.rtd", ,"ContractData",A16, "NetChange",, "T"),"") -> 1.77 | G16: =IFERROR(RTD("cqg.rtd", ,"ContractData",A16, "PerCentNetLastTrade",, "T")/100,"") -> 0.02633928571 | H16: 0.02633928571 | I16: =IFERROR(RTD("cqg.rtd", ,"ContractData",A16, "Open",, "T"),"") -> 66.45 | J16: =IFERROR(RTD("cqg.rtd", ,"ContractData",A16, "High",, "T"),"") -> 68.99 | K16: =IFERROR(RTD("cqg.rtd", ,"ContractData",A16, "Low",, "T"),"") -> 66.44 | R16: =IFERROR(RTD("cqg.rtd", ,"ContractData",AB16, "LongDescription",, "T"),"")&" ("&RIGHT(AB16,LEN(AB16)-5)&")" -> Invesco QQQ Trust Series 1 (QQQ) | U16: =IFERROR(RTD("cqg.rtd", ,"ContractData",AB16, "LastTrade",, "T"),"") -> 358.75 | V16: =IFERROR(RTD("cqg.rtd", ,"ContractData",AB16, "NetChange",, "T"),"") -> -0.04 | W16: =IFERROR(RTD("cqg.rtd", ,"ContractData",AB16, "PerCentNetLastTrade",, "T")/100,"") -> -0.0001114858274 | X16: -0.0001114858274 | Y16: =IFERROR(RTD("cqg.rtd", ,"ContractData",AB16, "Open",, "T"),"") -> 358.35 | Z16: =IFERROR(RTD("cqg.rtd", ,"ContractData",AB16, "High",, "T"),"") -> 358.79 | AA16: =IFERROR(RTD("cqg.rtd", ,"ContractData",AB16, "Low",, "T"),"") -> 358.12 | AB16: =Symbols!H15 -> S.US.QQQ
A17: =Symbols!C16 -> F.US.HOE | B17: =RTD("cqg.rtd",,"ContractData",A17,"LongDescription",,"T")&" ("&RIGHT(A17,LEN(A17)-5)&")" -> NY Harbor ULSD, Sep 21 (HOE) | E17: =IFERROR(RTD("cqg.rtd", ,"ContractData",A17, "LastTrade",, "T"),"") -> 2.059 | F17: =IFERROR(RTD("cqg.rtd", ,"ContractData",A17, "NetChange",, "T"),"") -> 0.0448 | G17: =IFERROR(RTD("cqg.rtd", ,"ContractData",A17, "PerCentNetLastTrade",, "T")/100,"") -> 0.02224208122 | H17: 0.02224208122 | I17: =IFERROR(RTD("cqg.rtd", ,"ContractData",A17, "Open",, "T"),"") -> 1.9973 | J17: =IFERROR(RTD("cqg.rtd", ,"ContractData",A17, "High",, "T"),"") -> 2.0592 | K17: =IFERROR(RTD("cqg.rtd", ,"ContractData",A17, "Low",, "T"),"") -> 1.9942 | R17: =IFERROR(RTD("cqg.rtd", ,"ContractData",AB17, "LongDescription",, "T"),"")&" ("&RIGHT(AB17,LEN(AB17)-5)&")" -> Cisco Systems Inc (CSCO) | U17: =IFERROR(RTD("cqg.rtd", ,"ContractData",AB17, "LastTrade",, "T"),"") -> 53.53 | V17: =IFERROR(RTD("cqg.rtd", ,"ContractData",AB17, "NetChange",, "T"),"") -> -0.05 | W17: =IFERROR(RTD("cqg.rtd", ,"ContractData",AB17, "PerCentNetLastTrade",, "T")/100,"") -> -0.0009331840239 | X17: -0.0009331840239 | Y17: =IFERROR(RTD("cqg.rtd", ,"ContractData",AB17, "Open",, "T"),"") -> 53.82 | Z17: =IFERROR(RTD("cqg.rtd", ,"ContractData",AB17, "High",, "T"),"") -> 53.84 | AA17: =IFERROR(RTD("cqg.rtd", ,"ContractData",AB17, "Low",, "T"),"") -> 53.48 | AB17: =Symbols!H16 -> S.US.CSCO
A18: =Symbols!C17 -> F.US.RBE | B18: =RTD("cqg.rtd",,"ContractData",A18,"LongDescription",,"T")&" ("&RIGHT(A18,LEN(A18)-5)&")" -> RBOB Gasoline (Globex), Sep 21 (RBE) | E18: =IFERROR(RTD("cqg.rtd", ,"ContractData",A18, "LastTrade",, "T"),"") -> 2.1473 | F18: =IFERROR(RTD("cqg.rtd", ,"ContractData",A18, "NetChange",, "T"),"") -> 0.0372 | G18: =IFERROR(RTD("cqg.rtd", ,"ContractData",A18, "PerCentNetLastTrade",, "T")/100,"") -> 0.017484837 | H18: 0.017484837 | I18: =IFERROR(RTD("cqg.rtd", ,"ContractData",A18, "Open",, "T"),"") -> 2.091 | J18: =IFERROR(RTD("cqg.rtd", ,"ContractData",A18, "High",, "T"),"") -> 2.1482 | K18: =IFERROR(RTD("cqg.rtd", ,"ContractData",A18, "Low",, "T"),"") -> 2.0851 | R18: =IFERROR(RTD("cqg.rtd", ,"ContractData",AB18, "LongDescription",, "T"),"")&" ("&RIGHT(AB18,LEN(AB18)-5)&")" -> Facebook, Inc. (FB) | U18: =IFERROR(RTD("cqg.rtd", ,"ContractData",AB18, "LastTrade",, "T"),"") -> 342.51 | V18: =IFERROR(RTD("cqg.rtd", ,"ContractData",AB18, "NetChange",, "T"),"") -> 0.98 | W18: =IFERROR(RTD("cqg.rtd", ,"ContractData",AB18, "PerCentNetLastTrade",, "T")/100,"") -> 0.002487853422 | X18: 0.002487853422 | Y18: =IFERROR(RTD("cqg.rtd", ,"ContractData",AB18, "Open",, "T"),"") -> 341.5 | Z18: =IFERROR(RTD("cqg.rtd", ,"ContractData",AB18, "High",, "T"),"") -> 342.87 | AA18: =IFERROR(RTD("cqg.rtd", ,"ContractData",AB18, "Low",, "T"),"") -> 341.25 | AB18: =Symbols!H17 -> S.US.FB
A19: =Symbols!C18 -> F.US.GCE | B19: =RTD("cqg.rtd",,"ContractData",A19,"LongDescription",,"T")&" ("&RIGHT(A19,LEN(A19)-5)&")" -> Gold (Globex), Aug 21 (GCE) | E19: =IFERROR(RTD("cqg.rtd", ,"ContractData",A19, "LastTrade",, "T"),"") -> 1798.7 | F19: =IFERROR(RTD("cqg.rtd", ,"ContractData",A19, "NetChange",, "T"),"") -> -12.7 | G19: =IFERROR(RTD("cqg.rtd", ,"ContractData",A19, "PerCentNetLastTrade",, "T")/100,"") -> -0.007011151595 | H19: -0.007011151595 | I19: =IFERROR(RTD("cqg.rtd", ,"ContractData",A19, "Open",, "T"),"") -> 1810.6 | J19: =IFERROR(RTD("cqg.rtd", ,"ContractData",A19, "High",, "T"),"") -> 1814.4 | K19: =IFERROR(RTD("cqg.rtd", ,"ContractData",A19, "Low",, "T"),"") -> 1794.3 | R19: =IFERROR(RTD("cqg.rtd", ,"ContractData",AB19, "LongDescription",, "T"),"")&" ("&RIGHT(AB19,LEN(AB19)-5)&")" -> iShares 20+ Year Treasury Bond ETF (TLT) | U19: =IFERROR(RTD("cqg.rtd", ,"ContractData",AB19, "LastTrade",, "T"),"") -> 148.32 | V19: =IFERROR(RTD("cqg.rtd", ,"ContractData",AB19, "NetChange",, "T"),"") -> -1.67 | W19: =IFERROR(RTD("cqg.rtd", ,"ContractData",AB19, "PerCentNetLastTrade",, "T")/100,"") -> -0.0112 | X19: -0.0112 | Y19: =IFERROR(RTD("cqg.rtd", ,"ContractData",AB19, "Open",, "T"),"") -> 148.18 | Z19: =IFERROR(RTD("cqg.rtd", ,"ContractData",AB19, "High",, "T"),"") -> 148.34 | AA19: =IFERROR(RTD("cqg.rtd", ,"ContractData",AB19, "Low",, "T"),"") -> 148.14 | AB19: =Symbols!H18 -> S.US.TLT
A20: =Symbols!C19 -> F.US.DD | B20: =RTD("cqg.rtd",,"ContractData",A20,"LongDescription",,"T")&" ("&RIGHT(A20,LEN(A20)-5)&")" -> DAX Index, Sep 21 (DD) | E20: =IFERROR(RTD("cqg.rtd", ,"ContractData",A20, "LastTrade",, "T"),"") -> 15370 | F20: =IFERROR(RTD("cqg.rtd", ,"ContractData",A20, "NetChange",, "T"),"") -> 162 | G20: =IFERROR(RTD("cqg.rtd", ,"ContractData",A20, "PerCentNetLastTrade",, "T")/100,"") -> 0.01051939513 | H20: 0.01051939513 | I20: =IFERROR(RTD("cqg.rtd", ,"ContractData",A20, "Open",, "T"),"") -> 15273 | J20: =IFERROR(RTD("cqg.rtd", ,"ContractData",A20, "High",, "T"),"") -> 15377 | K20: =IFERROR(RTD("cqg.rtd", ,"ContractData",A20, "Low",, "T"),"") -> 15182 | R20: =IFERROR(RTD("cqg.rtd", ,"ContractData",AB20, "LongDescription",, "T"),"")&" ("&RIGHT(AB20,LEN(AB20)-5)&")" -> Intel Corporation (INTC) | U20: =IFERROR(RTD("cqg.rtd", ,"ContractData",AB20, "LastTrade",, "T"),"") -> 55.16 | V20: =IFERROR(RTD("cqg.rtd", ,"ContractData",AB20, "NetChange",, "T"),"") -> -0.07 | W20: =IFERROR(RTD("cqg.rtd", ,"ContractData",AB20, "PerCentNetLastTrade",, "T")/100,"") -> -0.001448225923 | X20: -0.001448225923 | Y20: =IFERROR(RTD("cqg.rtd", ,"ContractData",AB20, "Open",, "T"),"") -> 55.18 | Z20: =IFERROR(RTD("cqg.rtd", ,"ContractData",AB20, "High",, "T"),"") -> 55.27 | AA20: =IFERROR(RTD("cqg.rtd", ,"ContractData",AB20, "Low",, "T"),"") -> 55.01 | AB20: =Symbols!H19 -> S.US.INTC
A21: =Symbols!C20 -> F.US.DSX | B21: =RTD("cqg.rtd",,"ContractData",A21,"LongDescription",,"T")&" ("&RIGHT(A21,LEN(A21)-5)&")" -> Euro STOXX 50, Sep 21 (DSX) | E21: =IFERROR(RTD("cqg.rtd", ,"ContractData",A21, "LastTrade",, "T"),"") -> 4006 | F21: =IFERROR(RTD("cqg.rtd", ,"ContractData",A21, "NetChange",, "T"),"") -> 56.5 | G21: =IFERROR(RTD("cqg.rtd", ,"ContractData",A21, "PerCentNetLastTrade",, "T")/100,"") -> 0.0143056083 | H21: 0.0143056083 | I21: =IFERROR(RTD("cqg.rtd", ,"ContractData",A21, "Open",, "T"),"") -> 3966 | J21: =IFERROR(RTD("cqg.rtd", ,"ContractData",A21, "High",, "T"),"") -> 4011.5 | K21: =IFERROR(RTD("cqg.rtd", ,"ContractData",A21, "Low",, "T"),"") -> 3944 | R21: =IFERROR(RTD("cqg.rtd", ,"ContractData",AB21, "LongDescription",, "T"),"")&" ("&RIGHT(AB21,LEN(AB21)-5)&")" -> QUALCOMM Inc (QCOM) | U21: =IFERROR(RTD("cqg.rtd", ,"ContractData",AB21, "LastTrade",, "T"),"") -> 140.14 | V21: =IFERROR(RTD("cqg.rtd", ,"ContractData",AB21, "NetChange",, "T"),"") -> 0.65 | W21: =IFERROR(RTD("cqg.rtd", ,"ContractData",AB21, "PerCentNetLastTrade",, "T")/100,"") -> 0.004227875314 | X21: 0.004227875314 | Y21: =IFERROR(RTD("cqg.rtd", ,"ContractData",AB21, "Open",, "T"),"") -> 139.65 | Z21: =IFERROR(RTD("cqg.rtd", ,"ContractData",AB21, "High",, "T"),"") -> 140.19 | AA21: =IFERROR(RTD("cqg.rtd", ,"ContractData",AB21, "Low",, "T"),"") -> 139.65 | AB21: =Symbols!H20 -> S.US.QCOM
A22: =Symbols!C21 -> S.SPLV | B22: =RTD("cqg.rtd",,"ContractData",A22,"LongDescription",,"T")&" ("&RIGHT(A22,LEN(A22)-5)&")" -> PowerShares Exchange-Traded Fund Trust II (V) | E22: =IFERROR(RTD("cqg.rtd", ,"ContractData",A22, "LastTrade",, "T"),"") -> 62.55 | F22: =IFERROR(RTD("cqg.rtd", ,"ContractData",A22, "NetChange",, "T"),"") -> 0.04 | G22: =IFERROR(RTD("cqg.rtd", ,"ContractData",A22, "PerCentNetLastTrade",, "T")/100,"") -> 0.0006398976164 | H22: 0.0006398976164 | I22: =IFERROR(RTD("cqg.rtd", ,"ContractData",A22, "Open",, "T"),"") -> 62.56 | J22: =IFERROR(RTD("cqg.rtd", ,"ContractData",A22, "High",, "T"),"") -> 62.62 | K22: =IFERROR(RTD("cqg.rtd", ,"ContractData",A22, "Low",, "T"),"") -> 62.54 | R22: =IFERROR(RTD("cqg.rtd", ,"ContractData",AB22, "LongDescription",, "T"),"")&" ("&RIGHT(AB22,LEN(AB22)-5)&")" -> American Airlines Group Inc. (AAL) | U22: =IFERROR(RTD("cqg.rtd", ,"ContractData",AB22, "LastTrade",, "T"),"") -> 20.86 | V22: =IFERROR(RTD("cqg.rtd", ,"ContractData",AB22, "NetChange",, "T"),"") -> 0.32 | W22: =IFERROR(RTD("cqg.rtd", ,"ContractData",AB22, "PerCentNetLastTrade",, "T")/100,"") -> 0.01507782101 | X22: 0.01507782101 | Y22: =IFERROR(RTD("cqg.rtd", ,"ContractData",AB22, "Open",, "T"),"") -> 20.79 | Z22: =IFERROR(RTD("cqg.rtd", ,"ContractData",AB22, "High",, "T"),"") -> 20.98 | AA22: =IFERROR(RTD("cqg.rtd", ,"ContractData",AB22, "Low",, "T"),"") -> 20.75 | AB22: =Symbols!H21 -> S.US.AAL
B23: Description | E23: Last | F23: Net | G23: % Net | H23: Tdy Vol | I23: Open | J23: High | K23: Low | R23: Description | U23: Last | V23: Net | W23: % Net | X23: Tdy Vol | Y23: Open | Z23: High | AA23: Low
E24: Price | F24: Change | G24: Change | H24: 21d-Vol | L24: NYSE Total Volume | O24: NASDAQ Total Volume | U24: Price | V24: Change | W24: Change | X24: 21d-Vol
B25: CQG Top Ten Percentage Performers in the S&P 500 | L25: =IFERROR(RTD("cqg.rtd", ,"ContractData","DJTOV", "LastTrade",, "T"),"") -> 47451 | O25: =O28+O31+O34 -> 233609 | R25: CQG Top Ten Percentage Performers in the NASDAQ 100
A26: =TRIM('S&P500'!I1) -> S.US.IPG | B26: =IFERROR(RTD("cqg.rtd",,"ContractData",A26,"LongDescription",,"T")&" ("&RIGHT(A26,LEN(A26)-5)&")","") -> Interpublic Grp of Cos (IPG) | E26: =IF(B26="","",IFERROR(RTD("cqg.rtd",,"ContractData",A26,"LastTrade",,"T"),"")) -> 34.62 | F26: =IF(B26="","",IFERROR(RTD("cqg.rtd", ,"ContractData",A26, "NetChange",, "T"),"")) -> 3.4 | G26: =IFERROR(RTD("cqg.rtd", ,"ContractData",A26, "PerCentNetLastTrade",, "T")/100,"") -> 0.1071314359 | H26: =IFERROR(RTD("cqg.rtd",,"StudyData",A26, "Vol", "VolType=Auto,CoCType=Auto", "Vol","ADC","0","ALL",,,"TRUE","T")/ RTD("cqg.rtd",,"StudyData",A26, "MA", "InputChoice=ContractVol,MAType=Sim,Period=21", "MA","D","-1","all",,,,"T"),"") -> 0.2297756178 | I26: =IF(B26="","",IFERROR(RTD("cqg.rtd", ,"ContractData",A26, "Open",, "T"),"")) -> 34.54 | J26: =IF(B26="","",IFERROR(RTD("cqg.rtd", ,"ContractData",A26, "High",, "T"),"")) -> 35.25 | K26: =IF(B26="","",IFERROR(RTD("cqg.rtd",,"ContractData",A26,"Low",,"T"),"")) -> 33.92 | L26: NYSE Up Volume | O26: NASDAQ Up Volume | R26: =IFERROR(RTD("cqg.rtd",,"ContractData",AB26,"LongDescription",,"T")&" ("&RIGHT(AB26,LEN(AB26)-5)&")","") -> ASML Holding NV NY Reg Shs (ASML) | U26: =IF(R26="","",IFERROR(RTD("cqg.rtd",,"ContractData",AB26,"LastTrade",,"T"),"")) -> 704.5 | V26: =IF(R26="","",IFERROR(RTD("cqg.rtd", ,"ContractData",AB26, "NetChange",, "T"),"")) -> 20.8 | W26: =IFERROR(RTD("cqg.rtd", ,"ContractData",AB26, "PerCentNetLastTrade",, "T")/100,"") -> 0.02989547548 | X26: =IFERROR(RTD("cqg.rtd",,"StudyData",AB26, "Vol", "VolType=Auto,CoCType=Auto", "Vol","ADC","0","ALL",,,"TRUE","T")/ RTD("cqg.rtd",,"StudyData",AB26, "MA", "InputChoice=ContractVol,MAType=Sim,Period=21", "MA","D","-1","all",,,,"T"),"") -> 0.1668712505 | Y26: =IF(R26="","",IFERROR(RTD("cqg.rtd", ,"ContractData",AB26, "Open",, "T"),"")) -> 705.93 | Z26: =IF(R26="","",IFERROR(RTD("cqg.rtd", ,"ContractData",AB26, "High",, "T"),"")) -> 706.48 | AA26: =IF(R26="","",IFERROR(RTD("cqg.rtd", ,"ContractData",AB26, "Low",, "T"),"")) -> 702.95 | AB26: =NASDAQ100!I1 -> S.US.ASML
A27: =TRIM('S&P500'!I2) -> S.US.CMG | B27: =IFERROR(RTD("cqg.rtd",,"ContractData",A27,"LongDescription",,"T")&" ("&RIGHT(A27,LEN(A27)-5)&")","") -> Chipotle Mexican Grill (CMG) | E27: =IF(B27="","",IFERROR(RTD("cqg.rtd",,"ContractData",A27,"LastTrade",,"T"),"")) -> 1686.64 | F27: =IF(B27="","",IFERROR(RTD("cqg.rtd", ,"ContractData",A27, "NetChange",, "T"),"")) -> 112.29 | G27: =IFERROR(RTD("cqg.rtd", ,"ContractData",A27, "PerCentNetLastTrade",, "T")/100,"") -> 0.07132467367 | H27: =IFERROR(RTD("cqg.rtd",,"StudyData",A27, "Vol", "VolType=Auto,CoCType=Auto", "Vol","ADC","0","ALL",,,"TRUE","T")/ RTD("cqg.rtd",,"StudyData",A27, "MA", "InputChoice=ContractVol,MAType=Sim,Period=21", "MA","D","-1","all",,,,"T"),"") -> 0.3359077784 | I27: =IF(B27="","",IFERROR(RTD("cqg.rtd", ,"ContractData",A27, "Open",, "T"),"")) -> 1656.84 | J27: =IF(B27="","",IFERROR(RTD("cqg.rtd", ,"ContractData",A27, "High",, "T"),"")) -> 1689.71 | K27: =IF(B27="","",IFERROR(RTD("cqg.rtd",,"ContractData",A27,"Low",,"T"),"")) -> 1656.84 | R27: =IFERROR(RTD("cqg.rtd",,"ContractData",AB27,"LongDescription",,"T")&" ("&RIGHT(AB27,LEN(AB27)-5)&")","") -> Check Point Sftwr Tech Ltd (CHKP) | U27: =IF(R27="","",IFERROR(RTD("cqg.rtd",,"ContractData",AB27,"LastTrade",,"T"),"")) -> 124 | V27: =IF(R27="","",IFERROR(RTD("cqg.rtd", ,"ContractData",AB27, "NetChange",, "T"),"")) -> 2.18 | W27: =IFERROR(RTD("cqg.rtd", ,"ContractData",AB27, "PerCentNetLastTrade",, "T")/100,"") -> 0.01789525529 | X27: =IFERROR(RTD("cqg.rtd",,"StudyData",AB27, "Vol", "VolType=Auto,CoCType=Auto", "Vol","ADC","0","ALL",,,"TRUE","T")/ RTD("cqg.rtd",,"StudyData",AB27, "MA", "InputChoice=ContractVol,MAType=Sim,Period=21", "MA","D","-1","all",,,,"T"),"") -> 0.07270379831 | Y27: =IF(R27="","",IFERROR(RTD("cqg.rtd", ,"ContractData",AB27, "Open",, "T"),"")) -> 123.76 | Z27: =IF(R27="","",IFERROR(RTD("cqg.rtd", ,"ContractData",AB27, "High",, "T"),"")) -> 124.08 | AA27: =IF(R27="","",IFERROR(RTD("cqg.rtd", ,"ContractData",AB27, "Low",, "T"),"")) -> 123.68 | AB27: =NASDAQ100!I2 -> S.US.CHKP
A28: =TRIM('S&P500'!I3) -> S.US.CCL | B28: =IFERROR(RTD("cqg.rtd",,"ContractData",A28,"LongDescription",,"T")&" ("&RIGHT(A28,LEN(A28)-5)&")","") -> Carnival Corp (CCL) | E28: =IF(B28="","",IFERROR(RTD("cqg.rtd",,"ContractData",A28,"LastTrade",,"T"),"")) -> 22.07 | F28: =IF(B28="","",IFERROR(RTD("cqg.rtd", ,"ContractData",A28, "NetChange",, "T"),"")) -> 0.89 | G28: =IFERROR(RTD("cqg.rtd", ,"ContractData",A28, "PerCentNetLastTrade",, "T")/100,"") -> 0.04200094384 | H28: =IFERROR(RTD("cqg.rtd",,"StudyData",A28, "Vol", "VolType=Auto,CoCType=Auto", "Vol","ADC","0","ALL",,,"TRUE","T")/ RTD("cqg.rtd",,"StudyData",A28, "MA", "InputChoice=ContractVol,MAType=Sim,Period=21", "MA","D","-1","all",,,,"T"),"") -> 0.1802149784 | I28: =IF(B28="","",IFERROR(RTD("cqg.rtd", ,"ContractData",A28, "Open",, "T"),"")) -> 21.74 | J28: =IF(B28="","",IFERROR(RTD("cqg.rtd", ,"ContractData",A28, "High",, "T"),"")) -> 22.22 | K28: =IF(B28="","",IFERROR(RTD("cqg.rtd",,"ContractData",A28,"Low",,"T"),"")) -> 21.67 | L28: =IFERROR(RTD("cqg.rtd", ,"ContractData","DJUPV", "LastTrade",, "T"),"") -> 38564 | O28: =IFERROR(RTD("cqg.rtd", ,"ContractData","NASUPV", "LastTrade",, "T"),"") -> 168809 | R28: =IFERROR(RTD("cqg.rtd",,"ContractData",AB28,"LongDescription",,"T")&" ("&RIGHT(AB28,LEN(AB28)-5)&")","") -> NVIDIA Corp (NVDA) | U28: =IF(R28="","",IFERROR(RTD("cqg.rtd",,"ContractData",AB28,"LastTrade",,"T"),"")) -> 189.12 | V28: =IF(R28="","",IFERROR(RTD("cqg.rtd", ,"ContractData",AB28, "NetChange",, "T"),"")) -> 3.19 | W28: =IFERROR(RTD("cqg.rtd", ,"ContractData",AB28, "PerCentNetLastTrade",, "T")/100,"") -> 0.01611863314 | X28: =IFERROR(RTD("cqg.rtd",,"StudyData",AB28, "Vol", "VolType=Auto,CoCType=Auto", "Vol","ADC","0","ALL",,,"TRUE","T")/ RTD("cqg.rtd",,"StudyData",AB28, "MA", "InputChoice=ContractVol,MAType=Sim,Period=21", "MA","D","-1","all",,,,"T"),"") -> 0.04412040671 | Y28: =IF(R28="","",IFERROR(RTD("cqg.rtd", ,"ContractData",AB28, "Open",, "T"),"")) -> 188.82 | Z28: =IF(R28="","",IFERROR(RTD("cqg.rtd", ,"ContractData",AB28, "High",, "T"),"")) -> 189.5 | AA28: =IF(R28="","",IFERROR(RTD("cqg.rtd", ,"ContractData",AB28, "Low",, "T"),"")) -> 187.42 | AB28: =NASDAQ100!I3 -> S.US.NVDA
A29: =TRIM('S&P500'!I4) -> S.US.SLB | B29: =IFERROR(RTD("cqg.rtd",,"ContractData",A29,"LongDescription",,"T")&" ("&RIGHT(A29,LEN(A29)-5)&")","") -> Schlumberger Limited (SLB) | E29: =IF(B29="","",IFERROR(RTD("cqg.rtd",,"ContractData",A29,"LastTrade",,"T"),"")) -> 28.24 | F29: =IF(B29="","",IFERROR(RTD("cqg.rtd", ,"ContractData",A29, "NetChange",, "T"),"")) -> 1.01 | G29: =IFERROR(RTD("cqg.rtd", ,"ContractData",A29, "PerCentNetLastTrade",, "T")/100,"") -> 0.03671071953 | H29: =IFERROR(RTD("cqg.rtd",,"StudyData",A29, "Vol", "VolType=Auto,CoCType=Auto", "Vol","ADC","0","ALL",,,"TRUE","T")/ RTD("cqg.rtd",,"StudyData",A29, "MA", "InputChoice=ContractVol,MAType=Sim,Period=21", "MA","D","-1","all",,,,"T"),"") -> 0.06350812365 | I29: =IF(B29="","",IFERROR(RTD("cqg.rtd", ,"ContractData",A29, "Open",, "T"),"")) -> 28.03 | J29: =IF(B29="","",IFERROR(RTD("cqg.rtd", ,"ContractData",A29, "High",, "T"),"")) -> 28.37 | K29: =IF(B29="","",IFERROR(RTD("cqg.rtd",,"ContractData",A29,"Low",,"T"),"")) -> 28.03 | L29: NYSE Down Volume | O29: NASDAQ Down Volume | R29: =IFERROR(RTD("cqg.rtd",,"ContractData",AB29,"LongDescription",,"T")&" ("&RIGHT(AB29,LEN(AB29)-5)&")","") -> Liberty Global Inc Series A (LBTYA) | U29: =IF(R29="","",IFERROR(RTD("cqg.rtd",,"ContractData",AB29,"LastTrade",,"T"),"")) -> 26.15 | V29: =IF(R29="","",IFERROR(RTD("cqg.rtd", ,"ContractData",AB29, "NetChange",, "T"),"")) -> 0.43 | W29: =IFERROR(RTD("cqg.rtd", ,"ContractData",AB29, "PerCentNetLastTrade",, "T")/100,"") -> 0.01632335795 | X29: =IFERROR(RTD("cqg.rtd",,"StudyData",AB29, "Vol", "VolType=Auto,CoCType=Auto", "Vol","ADC","0","ALL",,,"TRUE","T")/ RTD("cqg.rtd",,"StudyData",AB29, "MA", "InputChoice=ContractVol,MAType=Sim,Period=21", "MA","D","-1","all",,,,"T"),"") -> 0.03863232468 | Y29: =IF(R29="","",IFERROR(RTD("cqg.rtd", ,"ContractData",AB29, "Open",, "T"),"")) -> 25.8 | Z29: =IF(R29="","",IFERROR(RTD("cqg.rtd", ,"ContractData",AB29, "High",, "T"),"")) -> 26.15 | AA29: =IF(R29="","",IFERROR(RTD("cqg.rtd", ,"ContractData",AB29, "Low",, "T"),"")) -> 25.71 | AB29: =NASDAQ100!I4 -> S.US.LBTYA
A30: =TRIM('S&P500'!I5) -> S.US.OXY | B30: =IFERROR(RTD("cqg.rtd",,"ContractData",A30,"LongDescription",,"T")&" ("&RIGHT(A30,LEN(A30)-5)&")","") -> Occidental Petroleum (OXY) | E30: =IF(B30="","",IFERROR(RTD("cqg.rtd",,"ContractData",A30,"LastTrade",,"T"),"")) -> 26.3 | F30: =IF(B30="","",IFERROR(RTD("cqg.rtd", ,"ContractData",A30, "NetChange",, "T"),"")) -> 0.94 | G30: =IFERROR(RTD("cqg.rtd", ,"ContractData",A30, "PerCentNetLastTrade",, "T")/100,"") -> 0.03665746945 | H30: =IFERROR(RTD("cqg.rtd",,"StudyData",A30, "Vol", "VolType=Auto,CoCType=Auto", "Vol","ADC","0","ALL",,,"TRUE","T")/ RTD("cqg.rtd",,"StudyData",A30, "MA", "InputChoice=ContractVol,MAType=Sim,Period=21", "MA","D","-1","all",,,,"T"),"") -> 0.06078068398 | I30: =IF(B30="","",IFERROR(RTD("cqg.rtd", ,"ContractData",A30, "Open",, "T"),"")) -> 25.87 | J30: =IF(B30="","",IFERROR(RTD("cqg.rtd", ,"ContractData",A30, "High",, "T"),"")) -> 26.45 | K30: =IF(B30="","",IFERROR(RTD("cqg.rtd",,"ContractData",A30,"Low",,"T"),"")) -> 25.87 | R30: =IFERROR(RTD("cqg.rtd",,"ContractData",AB30,"LongDescription",,"T")&" ("&RIGHT(AB30,LEN(AB30)-5)&")","") -> Liberty Global (LBTYK) | U30: =IF(R30="","",IFERROR(RTD("cqg.rtd",,"ContractData",AB30,"LastTrade",,"T"),"")) -> 26.38 | V30: =IF(R30="","",IFERROR(RTD("cqg.rtd", ,"ContractData",AB30, "NetChange",, "T"),"")) -> 0.44 | W30: =IFERROR(RTD("cqg.rtd", ,"ContractData",AB30, "PerCentNetLastTrade",, "T")/100,"") -> 0.01617873652 | X30: =IFERROR(RTD("cqg.rtd",,"StudyData",AB30, "Vol", "VolType=Auto,CoCType=Auto", "Vol","ADC","0","ALL",,,"TRUE","T")/ RTD("cqg.rtd",,"StudyData",AB30, "MA", "InputChoice=ContractVol,MAType=Sim,Period=21", "MA","D","-1","all",,,,"T"),"") -> 0.0248956221 | Y30: =IF(R30="","",IFERROR(RTD("cqg.rtd", ,"ContractData",AB30, "Open",, "T"),"")) -> 26.07 | Z30: =IF(R30="","",IFERROR(RTD("cqg.rtd", ,"ContractData",AB30, "High",, "T"),"")) -> 26.39 | AA30: =IF(R30="","",IFERROR(RTD("cqg.rtd", ,"ContractData",AB30, "Low",, "T"),"")) -> 26.04 | AB30: =NASDAQ100!I5 -> S.US.LBTYK
A31: =TRIM('S&P500'!I6) -> S.US.HAL | B31: =IFERROR(RTD("cqg.rtd",,"ContractData",A31,"LongDescription",,"T")&" ("&RIGHT(A31,LEN(A31)-5)&")","") -> Halliburton Company (HAL) | E31: =IF(B31="","",IFERROR(RTD("cqg.rtd",,"ContractData",A31,"LastTrade",,"T"),"")) -> 20.7 | F31: =IF(B31="","",IFERROR(RTD("cqg.rtd", ,"ContractData",A31, "NetChange",, "T"),"")) -> 0.63 | G31: =IFERROR(RTD("cqg.rtd", ,"ContractData",A31, "PerCentNetLastTrade",, "T")/100,"") -> 0.03139013453 | H31: =IFERROR(RTD("cqg.rtd",,"StudyData",A31, "Vol", "VolType=Auto,CoCType=Auto", "Vol","ADC","0","ALL",,,"TRUE","T")/ RTD("cqg.rtd",,"StudyData",A31, "MA", "InputChoice=ContractVol,MAType=Sim,Period=21", "MA","D","-1","all",,,,"T"),"") -> 0.1171345051 | I31: =IF(B31="","",IFERROR(RTD("cqg.rtd", ,"ContractData",A31, "Open",, "T"),"")) -> 20.92 | J31: =IF(B31="","",IFERROR(RTD("cqg.rtd", ,"ContractData",A31, "High",, "T"),"")) -> 21.07 | K31: =IF(B31="","",IFERROR(RTD("cqg.rtd",,"ContractData",A31,"Low",,"T"),"")) -> 20.66 | L31: =IFERROR(RTD("cqg.rtd", ,"ContractData","DJDNV", "LastTrade",, "T"),"") -> 8228 | O31: =IFERROR(RTD("cqg.rtd", ,"ContractData","NASDNV", "LastTrade",, "T"),"") -> 49478 | R31: =IFERROR(RTD("cqg.rtd",,"ContractData",AB31,"LongDescription",,"T")&" ("&RIGHT(AB31,LEN(AB31)-5)&")","") -> Expedia Group, Inc. (EXPE) | U31: =IF(R31="","",IFERROR(RTD("cqg.rtd",,"ContractData",AB31,"LastTrade",,"T"),"")) -> 158.64 | V31: =IF(R31="","",IFERROR(RTD("cqg.rtd", ,"ContractData",AB31, "NetChange",, "T"),"")) -> 2.52 | W31: =IFERROR(RTD("cqg.rtd", ,"ContractData",AB31, "PerCentNetLastTrade",, "T")/100,"") -> 0.01614142967 | X31: =IFERROR(RTD("cqg.rtd",,"StudyData",AB31, "Vol", "VolType=Auto,CoCType=Auto", "Vol","ADC","0","ALL",,,"TRUE","T")/ RTD("cqg.rtd",,"StudyData",AB31, "MA", "InputChoice=ContractVol,MAType=Sim,Period=21", "MA","D","-1","all",,,,"T"),"") -> 0.01386389921 | Y31: =IF(R31="","",IFERROR(RTD("cqg.rtd", ,"ContractData",AB31, "Open",, "T"),"")) -> 157.59 | Z31: =IF(R31="","",IFERROR(RTD("cqg.rtd", ,"ContractData",AB31, "High",, "T"),"")) -> 158.82 | AA31: =IF(R31="","",IFERROR(RTD("cqg.rtd", ,"ContractData",AB31, "Low",, "T"),"")) -> 157.59 | AB31: =NASDAQ100!I6 -> S.US.EXPE
A32: =TRIM('S&P500'!I7) -> S.US.CMA | B32: =IFERROR(RTD("cqg.rtd",,"ContractData",A32,"LongDescription",,"T")&" ("&RIGHT(A32,LEN(A32)-5)&")","") -> Comerica Inc (CMA) | E32: =IF(B32="","",IFERROR(RTD("cqg.rtd",,"ContractData",A32,"LastTrade",,"T"),"")) -> 67.78 | F32: =IF(B32="","",IFERROR(RTD("cqg.rtd", ,"ContractData",A32, "NetChange",, "T"),"")) -> 2.33 | G32: =IFERROR(RTD("cqg.rtd", ,"ContractData",A32, "PerCentNetLastTrade",, "T")/100,"") -> 0.03228754188 | H32: =IFERROR(RTD("cqg.rtd",,"StudyData",A32, "Vol", "VolType=Auto,CoCType=Auto", "Vol","ADC","0","ALL",,,"TRUE","T")/ RTD("cqg.rtd",,"StudyData",A32, "MA", "InputChoice=ContractVol,MAType=Sim,Period=21", "MA","D","-1","all",,,,"T"),"") -> 0.04014245139 | I32: =IF(B32="","",IFERROR(RTD("cqg.rtd", ,"ContractData",A32, "Open",, "T"),"")) -> 66.16 | J32: =IF(B32="","",IFERROR(RTD("cqg.rtd", ,"ContractData",A32, "High",, "T"),"")) -> 67.99 | K32: =IF(B32="","",IFERROR(RTD("cqg.rtd",,"ContractData",A32,"Low",,"T"),"")) -> 66.16 | L32: NYSE Unchanged Vol | O32: NASDAQ Unchanged Vol | R32: =IFERROR(RTD("cqg.rtd",,"ContractData",AB32,"LongDescription",,"T")&" ("&RIGHT(AB32,LEN(AB32)-5)&")","") -> Fox Corporation Class A (FOXA) | U32: =IF(R32="","",IFERROR(RTD("cqg.rtd",,"ContractData",AB32,"LastTrade",,"T"),"")) -> 35.48 | V32: =IF(R32="","",IFERROR(RTD("cqg.rtd", ,"ContractData",AB32, "NetChange",, "T"),"")) -> 0.53 | W32: =IFERROR(RTD("cqg.rtd", ,"ContractData",AB32, "PerCentNetLastTrade",, "T")/100,"") -> 0.01458392908 | X32: =IFERROR(RTD("cqg.rtd",,"StudyData",AB32, "Vol", "VolType=Auto,CoCType=Auto", "Vol","ADC","0","ALL",,,"TRUE","T")/ RTD("cqg.rtd",,"StudyData",AB32, "MA", "InputChoice=ContractVol,MAType=Sim,Period=21", "MA","D","-1","all",,,,"T"),"") -> 0.02488958518 | Y32: =IF(R32="","",IFERROR(RTD("cqg.rtd", ,"ContractData",AB32, "Open",, "T"),"")) -> 35.05 | Z32: =IF(R32="","",IFERROR(RTD("cqg.rtd", ,"ContractData",AB32, "High",, "T"),"")) -> 35.48 | AA32: =IF(R32="","",IFERROR(RTD("cqg.rtd", ,"ContractData",AB32, "Low",, "T"),"")) -> 35.04 | AB32: =NASDAQ100!I7 -> S.US.FOXA
A33: =TRIM('S&P500'!I8) -> S.US.NOV | B33: =IFERROR(RTD("cqg.rtd",,"ContractData",A33,"LongDescription",,"T")&" ("&RIGHT(A33,LEN(A33)-5)&")","") -> NOV Inc. (NOV) | E33: =IF(B33="","",IFERROR(RTD("cqg.rtd",,"ContractData",A33,"LastTrade",,"T"),"")) -> 13.95 | F33: =IF(B33="","",IFERROR(RTD("cqg.rtd", ,"ContractData",A33, "NetChange",, "T"),"")) -> 0.42 | G33: =IFERROR(RTD("cqg.rtd", ,"ContractData",A33, "PerCentNetLastTrade",, "T")/100,"") -> 0.0295202952 | H33: =IFERROR(RTD("cqg.rtd",,"StudyData",A33, "Vol", "VolType=Auto,CoCType=Auto", "Vol","ADC","0","ALL",,,"TRUE","T")/ RTD("cqg.rtd",,"StudyData",A33, "MA", "InputChoice=ContractVol,MAType=Sim,Period=21", "MA","D","-1","all",,,,"T"),"") -> 0.02645585443 | I33: =IF(B33="","",IFERROR(RTD("cqg.rtd", ,"ContractData",A33, "Open",, "T"),"")) -> 13.92 | J33: =IF(B33="","",IFERROR(RTD("cqg.rtd", ,"ContractData",A33, "High",, "T"),"")) -> 14.09 | K33: =IF(B33="","",IFERROR(RTD("cqg.rtd",,"ContractData",A33,"Low",,"T"),"")) -> 13.91 | R33: =IFERROR(RTD("cqg.rtd",,"ContractData",AB33,"LongDescription",,"T")&" ("&RIGHT(AB33,LEN(AB33)-5)&")","") -> Electronic Arts (EA) | U33: =IF(R33="","",IFERROR(RTD("cqg.rtd",,"ContractData",AB33,"LastTrade",,"T"),"")) -> 143.08 | V33: =IF(R33="","",IFERROR(RTD("cqg.rtd", ,"ContractData",AB33, "NetChange",, "T"),"")) -> 2.21 | W33: =IFERROR(RTD("cqg.rtd", ,"ContractData",AB33, "PerCentNetLastTrade",, "T")/100,"") -> 0.01424824555 | X33: =IFERROR(RTD("cqg.rtd",,"StudyData",AB33, "Vol", "VolType=Auto,CoCType=Auto", "Vol","ADC","0","ALL",,,"TRUE","T")/ RTD("cqg.rtd",,"StudyData",AB33, "MA", "InputChoice=ContractVol,MAType=Sim,Period=21", "MA","D","-1","all",,,,"T"),"") -> 0.05402505554 | Y33: =IF(R33="","",IFERROR(RTD("cqg.rtd", ,"ContractData",AB33, "Open",, "T"),"")) -> 143.89 | Z33: =IF(R33="","",IFERROR(RTD("cqg.rtd", ,"ContractData",AB33, "High",, "T"),"")) -> 143.89 | AA33: =IF(R33="","",IFERROR(RTD("cqg.rtd", ,"ContractData",AB33, "Low",, "T"),"")) -> 142.71 | AB33: =NASDAQ100!I8 -> S.US.EA
A34: =TRIM('S&P500'!I9) -> S.US.NCLH | B34: =IFERROR(RTD("cqg.rtd",,"ContractData",A34,"LongDescription",,"T")&" ("&RIGHT(A34,LEN(A34)-5)&")","") -> Norwegian Cruise Line (NCLH) | E34: =IF(B34="","",IFERROR(RTD("cqg.rtd",,"ContractData",A34,"LastTrade",,"T"),"")) -> 24.37 | F34: =IF(B34="","",IFERROR(RTD("cqg.rtd", ,"ContractData",A34, "NetChange",, "T"),"")) -> 0.71 | G34: =IFERROR(RTD("cqg.rtd", ,"ContractData",A34, "PerCentNetLastTrade",, "T")/100,"") -> 0.02913851351 | H34: =IFERROR(RTD("cqg.rtd",,"StudyData",A34, "Vol", "VolType=Auto,CoCType=Auto", "Vol","ADC","0","ALL",,,"TRUE","T")/ RTD("cqg.rtd",,"StudyData",A34, "MA", "InputChoice=ContractVol,MAType=Sim,Period=21", "MA","D","-1","all",,,,"T"),"") -> 0.1223308805 | I34: =IF(B34="","",IFERROR(RTD("cqg.rtd", ,"ContractData",A34, "Open",, "T"),"")) -> 24.01 | J34: =IF(B34="","",IFERROR(RTD("cqg.rtd", ,"ContractData",A34, "High",, "T"),"")) -> 24.46 | K34: =IF(B34="","",IFERROR(RTD("cqg.rtd",,"ContractData",A34,"Low",,"T"),"")) -> 24 | L34: =IFERROR(RTD("cqg.rtd", ,"ContractData","DJUCV", "LastTrade",, "T"),"") -> 658 | O34: =IFERROR(RTD("cqg.rtd", ,"ContractData","NASUCV", "LastTrade",, "T"),"") -> 15322 | R34: =IFERROR(RTD("cqg.rtd",,"ContractData",AB34,"LongDescription",,"T")&" ("&RIGHT(AB34,LEN(AB34)-5)&")","") -> Applied Materials Inc (AMAT) | U34: =IF(R34="","",IFERROR(RTD("cqg.rtd",,"ContractData",AB34,"LastTrade",,"T"),"")) -> 133.84 | V34: =IF(R34="","",IFERROR(RTD("cqg.rtd", ,"ContractData",AB34, "NetChange",, "T"),"")) -> 1.86 | W34: =IFERROR(RTD("cqg.rtd", ,"ContractData",AB34, "PerCentNetLastTrade",, "T")/100,"") -> 0.0140941123 | X34: =IFERROR(RTD("cqg.rtd",,"StudyData",AB34, "Vol", "VolType=Auto,CoCType=Auto", "Vol","ADC","0","ALL",,,"TRUE","T")/ RTD("cqg.rtd",,"StudyData",AB34, "MA", "InputChoice=ContractVol,MAType=Sim,Period=21", "MA","D","-1","all",,,,"T"),"") -> 0.04087826357 | Y34: =IF(R34="","",IFERROR(RTD("cqg.rtd", ,"ContractData",AB34, "Open",, "T"),"")) -> 132.82 | Z34: =IF(R34="","",IFERROR(RTD("cqg.rtd", ,"ContractData",AB34, "High",, "T"),"")) -> 133.84 | AA34: =IF(R34="","",IFERROR(RTD("cqg.rtd", ,"ContractData",AB34, "Low",, "T"),"")) -> 132.53 | AB34: =NASDAQ100!I9 -> S.US.AMAT
A35: =TRIM('S&P500'!I10) -> S.US.MRO | B35: =IFERROR(RTD("cqg.rtd",,"ContractData",A35,"LongDescription",,"T")&" ("&RIGHT(A35,LEN(A35)-5)&")","") -> Marathon Oil Corporation (MRO) | E35: =IF(B35="","",IFERROR(RTD("cqg.rtd",,"ContractData",A35,"LastTrade",,"T"),"")) ->  | F35: =IF(B35="","",IFERROR(RTD("cqg.rtd", ,"ContractData",A35, "NetChange",, "T"),"")) ->  | G35: =IFERROR(RTD("cqg.rtd", ,"ContractData",A35, "PerCentNetLastTrade",, "T")/100,"") -> 0.02733686067 | H35: =IFERROR(RTD("cqg.rtd",,"StudyData",A35, "Vol", "VolType=Auto,CoCType=Auto", "Vol","ADC","0","ALL",,,"TRUE","T")/ RTD("cqg.rtd",,"StudyData",A35, "MA", "InputChoice=ContractVol,MAType=Sim,Period=21", "MA","D","-1","all",,,,"T"),"") -> 0.04570699784 | I35: =IF(B35="","",IFERROR(RTD("cqg.rtd", ,"ContractData",A35, "Open",, "T"),"")) ->  | J35: =IF(B35="","",IFERROR(RTD("cqg.rtd", ,"ContractData",A35, "High",, "T"),"")) ->  | K35: =IF(B35="","",IFERROR(RTD("cqg.rtd",,"ContractData",A35,"Low",,"T"),"")) ->  | L35: NYSE Adv Issues | O35: NASDAQ Adv Issues | R35: =IFERROR(RTD("cqg.rtd",,"ContractData",AB35,"LongDescription",,"T")&" ("&RIGHT(AB35,LEN(AB35)-5)&")","") -> Marriot International, Inc. (MAR) | U35: =IF(R35="","",IFERROR(RTD("cqg.rtd",,"ContractData",AB35,"LastTrade",,"T"),"")) -> 136.83 | V35: =IF(R35="","",IFERROR(RTD("cqg.rtd", ,"ContractData",AB35, "NetChange",, "T"),"")) -> 1.9 | W35: =IFERROR(RTD("cqg.rtd", ,"ContractData",AB35, "PerCentNetLastTrade",, "T")/100,"") -> 0.01333037103 | X35: =IFERROR(RTD("cqg.rtd",,"StudyData",AB35, "Vol", "VolType=Auto,CoCType=Auto", "Vol","ADC","0","ALL",,,"TRUE","T")/ RTD("cqg.rtd",,"StudyData",AB35, "MA", "InputChoice=ContractVol,MAType=Sim,Period=21", "MA","D","-1","all",,,,"T"),"") -> 0.02266304725 | Y35: =IF(R35="","",IFERROR(RTD("cqg.rtd", ,"ContractData",AB35, "Open",, "T"),"")) -> 135.43 | Z35: =IF(R35="","",IFERROR(RTD("cqg.rtd", ,"ContractData",AB35, "High",, "T"),"")) -> 137.2 | AA35: =IF(R35="","",IFERROR(RTD("cqg.rtd", ,"ContractData",AB35, "Low",, "T"),"")) -> 135.43 | AB35: =NASDAQ100!I10 -> S.US.MAR
B36: CQG Bottom Ten Percentage Performers in the S&P 500 | R36: CQG Bottom Ten Percentage Performers in the NASDAQ 100
A37: =TRIM('S&P500'!N1) -> S.US.STX | B37: =IFERROR(RTD("cqg.rtd",,"ContractData",A37,"LongDescription",,"T")&" ("&RIGHT(A37,LEN(A37)-5)&")","") -> Seagate Technology Holdings PLC (STX) | E37: =IF(B37="","",IFERROR(RTD("cqg.rtd",,"ContractData",A37,"LastTrade",,"T"),"")) -> 80.32 | F37: =IF(B37="","",IFERROR(RTD("cqg.rtd", ,"ContractData",A37, "NetChange",, "T"),"")) -> -5.17 | G37: =IFERROR(RTD("cqg.rtd", ,"ContractData",A37, "PerCentNetLastTrade",, "T")/100,"") -> -0.06047490935 | H37: =IFERROR(RTD("cqg.rtd",,"StudyData",A37, "Vol", "VolType=Auto,CoCType=Auto", "Vol","ADC","0","ALL",,,"TRUE","T")/ RTD("cqg.rtd",,"StudyData",A37, "MA", "InputChoice=ContractVol,MAType=Sim,Period=21", "MA","D","-1","all",,,,"T"),"") -> 0.2680148346 | I37: =IF(B37="","",IFERROR(RTD("cqg.rtd", ,"ContractData",A37, "Open",, "T"),"")) -> 81.75 | J37: =IF(B37="","",IFERROR(RTD("cqg.rtd", ,"ContractData",A37, "High",, "T"),"")) -> 81.8 | K37: =IF(B37="","",IFERROR(RTD("cqg.rtd",,"ContractData",A37,"Low",,"T"),"")) -> 79.95 | L37: =IFERROR(RTD("cqg.rtd", ,"ContractData","DJIUP", "LastTrade",, "T"),"") -> 2096 | O37: =IFERROR(RTD("cqg.rtd", ,"ContractData","NASIUP", "LastTrade",, "T"),"") -> 2406 | R37: =IFERROR(RTD("cqg.rtd",,"ContractData",AB37,"LongDescription",,"T")&" ("&RIGHT(AB37,LEN(AB37)-5)&")","") -> NetEase, Inc. (NTES) | U37: =IF(R37="","",IFERROR(RTD("cqg.rtd",,"ContractData",AB37,"LastTrade",,"T"),"")) -> 110.65 | V37: =IF(R37="","",IFERROR(RTD("cqg.rtd", ,"ContractData",AB37, "NetChange",, "T"),"")) -> -2.46 | W37: =IFERROR(RTD("cqg.rtd", ,"ContractData",AB37, "PerCentNetLastTrade",, "T")/100,"") -> -0.02269916976 | X37: =IFERROR(RTD("cqg.rtd",,"StudyData",AB37, "Vol", "VolType=Auto,CoCType=Auto", "Vol","ADC","0","ALL",,,"TRUE","T")/ RTD("cqg.rtd",,"StudyData",AB37, "MA", "InputChoice=ContractVol,MAType=Sim,Period=21", "MA","D","-1","all",,,,"T"),"") -> 0.04346505981 | Y37: =IF(R37="","",IFERROR(RTD("cqg.rtd", ,"ContractData",AB37, "Open",, "T"),"")) -> 112.44 | Z37: =IF(R37="","",IFERROR(RTD("cqg.rtd", ,"ContractData",AB37, "High",, "T"),"")) -> 112.92 | AA37: =IF(R37="","",IFERROR(RTD("cqg.rtd", ,"ContractData",AB37, "Low",, "T"),"")) -> 110.21 | AB37: =NASDAQ100!N1 -> S.US.NTES
A38: =TRIM('S&P500'!N2) -> S.US.WDC | B38: =IFERROR(RTD("cqg.rtd",,"ContractData",A38,"LongDescription",,"T")&" ("&RIGHT(A38,LEN(A38)-5)&")","") -> Western Digital Corporation (WDC) | E38: =IF(B38="","",IFERROR(RTD("cqg.rtd",,"ContractData",A38,"LastTrade",,"T"),"")) -> 62.28 | F38: =IF(B38="","",IFERROR(RTD("cqg.rtd", ,"ContractData",A38, "NetChange",, "T"),"")) -> -2.25 | G38: =IFERROR(RTD("cqg.rtd", ,"ContractData",A38, "PerCentNetLastTrade",, "T")/100,"") -> -0.03650990099 | H38: =IFERROR(RTD("cqg.rtd",,"StudyData",A38, "Vol", "VolType=Auto,CoCType=Auto", "Vol","ADC","0","ALL",,,"TRUE","T")/ RTD("cqg.rtd",,"StudyData",A38, "MA", "InputChoice=ContractVol,MAType=Sim,Period=21", "MA","D","-1","all",,,,"T"),"") -> 0.1530082115 | I38: =IF(B38="","",IFERROR(RTD("cqg.rtd", ,"ContractData",A38, "Open",, "T"),"")) -> 64.45 | J38: =IF(B38="","",IFERROR(RTD("cqg.rtd", ,"ContractData",A38, "High",, "T"),"")) -> 64.56 | K38: =IF(B38="","",IFERROR(RTD("cqg.rtd",,"ContractData",A38,"Low",,"T"),"")) -> 61.87 | L38: NYSE Dec Issues | O38: NASDAQ Dec Issues | R38: =IFERROR(RTD("cqg.rtd",,"ContractData",AB38,"LongDescription",,"T")&" ("&RIGHT(AB38,LEN(AB38)-5)&")","") -> Netflix Inc (NFLX) | U38: =IF(R38="","",IFERROR(RTD("cqg.rtd",,"ContractData",AB38,"LastTrade",,"T"),"")) -> 524.39 | V38: =IF(R38="","",IFERROR(RTD("cqg.rtd", ,"ContractData",AB38, "NetChange",, "T"),"")) -> -6.66 | W38: =IFERROR(RTD("cqg.rtd", ,"ContractData",AB38, "PerCentNetLastTrade",, "T")/100,"") -> -0.01254119198 | X38: =IFERROR(RTD("cqg.rtd",,"StudyData",AB38, "Vol", "VolType=Auto,CoCType=Auto", "Vol","ADC","0","ALL",,,"TRUE","T")/ RTD("cqg.rtd",,"StudyData",AB38, "MA", "InputChoice=ContractVol,MAType=Sim,Period=21", "MA","D","-1","all",,,,"T"),"") -> 0.2300879609 | Y38: =IF(R38="","",IFERROR(RTD("cqg.rtd", ,"ContractData",AB38, "Open",, "T"),"")) -> 526.13 | Z38: =IF(R38="","",IFERROR(RTD("cqg.rtd", ,"ContractData",AB38, "High",, "T"),"")) -> 530.99 | AA38: =IF(R38="","",IFERROR(RTD("cqg.rtd", ,"ContractData",AB38, "Low",, "T"),"")) -> 523.32 | AB38: =NASDAQ100!N2 -> S.US.NFLX
A39: =TRIM('S&P500'!N3) -> S.US.ALLE | B39: =IFERROR(RTD("cqg.rtd",,"ContractData",A39,"LongDescription",,"T")&" ("&RIGHT(A39,LEN(A39)-5)&")","") -> Allegion plc (ALLE) | E39: =IF(B39="","",IFERROR(RTD("cqg.rtd",,"ContractData",A39,"LastTrade",,"T"),"")) -> 138.68 | F39: =IF(B39="","",IFERROR(RTD("cqg.rtd", ,"ContractData",A39, "NetChange",, "T"),"")) -> -2.67 | G39: =IFERROR(RTD("cqg.rtd", ,"ContractData",A39, "PerCentNetLastTrade",, "T")/100,"") -> -0.01888928192 | H39: =IFERROR(RTD("cqg.rtd",,"StudyData",A39, "Vol", "VolType=Auto,CoCType=Auto", "Vol","ADC","0","ALL",,,"TRUE","T")/ RTD("cqg.rtd",,"StudyData",A39, "MA", "InputChoice=ContractVol,MAType=Sim,Period=21", "MA","D","-1","all",,,,"T"),"") -> 0.04603201058 | I39: =IF(B39="","",IFERROR(RTD("cqg.rtd", ,"ContractData",A39, "Open",, "T"),"")) -> 140.5 | J39: =IF(B39="","",IFERROR(RTD("cqg.rtd", ,"ContractData",A39, "High",, "T"),"")) -> 140.5 | K39: =IF(B39="","",IFERROR(RTD("cqg.rtd",,"ContractData",A39,"Low",,"T"),"")) -> 138.66 | R39: =IFERROR(RTD("cqg.rtd",,"ContractData",AB39,"LongDescription",,"T")&" ("&RIGHT(AB39,LEN(AB39)-5)&")","") -> Illumina Inc (ILMN) | U39: =IF(R39="","",IFERROR(RTD("cqg.rtd",,"ContractData",AB39,"LastTrade",,"T"),"")) -> 482.34 | V39: =IF(R39="","",IFERROR(RTD("cqg.rtd", ,"ContractData",AB39, "NetChange",, "T"),"")) -> -3.27 | W39: =IFERROR(RTD("cqg.rtd", ,"ContractData",AB39, "PerCentNetLastTrade",, "T")/100,"") -> -0.01007696254 | X39: =IFERROR(RTD("cqg.rtd",,"StudyData",AB39, "Vol", "VolType=Auto,CoCType=Auto", "Vol","ADC","0","ALL",,,"TRUE","T")/ RTD("cqg.rtd",,"StudyData",AB39, "MA", "InputChoice=ContractVol,MAType=Sim,Period=21", "MA","D","-1","all",,,,"T"),"") -> 0.02307729898 | Y39: =IF(R39="","",IFERROR(RTD("cqg.rtd", ,"ContractData",AB39, "Open",, "T"),"")) -> 483.95 | Z39: =IF(R39="","",IFERROR(RTD("cqg.rtd", ,"ContractData",AB39, "High",, "T"),"")) -> 485.91 | AA39: =IF(R39="","",IFERROR(RTD("cqg.rtd", ,"ContractData",AB39, "Low",, "T"),"")) -> 482.34 | AB39: =NASDAQ100!N3 -> S.US.ILMN
A40: =TRIM('S&P500'!N4) -> S.US.MTB | B40: =IFERROR(RTD("cqg.rtd",,"ContractData",A40,"LongDescription",,"T")&" ("&RIGHT(A40,LEN(A40)-5)&")","") -> M&T Bank Corp (MTB) | E40: =IF(B40="","",IFERROR(RTD("cqg.rtd",,"ContractData",A40,"LastTrade",,"T"),"")) -> 132.49 | F40: =IF(B40="","",IFERROR(RTD("cqg.rtd", ,"ContractData",A40, "NetChange",, "T"),"")) -> -2.17 | G40: =IFERROR(RTD("cqg.rtd", ,"ContractData",A40, "PerCentNetLastTrade",, "T")/100,"") -> -0.01888329384 | H40: =IFERROR(RTD("cqg.rtd",,"StudyData",A40, "Vol", "VolType=Auto,CoCType=Auto", "Vol","ADC","0","ALL",,,"TRUE","T")/ RTD("cqg.rtd",,"StudyData",A40, "MA", "InputChoice=ContractVol,MAType=Sim,Period=21", "MA","D","-1","all",,,,"T"),"") -> 0.117043868 | I40: =IF(B40="","",IFERROR(RTD("cqg.rtd", ,"ContractData",A40, "Open",, "T"),"")) -> 131.05 | J40: =IF(B40="","",IFERROR(RTD("cqg.rtd", ,"ContractData",A40, "High",, "T"),"")) -> 134.16 | K40: =IF(B40="","",IFERROR(RTD("cqg.rtd",,"ContractData",A40,"Low",,"T"),"")) -> 130 | L40: =IFERROR(RTD("cqg.rtd", ,"ContractData","DJIDN", "LastTrade",, "T"),"") -> 535 | O40: =IFERROR(RTD("cqg.rtd", ,"ContractData","NASIDN", "LastTrade",, "T"),"") -> 901 | R40: =IFERROR(RTD("cqg.rtd",,"ContractData",AB40,"LongDescription",,"T")&" ("&RIGHT(AB40,LEN(AB40)-5)&")","") -> Zoom Video Communications, Inc. Class A (ZM) | U40: =IF(R40="","",IFERROR(RTD("cqg.rtd",,"ContractData",AB40,"LastTrade",,"T"),"")) -> 353.16 | V40: =IF(R40="","",IFERROR(RTD("cqg.rtd", ,"ContractData",AB40, "NetChange",, "T"),"")) -> -2.03 | W40: =IFERROR(RTD("cqg.rtd", ,"ContractData",AB40, "PerCentNetLastTrade",, "T")/100,"") -> -0.007447795172 | X40: =IFERROR(RTD("cqg.rtd",,"StudyData",AB40, "Vol", "VolType=Auto,CoCType=Auto", "Vol","ADC","0","ALL",,,"TRUE","T")/ RTD("cqg.rtd",,"StudyData",AB40, "MA", "InputChoice=ContractVol,MAType=Sim,Period=21", "MA","D","-1","all",,,,"T"),"") -> 0.03762474722 | Y40: =IF(R40="","",IFERROR(RTD("cqg.rtd", ,"ContractData",AB40, "Open",, "T"),"")) -> 355.34 | Z40: =IF(R40="","",IFERROR(RTD("cqg.rtd", ,"ContractData",AB40, "High",, "T"),"")) -> 355.8 | AA40: =IF(R40="","",IFERROR(RTD("cqg.rtd", ,"ContractData",AB40, "Low",, "T"),"")) -> 352 | AB40: =NASDAQ100!N4 -> S.US.ZM
A41: =TRIM('S&P500'!N5) -> S.US.DHR | B41: =IFERROR(RTD("cqg.rtd",,"ContractData",A41,"LongDescription",,"T")&" ("&RIGHT(A41,LEN(A41)-5)&")","") -> Danaher Corporation (DHR) | E41: =IF(B41="","",IFERROR(RTD("cqg.rtd",,"ContractData",A41,"LastTrade",,"T"),"")) -> 279.01 | F41: =IF(B41="","",IFERROR(RTD("cqg.rtd", ,"ContractData",A41, "NetChange",, "T"),"")) -> -3.78 | G41: =IFERROR(RTD("cqg.rtd", ,"ContractData",A41, "PerCentNetLastTrade",, "T")/100,"") -> -0.01618476728 | H41: =IFERROR(RTD("cqg.rtd",,"StudyData",A41, "Vol", "VolType=Auto,CoCType=Auto", "Vol","ADC","0","ALL",,,"TRUE","T")/ RTD("cqg.rtd",,"StudyData",A41, "MA", "InputChoice=ContractVol,MAType=Sim,Period=21", "MA","D","-1","all",,,,"T"),"") -> 0.04062442931 | I41: =IF(B41="","",IFERROR(RTD("cqg.rtd", ,"ContractData",A41, "Open",, "T"),"")) -> 283.03 | J41: =IF(B41="","",IFERROR(RTD("cqg.rtd", ,"ContractData",A41, "High",, "T"),"")) -> 283.53 | K41: =IF(B41="","",IFERROR(RTD("cqg.rtd",,"ContractData",A41,"Low",,"T"),"")) -> 278.5 | L41: NYSE Unc Issues | O41: NASDAQ Unc Issues | R41: =IFERROR(RTD("cqg.rtd",,"ContractData",AB41,"LongDescription",,"T")&" ("&RIGHT(AB41,LEN(AB41)-5)&")","") -> Regeneron Pharm Inc (REGN) | U41: =IF(R41="","",IFERROR(RTD("cqg.rtd",,"ContractData",AB41,"LastTrade",,"T"),"")) -> 582.98 | V41: =IF(R41="","",IFERROR(RTD("cqg.rtd", ,"ContractData",AB41, "NetChange",, "T"),"")) -> -1.43 | W41: =IFERROR(RTD("cqg.rtd", ,"ContractData",AB41, "PerCentNetLastTrade",, "T")/100,"") -> -0.007254274232 | X41: =IFERROR(RTD("cqg.rtd",,"StudyData",AB41, "Vol", "VolType=Auto,CoCType=Auto", "Vol","ADC","0","ALL",,,"TRUE","T")/ RTD("cqg.rtd",,"StudyData",AB41, "MA", "InputChoice=ContractVol,MAType=Sim,Period=21", "MA","D","-1","all",,,,"T"),"") -> 0.01271419118 | Y41: =IF(R41="","",IFERROR(RTD("cqg.rtd", ,"ContractData",AB41, "Open",, "T"),"")) -> 586.76 | Z41: =IF(R41="","",IFERROR(RTD("cqg.rtd", ,"ContractData",AB41, "High",, "T"),"")) -> 586.76 | AA41: =IF(R41="","",IFERROR(RTD("cqg.rtd", ,"ContractData",AB41, "Low",, "T"),"")) -> 582.98 | AB41: =NASDAQ100!N5 -> S.US.REGN
A42: =TRIM('S&P500'!N6) -> S.US.NFLX | B42: =IFERROR(RTD("cqg.rtd",,"ContractData",A42,"LongDescription",,"T")&" ("&RIGHT(A42,LEN(A42)-5)&")","") -> Netflix Inc (NFLX) | E42: =IF(B42="","",IFERROR(RTD("cqg.rtd",,"ContractData",A42,"LastTrade",,"T"),"")) -> 524.39 | F42: =IF(B42="","",IFERROR(RTD("cqg.rtd", ,"ContractData",A42, "NetChange",, "T"),"")) -> -6.66 | G42: =IFERROR(RTD("cqg.rtd", ,"ContractData",A42, "PerCentNetLastTrade",, "T")/100,"") -> -0.01254119198 | H42: =IFERROR(RTD("cqg.rtd",,"StudyData",A42, "Vol", "VolType=Auto,CoCType=Auto", "Vol","ADC","0","ALL",,,"TRUE","T")/ RTD("cqg.rtd",,"StudyData",A42, "MA", "InputChoice=ContractVol,MAType=Sim,Period=21", "MA","D","-1","all",,,,"T"),"") -> 0.2300879609 | I42: =IF(B42="","",IFERROR(RTD("cqg.rtd", ,"ContractData",A42, "Open",, "T"),"")) -> 526.13 | J42: =IF(B42="","",IFERROR(RTD("cqg.rtd", ,"ContractData",A42, "High",, "T"),"")) -> 530.99 | K42: =IF(B42="","",IFERROR(RTD("cqg.rtd",,"ContractData",A42,"Low",,"T"),"")) -> 523.32 | R42: =IFERROR(RTD("cqg.rtd",,"ContractData",AB42,"LongDescription",,"T")&" ("&RIGHT(AB42,LEN(AB42)-5)&")","") -> DocuSign, Inc. (DOCU) | U42: =IF(R42="","",IFERROR(RTD("cqg.rtd",,"ContractData",AB42,"LastTrade",,"T"),"")) -> 298.47 | V42: =IF(R42="","",IFERROR(RTD("cqg.rtd", ,"ContractData",AB42, "NetChange",, "T"),"")) -> -0.99 | W42: =IFERROR(RTD("cqg.rtd", ,"ContractData",AB42, "PerCentNetLastTrade",, "T")/100,"") -> -0.009293988781 | X42: =IFERROR(RTD("cqg.rtd",,"StudyData",AB42, "Vol", "VolType=Auto,CoCType=Auto", "Vol","ADC","0","ALL",,,"TRUE","T")/ RTD("cqg.rtd",,"StudyData",AB42, "MA", "InputChoice=ContractVol,MAType=Sim,Period=21", "MA","D","-1","all",,,,"T"),"") -> 0.05367263798 | Y42: =IF(R42="","",IFERROR(RTD("cqg.rtd", ,"ContractData",AB42, "Open",, "T"),"")) -> 300.98 | Z42: =IF(R42="","",IFERROR(RTD("cqg.rtd", ,"ContractData",AB42, "High",, "T"),"")) -> 300.98 | AA42: =IF(R42="","",IFERROR(RTD("cqg.rtd", ,"ContractData",AB42, "Low",, "T"),"")) -> 297.06 | AB42: =NASDAQ100!N6 -> S.US.DOCU
A43: =TRIM('S&P500'!N7) -> S.US.NVR | B43: =IFERROR(RTD("cqg.rtd",,"ContractData",A43,"LongDescription",,"T")&" ("&RIGHT(A43,LEN(A43)-5)&")","") -> NVR Inc (NVR) | E43: =IF(B43="","",IFERROR(RTD("cqg.rtd",,"ContractData",A43,"LastTrade",,"T"),"")) -> 4839.99 | F43: =IF(B43="","",IFERROR(RTD("cqg.rtd", ,"ContractData",A43, "NetChange",, "T"),"")) -> -95.27 | G43: =IFERROR(RTD("cqg.rtd", ,"ContractData",A43, "PerCentNetLastTrade",, "T")/100,"") -> -0.01230136299 | H43: =IFERROR(RTD("cqg.rtd",,"StudyData",A43, "Vol", "VolType=Auto,CoCType=Auto", "Vol","ADC","0","ALL",,,"TRUE","T")/ RTD("cqg.rtd",,"StudyData",A43, "MA", "InputChoice=ContractVol,MAType=Sim,Period=21", "MA","D","-1","all",,,,"T"),"") -> 0.04837883213 | I43: =IF(B43="","",IFERROR(RTD("cqg.rtd", ,"ContractData",A43, "Open",, "T"),"")) -> 4901.49 | J43: =IF(B43="","",IFERROR(RTD("cqg.rtd", ,"ContractData",A43, "High",, "T"),"")) -> 4901.49 | K43: =IF(B43="","",IFERROR(RTD("cqg.rtd",,"ContractData",A43,"Low",,"T"),"")) -> 4800 | L43: =IFERROR(RTD("cqg.rtd", ,"ContractData","DJIUC", "LastTrade",, "T"),"") -> 145 | O43: =IFERROR(RTD("cqg.rtd", ,"ContractData","NASIUC", "LastTrade",, "T"),"") -> 184 | R43: =IFERROR(RTD("cqg.rtd",,"ContractData",AB43,"LongDescription",,"T")&" ("&RIGHT(AB43,LEN(AB43)-5)&")","") -> Workday, Inc. (WDAY) | U43: =IF(R43="","",IFERROR(RTD("cqg.rtd",,"ContractData",AB43,"LastTrade",,"T"),"")) -> 229.23 | V43: =IF(R43="","",IFERROR(RTD("cqg.rtd", ,"ContractData",AB43, "NetChange",, "T"),"")) -> -1.13 | W43: =IFERROR(RTD("cqg.rtd", ,"ContractData",AB43, "PerCentNetLastTrade",, "T")/100,"") -> -0.006931508036 | X43: =IFERROR(RTD("cqg.rtd",,"StudyData",AB43, "Vol", "VolType=Auto,CoCType=Auto", "Vol","ADC","0","ALL",,,"TRUE","T")/ RTD("cqg.rtd",,"StudyData",AB43, "MA", "InputChoice=ContractVol,MAType=Sim,Period=21", "MA","D","-1","all",,,,"T"),"") -> 0.03041327804 | Y43: =IF(R43="","",IFERROR(RTD("cqg.rtd", ,"ContractData",AB43, "Open",, "T"),"")) -> 228.61 | Z43: =IF(R43="","",IFERROR(RTD("cqg.rtd", ,"ContractData",AB43, "High",, "T"),"")) -> 230.11 | AA43: =IF(R43="","",IFERROR(RTD("cqg.rtd", ,"ContractData",AB43, "Low",, "T"),"")) -> 228.12 | AB43: =NASDAQ100!N7 -> S.US.WDAY
A44: =TRIM('S&P500'!N8) -> S.US.EXR | B44: =IFERROR(RTD("cqg.rtd",,"ContractData",A44,"LongDescription",,"T")&" ("&RIGHT(A44,LEN(A44)-5)&")","") -> Extra Space Storage Inc (EXR) | E44: =IF(B44="","",IFERROR(RTD("cqg.rtd",,"ContractData",A44,"LastTrade",,"T"),"")) -> 168.65 | F44: =IF(B44="","",IFERROR(RTD("cqg.rtd", ,"ContractData",A44, "NetChange",, "T"),"")) -> -1.68 | G44: =IFERROR(RTD("cqg.rtd", ,"ContractData",A44, "PerCentNetLastTrade",, "T")/100,"") -> -0.01171989452 | H44: =IFERROR(RTD("cqg.rtd",,"StudyData",A44, "Vol", "VolType=Auto,CoCType=Auto", "Vol","ADC","0","ALL",,,"TRUE","T")/ RTD("cqg.rtd",,"StudyData",A44, "MA", "InputChoice=ContractVol,MAType=Sim,Period=21", "MA","D","-1","all",,,,"T"),"") -> 0.01820137897 | I44: =IF(B44="","",IFERROR(RTD("cqg.rtd", ,"ContractData",A44, "Open",, "T"),"")) -> 170.2 | J44: =IF(B44="","",IFERROR(RTD("cqg.rtd", ,"ContractData",A44, "High",, "T"),"")) -> 170.62 | K44: =IF(B44="","",IFERROR(RTD("cqg.rtd",,"ContractData",A44,"Low",,"T"),"")) -> 168.65 | L44: NYSE Tick | O44: NASDAQ Tick | R44: =IFERROR(RTD("cqg.rtd",,"ContractData",AB44,"LongDescription",,"T")&" ("&RIGHT(AB44,LEN(AB44)-5)&")","") -> Synopsis (SNPS) | U44: =IF(R44="","",IFERROR(RTD("cqg.rtd",,"ContractData",AB44,"LastTrade",,"T"),"")) -> 276.01 | V44: =IF(R44="","",IFERROR(RTD("cqg.rtd", ,"ContractData",AB44, "NetChange",, "T"),"")) -> -1.37 | W44: =IFERROR(RTD("cqg.rtd", ,"ContractData",AB44, "PerCentNetLastTrade",, "T")/100,"") -> -0.006765266832 | X44: =IFERROR(RTD("cqg.rtd",,"StudyData",AB44, "Vol", "VolType=Auto,CoCType=Auto", "Vol","ADC","0","ALL",,,"TRUE","T")/ RTD("cqg.rtd",,"StudyData",AB44, "MA", "InputChoice=ContractVol,MAType=Sim,Period=21", "MA","D","-1","all",,,,"T"),"") -> 0.02977294041 | Y44: =IF(R44="","",IFERROR(RTD("cqg.rtd", ,"ContractData",AB44, "Open",, "T"),"")) -> 277.73 | Z44: =IF(R44="","",IFERROR(RTD("cqg.rtd", ,"ContractData",AB44, "High",, "T"),"")) -> 277.73 | AA44: =IF(R44="","",IFERROR(RTD("cqg.rtd", ,"ContractData",AB44, "Low",, "T"),"")) -> 274.88 | AB44: =NASDAQ100!N8 -> S.US.SNPS
A45: =TRIM('S&P500'!N9) -> S.US.TMO | B45: =IFERROR(RTD("cqg.rtd",,"ContractData",A45,"LongDescription",,"T")&" ("&RIGHT(A45,LEN(A45)-5)&")","") -> Thermo Electron Corp (TMO) | E45: =IF(B45="","",IFERROR(RTD("cqg.rtd",,"ContractData",A45,"LastTrade",,"T"),"")) -> 517.11 | F45: =IF(B45="","",IFERROR(RTD("cqg.rtd", ,"ContractData",A45, "NetChange",, "T"),"")) -> -5.57 | G45: =IFERROR(RTD("cqg.rtd", ,"ContractData",A45, "PerCentNetLastTrade",, "T")/100,"") -> -0.01046729687 | H45: =IFERROR(RTD("cqg.rtd",,"StudyData",A45, "Vol", "VolType=Auto,CoCType=Auto", "Vol","ADC","0","ALL",,,"TRUE","T")/ RTD("cqg.rtd",,"StudyData",A45, "MA", "InputChoice=ContractVol,MAType=Sim,Period=21", "MA","D","-1","all",,,,"T"),"") -> 0.02362774377 | I45: =IF(B45="","",IFERROR(RTD("cqg.rtd", ,"ContractData",A45, "Open",, "T"),"")) -> 522.97 | J45: =IF(B45="","",IFERROR(RTD("cqg.rtd", ,"ContractData",A45, "High",, "T"),"")) -> 522.97 | K45: =IF(B45="","",IFERROR(RTD("cqg.rtd",,"ContractData",A45,"Low",,"T"),"")) -> 517.11 | R45: =IFERROR(RTD("cqg.rtd",,"ContractData",AB45,"LongDescription",,"T")&" ("&RIGHT(AB45,LEN(AB45)-5)&")","") -> Seagen Inc. (SGEN) | U45: =IF(R45="","",IFERROR(RTD("cqg.rtd",,"ContractData",AB45,"LastTrade",,"T"),"")) -> 144.43 | V45: =IF(R45="","",IFERROR(RTD("cqg.rtd", ,"ContractData",AB45, "NetChange",, "T"),"")) -> -0.87 | W45: =IFERROR(RTD("cqg.rtd", ,"ContractData",AB45, "PerCentNetLastTrade",, "T")/100,"") -> -0.005987611838 | X45: =IFERROR(RTD("cqg.rtd",,"StudyData",AB45, "Vol", "VolType=Auto,CoCType=Auto", "Vol","ADC","0","ALL",,,"TRUE","T")/ RTD("cqg.rtd",,"StudyData",AB45, "MA", "InputChoice=ContractVol,MAType=Sim,Period=21", "MA","D","-1","all",,,,"T"),"") -> 0.02874462065 | Y45: =IF(R45="","",IFERROR(RTD("cqg.rtd", ,"ContractData",AB45, "Open",, "T"),"")) -> 144.2 | Z45: =IF(R45="","",IFERROR(RTD("cqg.rtd", ,"ContractData",AB45, "High",, "T"),"")) -> 145.49 | AA45: =IF(R45="","",IFERROR(RTD("cqg.rtd", ,"ContractData",AB45, "Low",, "T"),"")) -> 144.11 | AB45: =NASDAQ100!N9 -> S.US.SGEN
A46: =TRIM('S&P500'!N10) -> S.US.ILMN | B46: =IFERROR(RTD("cqg.rtd",,"ContractData",A46,"LongDescription",,"T")&" ("&RIGHT(A46,LEN(A46)-5)&")","") -> Illumina Inc (ILMN) | E46: =IF(B46="","",IFERROR(RTD("cqg.rtd",,"ContractData",A46,"LastTrade",,"T"),"")) -> 482.34 | F46: =IF(B46="","",IFERROR(RTD("cqg.rtd", ,"ContractData",A46, "NetChange",, "T"),"")) -> -3.27 | G46: =IFERROR(RTD("cqg.rtd", ,"ContractData",A46, "PerCentNetLastTrade",, "T")/100,"") -> -0.01007696254 | H46: =IFERROR(RTD("cqg.rtd",,"StudyData",A46, "Vol", "VolType=Auto,CoCType=Auto", "Vol","ADC","0","ALL",,,"TRUE","T")/ RTD("cqg.rtd",,"StudyData",A46, "MA", "InputChoice=ContractVol,MAType=Sim,Period=21", "MA","D","-1","all",,,,"T"),"") -> 0.02307729898 | I46: =IF(B46="","",IFERROR(RTD("cqg.rtd", ,"ContractData",A46, "Open",, "T"),"")) -> 483.95 | J46: =IF(B46="","",IFERROR(RTD("cqg.rtd", ,"ContractData",A46, "High",, "T"),"")) -> 485.91 | K46: =IF(B46="","",IFERROR(RTD("cqg.rtd",,"ContractData",A46,"Low",,"T"),"")) -> 482.34 | L46: =IFERROR(RTD("cqg.rtd", ,"ContractData","DJTIC", "LastTrade",, "T"),"") -> 553 | O46: =IFERROR(RTD("cqg.rtd", ,"ContractData","NASTIC", "LastTrade",, "T"),"") -> 608 | R46: =IFERROR(RTD("cqg.rtd",,"ContractData",AB46,"LongDescription",,"T")&" ("&RIGHT(AB46,LEN(AB46)-5)&")","") -> ANSYS Inc (ANSS) | U46: =IF(R46="","",IFERROR(RTD("cqg.rtd",,"ContractData",AB46,"LastTrade",,"T"),"")) -> 349.01 | V46: =IF(R46="","",IFERROR(RTD("cqg.rtd", ,"ContractData",AB46, "NetChange",, "T"),"")) -> -1.49 | W46: =IFERROR(RTD("cqg.rtd", ,"ContractData",AB46, "PerCentNetLastTrade",, "T")/100,"") -> -0.005301108673 | X46: =IFERROR(RTD("cqg.rtd",,"StudyData",AB46, "Vol", "VolType=Auto,CoCType=Auto", "Vol","ADC","0","ALL",,,"TRUE","T")/ RTD("cqg.rtd",,"StudyData",AB46, "MA", "InputChoice=ContractVol,MAType=Sim,Period=21", "MA","D","-1","all",,,,"T"),"") -> 0.01445148859 | Y46: =IF(R46="","",IFERROR(RTD("cqg.rtd", ,"ContractData",AB46, "Open",, "T"),"")) -> 350.53 | Z46: =IF(R46="","",IFERROR(RTD("cqg.rtd", ,"ContractData",AB46, "High",, "T"),"")) -> 350.53 | AA46: =IF(R46="","",IFERROR(RTD("cqg.rtd", ,"ContractData",AB46, "Low",, "T"),"")) -> 348.39 | AB46: =NASDAQ100!N10 -> S.US.ANSS
C47: Copyright © 2016 | E47: Designed by Thom Hartle | T47: To better manage performance the dashboard ranking does not update on every quote, but once every
T48: second. Click "Rank" to force an update if the percent net change column is out of order.

Sheet Symbols
E2: Requires Real-Time Data
C3: Left hand display | H3: Right hand display | L3: DJUPV | O3: DJDNV | R3: NASUPV | U3: NASDNV | X3: DJUCV | AA3: NASUCV | AD3: DJIUP | AG3: NASIUP | AJ3: DJIDN | AM3: NASIDN | AP3: DJIUC | AS3: NASIUC | AV3: DJTIC | AY3: NASTIC
C4: Symbols | D4: Description | H4: Symbols | I4: Description | K4: -10 | L4: =RTD("cqg.rtd",,"StudyData",$L$3,"Bar",,"Close","5",K4,,,,,"T") -> 464096 | N4: -10 | O4: =RTD("cqg.rtd",,"StudyData",$O$3,"Bar",,"Close","5",N4,,,,,"T") -> 46175 | Q4: -10 | R4: =RTD("cqg.rtd",,"StudyData",$R$3,"Bar",,"Close","5",Q4,,,,,"T") -> 2531419 | T4: -10 | U4: =RTD("cqg.rtd",,"StudyData",$U$3,"Bar",,"Close","5",T4,,,,,"T") -> 800483 | W4: -10 | X4: =RTD("cqg.rtd",,"StudyData",$X$3,"Bar",,"Close","5",W4,,,,,"T") -> 4217 | Z4: -10 | AA4: =RTD("cqg.rtd",,"StudyData",$AA$3,"Bar",,"Close","5",Z4,,,,,"T") -> 338277 | AC4: -10 | AD4: =RTD("cqg.rtd",,"StudyData",$AD$3,"Bar",,"Close","5",AC4,,,,,"T") -> 2653 | AF4: -10 | AG4: =RTD("cqg.rtd",,"StudyData",$AG$3,"Bar",,"Close","5",AF4,,,,,"T") -> 3436 | AI4: -10 | AJ4: =RTD("cqg.rtd",,"StudyData",$AJ$3,"Bar",,"Close","5",AI4,,,,,"T") -> 449 | AL4: -10 | AM4: =RTD("cqg.rtd",,"StudyData",$AM$3,"Bar",,"Close","5",AL4,,,,,"T") -> 897 | AO4: -10 | AP4: =RTD("cqg.rtd",,"StudyData",$AP$3,"Bar",,"Close","5",AO4,,,,,"T") -> 83 | AR4: -10 | AS4: =RTD("cqg.rtd",,"StudyData",$AS$3,"Bar",,"Close","5",AR4,,,,,"T") -> 146 | AU4: -10 | AV4: =RTD("cqg.rtd",,"StudyData",$AV$3,"Bar",,"Close","5",AU4,,,,,"T") -> -59 | AX4: -10 | AY4: =RTD("cqg.rtd",,"StudyData",$AY$3,"Bar",,"Close","5",AX4,,,,,"T") -> 487
C5: X.US.SPC | D5: =RTD("cqg.rtd", ,"ContractData",C5, "LongDescription",, "T") -> S&P 500 | H5: X.US.NQCOMP | I5: =RTD("cqg.rtd", ,"ContractData",H5, "LongDescription",, "T") -> NASDAQ Composite Index | K5: =K4+1 -> -9 | L5: =RTD("cqg.rtd",,"StudyData",$L$3,"Bar",,"Close","5",K5,,,,,"T") -> 468846 | N5: =N4+1 -> -9 | O5: =RTD("cqg.rtd",,"StudyData",$O$3,"Bar",,"Close","5",N5,,,,,"T") -> 50445 | Q5: =Q4+1 -> -9 | R5: =RTD("cqg.rtd",,"StudyData",$R$3,"Bar",,"Close","5",Q5,,,,,"T") -> 2548853 | T5: =T4+1 -> -9 | U5: =RTD("cqg.rtd",,"StudyData",$U$3,"Bar",,"Close","5",T5,,,,,"T") -> 832499 | W5: =W4+1 -> -9 | X5: =RTD("cqg.rtd",,"StudyData",$X$3,"Bar",,"Close","5",W5,,,,,"T") -> 1139 | Z5: =Z4+1 -> -9 | AA5: =RTD("cqg.rtd",,"StudyData",$AA$3,"Bar",,"Close","5",Z5,,,,,"T") -> 262686 | AC5: =AC4+1 -> -9 | AD5: =RTD("cqg.rtd",,"StudyData",$AD$3,"Bar",,"Close","5",AC5,,,,,"T") -> 2648 | AF5: =AF4+1 -> -9 | AG5: =RTD("cqg.rtd",,"StudyData",$AG$3,"Bar",,"Close","5",AF5,,,,,"T") -> 3422 | AI5: =AI4+1 -> -9 | AJ5: =RTD("cqg.rtd",,"StudyData",$AJ$3,"Bar",,"Close","5",AI5,,,,,"T") -> 450 | AL5: =AL4+1 -> -9 | AM5: =RTD("cqg.rtd",,"StudyData",$AM$3,"Bar",,"Close","5",AL5,,,,,"T") -> 919 | AO5: =AO4+1 -> -9 | AP5: =RTD("cqg.rtd",,"StudyData",$AP$3,"Bar",,"Close","5",AO5,,,,,"T") -> 91 | AR5: =AR4+1 -> -9 | AS5: =RTD("cqg.rtd",,"StudyData",$AS$3,"Bar",,"Close","5",AR5,,,,,"T") -> 148 | AU5: =AU4+1 -> -9 | AV5: =RTD("cqg.rtd",,"StudyData",$AV$3,"Bar",,"Close","5",AU5,,,,,"T") -> 129 | AX5: =AX4+1 -> -9 | AY5: =RTD("cqg.rtd",,"StudyData",$AY$3,"Bar",,"Close","5",AX5,,,,,"T") -> 410
C6: X.US.DJI | D6: =RTD("cqg.rtd", ,"ContractData",C6, "LongDescription",, "T") -> DJ Industrial Average | H6: X.US.NDX | I6: =RTD("cqg.rtd", ,"ContractData",H6, "LongDescription",, "T") -> NASDAQ-100 Index | K6: =K5+1 -> -8 | L6: =RTD("cqg.rtd",,"StudyData",$L$3,"Bar",,"Close","5",K6,,,,,"T") -> 475671 | N6: =N5+1 -> -8 | O6: =RTD("cqg.rtd",,"StudyData",$O$3,"Bar",,"Close","5",N6,,,,,"T") -> 50487 | Q6: =Q5+1 -> -8 | R6: =RTD("cqg.rtd",,"StudyData",$R$3,"Bar",,"Close","5",Q6,,,,,"T") -> 2576317 | T6: =T5+1 -> -8 | U6: =RTD("cqg.rtd",,"StudyData",$U$3,"Bar",,"Close","5",T6,,,,,"T") -> 847614 | W6: =W5+1 -> -8 | X6: =RTD("cqg.rtd",,"StudyData",$X$3,"Bar",,"Close","5",W6,,,,,"T") -> 635 | Z6: =Z5+1 -> -8 | AA6: =RTD("cqg.rtd",,"StudyData",$AA$3,"Bar",,"Close","5",Z6,,,,,"T") -> 214600 | AC6: =AC5+1 -> -8 | AD6: =RTD("cqg.rtd",,"StudyData",$AD$3,"Bar",,"Close","5",AC6,,,,,"T") -> 2655 | AF6: =AF5+1 -> -8 | AG6: =RTD("cqg.rtd",,"StudyData",$AG$3,"Bar",,"Close","5",AF6,,,,,"T") -> 3453 | AI6: =AI5+1 -> -8 | AJ6: =RTD("cqg.rtd",,"StudyData",$AJ$3,"Bar",,"Close","5",AI6,,,,,"T") -> 451 | AL6: =AL5+1 -> -8 | AM6: =RTD("cqg.rtd",,"StudyData",$AM$3,"Bar",,"Close","5",AL6,,,,,"T") -> 905 | AO6: =AO5+1 -> -8 | AP6: =RTD("cqg.rtd",,"StudyData",$AP$3,"Bar",,"Close","5",AO6,,,,,"T") -> 85 | AR6: =AR5+1 -> -8 | AS6: =RTD("cqg.rtd",,"StudyData",$AS$3,"Bar",,"Close","5",AR6,,,,,"T") -> 136 | AU6: =AU5+1 -> -8 | AV6: =RTD("cqg.rtd",,"StudyData",$AV$3,"Bar",,"Close","5",AU6,,,,,"T") -> 236 | AX6: =AX5+1 -> -8 | AY6: =RTD("cqg.rtd",,"StudyData",$AY$3,"Bar",,"Close","5",AX6,,,,,"T") -> 487
C7: S.US.XLF | D7: =RTD("cqg.rtd", ,"ContractData",C7, "LongDescription",, "T") -> Financial Select Sector SPDR | H7: X.US.IXF | I7: =RTD("cqg.rtd", ,"ContractData",H7, "LongDescription",, "T") -> NASDAQ Financial 100 | K7: -7 | L7: =RTD("cqg.rtd",,"StudyData",$L$3,"Bar",,"Close","5",K7,,,,,"T") -> 484731 | N7: -7 | O7: =RTD("cqg.rtd",,"StudyData",$O$3,"Bar",,"Close","5",N7,,,,,"T") -> 49753 | Q7: -7 | R7: =RTD("cqg.rtd",,"StudyData",$R$3,"Bar",,"Close","5",Q7,,,,,"T") -> 2625058 | T7: -7 | U7: =RTD("cqg.rtd",,"StudyData",$U$3,"Bar",,"Close","5",T7,,,,,"T") -> 850115 | W7: -7 | X7: =RTD("cqg.rtd",,"StudyData",$X$3,"Bar",,"Close","5",W7,,,,,"T") -> 1015 | Z7: -7 | AA7: =RTD("cqg.rtd",,"StudyData",$AA$3,"Bar",,"Close","5",Z7,,,,,"T") -> 159811 | AC7: -7 | AD7: =RTD("cqg.rtd",,"StudyData",$AD$3,"Bar",,"Close","5",AC7,,,,,"T") -> 2650 | AF7: -7 | AG7: =RTD("cqg.rtd",,"StudyData",$AG$3,"Bar",,"Close","5",AF7,,,,,"T") -> 3475 | AI7: -7 | AJ7: =RTD("cqg.rtd",,"StudyData",$AJ$3,"Bar",,"Close","5",AI7,,,,,"T") -> 448 | AL7: -7 | AM7: =RTD("cqg.rtd",,"StudyData",$AM$3,"Bar",,"Close","5",AL7,,,,,"T") -> 877 | AO7: -7 | AP7: =RTD("cqg.rtd",,"StudyData",$AP$3,"Bar",,"Close","5",AO7,,,,,"T") -> 94 | AR7: -7 | AS7: =RTD("cqg.rtd",,"StudyData",$AS$3,"Bar",,"Close","5",AR7,,,,,"T") -> 147 | AU7: -7 | AV7: =RTD("cqg.rtd",,"StudyData",$AV$3,"Bar",,"Close","5",AU7,,,,,"T") -> 341 | AX7: -7 | AY7: =RTD("cqg.rtd",,"StudyData",$AY$3,"Bar",,"Close","5",AX7,,,,,"T") -> 520
C8: X.US.BTK | D8: =RTD("cqg.rtd", ,"ContractData",C8, "LongDescription",, "T") -> Biotechnology Index | H8: X.US.NBI | I8: =RTD("cqg.rtd", ,"ContractData",H8, "LongDescription",, "T") -> NASDAQ Biotechnology | K8: -6 | L8: =RTD("cqg.rtd",,"StudyData",$L$3,"Bar",,"Close","5",K8,,,,,"T") -> 496099 | N8: -6 | O8: =RTD("cqg.rtd",,"StudyData",$O$3,"Bar",,"Close","5",N8,,,,,"T") -> 46204 | Q8: -6 | R8: =RTD("cqg.rtd",,"StudyData",$R$3,"Bar",,"Close","5",Q8,,,,,"T") -> 2697008 | T8: -6 | U8: =RTD("cqg.rtd",,"StudyData",$U$3,"Bar",,"Close","5",T8,,,,,"T") -> 825616 | W8: -6 | X8: =RTD("cqg.rtd",,"StudyData",$X$3,"Bar",,"Close","5",W8,,,,,"T") -> 1760 | Z8: -6 | AA8: =RTD("cqg.rtd",,"StudyData",$AA$3,"Bar",,"Close","5",Z8,,,,,"T") -> 166760 | AC8: -6 | AD8: =RTD("cqg.rtd",,"StudyData",$AD$3,"Bar",,"Close","5",AC8,,,,,"T") -> 2662 | AF8: -6 | AG8: =RTD("cqg.rtd",,"StudyData",$AG$3,"Bar",,"Close","5",AF8,,,,,"T") -> 3502 | AI8: -6 | AJ8: =RTD("cqg.rtd",,"StudyData",$AJ$3,"Bar",,"Close","5",AI8,,,,,"T") -> 443 | AL8: -6 | AM8: =RTD("cqg.rtd",,"StudyData",$AM$3,"Bar",,"Close","5",AL8,,,,,"T") -> 861 | AO8: -6 | AP8: =RTD("cqg.rtd",,"StudyData",$AP$3,"Bar",,"Close","5",AO8,,,,,"T") -> 91 | AR8: -6 | AS8: =RTD("cqg.rtd",,"StudyData",$AS$3,"Bar",,"Close","5",AR8,,,,,"T") -> 141 | AU8: -6 | AV8: =RTD("cqg.rtd",,"StudyData",$AV$3,"Bar",,"Close","5",AU8,,,,,"T") -> 285 | AX8: -6 | AY8: =RTD("cqg.rtd",,"StudyData",$AY$3,"Bar",,"Close","5",AX8,,,,,"T") -> 507
C9: X.US.NYPID | D9: =RTD("cqg.rtd", ,"ContractData",C9, "LongDescription",, "T") -> NYSE Healthcare Index | H9: X.US.NHC | I9: =RTD("cqg.rtd", ,"ContractData",H9, "LongDescription",, "T") -> Nasdaq Health Care Index | K9: -5 | L9: =RTD("cqg.rtd",,"StudyData",$L$3,"Bar",,"Close","5",K9,,,,,"T") -> 505145 | N9: -5 | O9: =RTD("cqg.rtd",,"StudyData",$O$3,"Bar",,"Close","5",N9,,,,,"T") -> 47770 | Q9: -5 | R9: =RTD("cqg.rtd",,"StudyData",$R$3,"Bar",,"Close","5",Q9,,,,,"T") -> 2715912 | T9: -5 | U9: =RTD("cqg.rtd",,"StudyData",$U$3,"Bar",,"Close","5",T9,,,,,"T") -> 851278 | W9: -5 | X9: =RTD("cqg.rtd",,"StudyData",$X$3,"Bar",,"Close","5",W9,,,,,"T") -> 1823 | Z9: -5 | AA9: =RTD("cqg.rtd",,"StudyData",$AA$3,"Bar",,"Close","5",Z9,,,,,"T") -> 216859 | AC9: -5 | AD9: =RTD("cqg.rtd",,"StudyData",$AD$3,"Bar",,"Close","5",AC9,,,,,"T") -> 2659 | AF9: -5 | AG9: =RTD("cqg.rtd",,"StudyData",$AG$3,"Bar",,"Close","5",AF9,,,,,"T") -> 3504 | AI9: -5 | AJ9: =RTD("cqg.rtd",,"StudyData",$AJ$3,"Bar",,"Close","5",AI9,,,,,"T") -> 449 | AL9: -5 | AM9: =RTD("cqg.rtd",,"StudyData",$AM$3,"Bar",,"Close","5",AL9,,,,,"T") -> 861 | AO9: -5 | AP9: =RTD("cqg.rtd",,"StudyData",$AP$3,"Bar",,"Close","5",AO9,,,,,"T") -> 93 | AR9: -5 | AS9: =RTD("cqg.rtd",,"StudyData",$AS$3,"Bar",,"Close","5",AR9,,,,,"T") -> 142 | AU9: -5 | AV9: =RTD("cqg.rtd",,"StudyData",$AV$3,"Bar",,"Close","5",AU9,,,,,"T") -> -63 | AX9: -5 | AY9: =RTD("cqg.rtd",,"StudyData",$AY$3,"Bar",,"Close","5",AX9,,,,,"T") -> 531
C10: X.US.IXE | D10: =RTD("cqg.rtd", ,"ContractData",C10, "LongDescription",, "T") -> S&P 500 Select Sector Energy Index | H10: X.US.OSX | I10: =RTD("cqg.rtd", ,"ContractData",H10, "LongDescription",, "T") -> PHLX Oil Service Sector | K10: -4 | L10: =RTD("cqg.rtd",,"StudyData",$L$3,"Bar",,"Close","5",K10,,,,,"T") -> 516489 | N10: -4 | O10: =RTD("cqg.rtd",,"StudyData",$O$3,"Bar",,"Close","5",N10,,,,,"T") -> 49145 | Q10: -4 | R10: =RTD("cqg.rtd",,"StudyData",$R$3,"Bar",,"Close","5",Q10,,,,,"T") -> 2814125 | T10: -4 | U10: =RTD("cqg.rtd",,"StudyData",$U$3,"Bar",,"Close","5",T10,,,,,"T") -> 817285 | W10: -4 | X10: =RTD("cqg.rtd",,"StudyData",$X$3,"Bar",,"Close","5",W10,,,,,"T") -> 1752 | Z10: -4 | AA10: =RTD("cqg.rtd",,"StudyData",$AA$3,"Bar",,"Close","5",Z10,,,,,"T") -> 132209 | AC10: -4 | AD10: =RTD("cqg.rtd",,"StudyData",$AD$3,"Bar",,"Close","5",AC10,,,,,"T") -> 2654 | AF10: -4 | AG10: =RTD("cqg.rtd",,"StudyData",$AG$3,"Bar",,"Close","5",AF10,,,,,"T") -> 3518 | AI10: -4 | AJ10: =RTD("cqg.rtd",,"StudyData",$AJ$3,"Bar",,"Close","5",AI10,,,,,"T") -> 461 | AL10: -4 | AM10: =RTD("cqg.rtd",,"StudyData",$AM$3,"Bar",,"Close","5",AL10,,,,,"T") -> 854 | AO10: -4 | AP10: =RTD("cqg.rtd",,"StudyData",$AP$3,"Bar",,"Close","5",AO10,,,,,"T") -> 87 | AR10: -4 | AS10: =RTD("cqg.rtd",,"StudyData",$AS$3,"Bar",,"Close","5",AR10,,,,,"T") -> 142 | AU10: -4 | AV10: =RTD("cqg.rtd",,"StudyData",$AV$3,"Bar",,"Close","5",AU10,,,,,"T") -> -104 | AX10: -4 | AY10: =RTD("cqg.rtd",,"StudyData",$AY$3,"Bar",,"Close","5",AX10,,,,,"T") -> 514
C11: S.US.BAC | D11: =RTD("cqg.rtd", ,"ContractData",C11, "LongDescription",, "T") -> Bank of America Corp | H11: S.US.XLE | I11: =RTD("cqg.rtd", ,"ContractData",H11, "LongDescription",, "T") -> Energy Select Sector SPDR | K11: -3 | L11: =RTD("cqg.rtd",,"StudyData",$L$3,"Bar",,"Close","5",K11,,,,,"T") -> 530641 | N11: -3 | O11: =RTD("cqg.rtd",,"StudyData",$O$3,"Bar",,"Close","5",N11,,,,,"T") -> 49689 | Q11: -3 | R11: =RTD("cqg.rtd",,"StudyData",$R$3,"Bar",,"Close","5",Q11,,,,,"T") -> 2871018 | T11: -3 | U11: =RTD("cqg.rtd",,"StudyData",$U$3,"Bar",,"Close","5",T11,,,,,"T") -> 822539 | W11: -3 | X11: =RTD("cqg.rtd",,"StudyData",$X$3,"Bar",,"Close","5",W11,,,,,"T") -> 1155 | Z11: -3 | AA11: =RTD("cqg.rtd",,"StudyData",$AA$3,"Bar",,"Close","5",Z11,,,,,"T") -> 152218 | AC11: -3 | AD11: =RTD("cqg.rtd",,"StudyData",$AD$3,"Bar",,"Close","5",AC11,,,,,"T") -> 2648 | AF11: -3 | AG11: =RTD("cqg.rtd",,"StudyData",$AG$3,"Bar",,"Close","5",AF11,,,,,"T") -> 3532 | AI11: -3 | AJ11: =RTD("cqg.rtd",,"StudyData",$AJ$3,"Bar",,"Close","5",AI11,,,,,"T") -> 466 | AL11: -3 | AM11: =RTD("cqg.rtd",,"StudyData",$AM$3,"Bar",,"Close","5",AL11,,,,,"T") -> 851 | AO11: -3 | AP11: =RTD("cqg.rtd",,"StudyData",$AP$3,"Bar",,"Close","5",AO11,,,,,"T") -> 94 | AR11: -3 | AS11: =RTD("cqg.rtd",,"StudyData",$AS$3,"Bar",,"Close","5",AR11,,,,,"T") -> 140 | AU11: -3 | AV11: =RTD("cqg.rtd",,"StudyData",$AV$3,"Bar",,"Close","5",AU11,,,,,"T") -> 477 | AX11: -3 | AY11: =RTD("cqg.rtd",,"StudyData",$AY$3,"Bar",,"Close","5",AX11,,,,,"T") -> 518
C12: S.US.RSP | D12: =RTD("cqg.rtd", ,"ContractData",C12, "LongDescription",, "T") -> Invesco S&P 500 Equal Weight ETF | H12: S.US.AAPL | I12: =RTD("cqg.rtd", ,"ContractData",H12, "LongDescription",, "T") -> Apple Inc | K12: -2 | L12: =RTD("cqg.rtd",,"StudyData",$L$3,"Bar",,"Close","5",K12,,,,,"T") -> 550253 | N12: -2 | O12: =RTD("cqg.rtd",,"StudyData",$O$3,"Bar",,"Close","5",N12,,,,,"T") -> 54049 | Q12: -2 | R12: =RTD("cqg.rtd",,"StudyData",$R$3,"Bar",,"Close","5",Q12,,,,,"T") -> 2890373 | T12: -2 | U12: =RTD("cqg.rtd",,"StudyData",$U$3,"Bar",,"Close","5",T12,,,,,"T") -> 918620 | W12: -2 | X12: =RTD("cqg.rtd",,"StudyData",$X$3,"Bar",,"Close","5",W12,,,,,"T") -> 3679 | Z12: -2 | AA12: =RTD("cqg.rtd",,"StudyData",$AA$3,"Bar",,"Close","5",Z12,,,,,"T") -> 178340 | AC12: -2 | AD12: =RTD("cqg.rtd",,"StudyData",$AD$3,"Bar",,"Close","5",AC12,,,,,"T") -> 2643 | AF12: -2 | AG12: =RTD("cqg.rtd",,"StudyData",$AG$3,"Bar",,"Close","5",AF12,,,,,"T") -> 3504 | AI12: -2 | AJ12: =RTD("cqg.rtd",,"StudyData",$AJ$3,"Bar",,"Close","5",AI12,,,,,"T") -> 475 | AL12: -2 | AM12: =RTD("cqg.rtd",,"StudyData",$AM$3,"Bar",,"Close","5",AL12,,,,,"T") -> 881 | AO12: -2 | AP12: =RTD("cqg.rtd",,"StudyData",$AP$3,"Bar",,"Close","5",AO12,,,,,"T") -> 91 | AR12: -2 | AS12: =RTD("cqg.rtd",,"StudyData",$AS$3,"Bar",,"Close","5",AR12,,,,,"T") -> 144 | AU12: -2 | AV12: =RTD("cqg.rtd",,"StudyData",$AV$3,"Bar",,"Close","5",AU12,,,,,"T") -> -231 | AX12: -2 | AY12: =RTD("cqg.rtd",,"StudyData",$AY$3,"Bar",,"Close","5",AX12,,,,,"T") -> 291
C13: S.US.SPY | D13: =RTD("cqg.rtd", ,"ContractData",C13, "LongDescription",, "T") -> SPDR S&P 500 | H13: S.US.TSLA | I13: =RTD("cqg.rtd", ,"ContractData",H13, "LongDescription",, "T") -> Tesla, Inc. | K13: -1 | L13: =RTD("cqg.rtd",,"StudyData",$L$3,"Bar",,"Close","5",K13,,,,,"T") -> 612721 | N13: -1 | O13: =RTD("cqg.rtd",,"StudyData",$O$3,"Bar",,"Close","5",N13,,,,,"T") -> 65081 | Q13: -1 | R13: =RTD("cqg.rtd",,"StudyData",$R$3,"Bar",,"Close","5",Q13,,,,,"T") -> 3419111 | T13: -1 | U13: =RTD("cqg.rtd",,"StudyData",$U$3,"Bar",,"Close","5",T13,,,,,"T") -> 1064665 | W13: -1 | X13: =RTD("cqg.rtd",,"StudyData",$X$3,"Bar",,"Close","5",W13,,,,,"T") -> 3406 | Z13: -1 | AA13: =RTD("cqg.rtd",,"StudyData",$AA$3,"Bar",,"Close","5",Z13,,,,,"T") -> 358136 | AC13: -1 | AD13: =RTD("cqg.rtd",,"StudyData",$AD$3,"Bar",,"Close","5",AC13,,,,,"T") -> 2629 | AF13: -1 | AG13: =RTD("cqg.rtd",,"StudyData",$AG$3,"Bar",,"Close","5",AF13,,,,,"T") -> 3400 | AI13: -1 | AJ13: =RTD("cqg.rtd",,"StudyData",$AJ$3,"Bar",,"Close","5",AI13,,,,,"T") -> 486 | AL13: -1 | AM13: =RTD("cqg.rtd",,"StudyData",$AM$3,"Bar",,"Close","5",AL13,,,,,"T") -> 969 | AO13: -1 | AP13: =RTD("cqg.rtd",,"StudyData",$AP$3,"Bar",,"Close","5",AO13,,,,,"T") -> 100 | AR13: -1 | AS13: =RTD("cqg.rtd",,"StudyData",$AS$3,"Bar",,"Close","5",AR13,,,,,"T") -> 178 | AU13: -1 | AV13: =RTD("cqg.rtd",,"StudyData",$AV$3,"Bar",,"Close","5",AU13,,,,,"T") -> -310 | AX13: -1 | AY13: =RTD("cqg.rtd",,"StudyData",$AY$3,"Bar",,"Close","5",AX13,,,,,"T") -> -3
C14: F.US.EP | D14: =RTD("cqg.rtd", ,"ContractData",C14, "LongDescription",, "T") -> E-Mini S&P 500, Sep 21 | H14: S.US.MU | I14: =RTD("cqg.rtd", ,"ContractData",H14, "LongDescription",, "T") -> Micron Technology Inc | K14: =K13+1 -> 0 | L14: =RTD("cqg.rtd",,"StudyData",$L$3,"Bar",,"Close","5",K14,,,,,"T") -> 38564 | N14: 0 | O14: =RTD("cqg.rtd",,"StudyData",$O$3,"Bar",,"Close","5",N14,,,,,"T") -> 8228 | Q14: 0 | R14: =RTD("cqg.rtd",,"StudyData",$R$3,"Bar",,"Close","5",Q14,,,,,"T") -> 168809 | T14: 0 | U14: =RTD("cqg.rtd",,"StudyData",$U$3,"Bar",,"Close","5",T14,,,,,"T") -> 49478 | W14: 0 | X14: =RTD("cqg.rtd",,"StudyData",$X$3,"Bar",,"Close","5",W14,,,,,"T") -> 658 | Z14: 0 | AA14: =RTD("cqg.rtd",,"StudyData",$AA$3,"Bar",,"Close","5",Z14,,,,,"T") -> 15322 | AC14: 0 | AD14: =RTD("cqg.rtd",,"StudyData",$AD$3,"Bar",,"Close","5",AC14,,,,,"T") -> 2096 | AF14: 0 | AG14: =RTD("cqg.rtd",,"StudyData",$AG$3,"Bar",,"Close","5",AF14,,,,,"T") -> 2406 | AI14: 0 | AJ14: =RTD("cqg.rtd",,"StudyData",$AJ$3,"Bar",,"Close","5",AI14,,,,,"T") -> 535 | AL14: 0 | AM14: =RTD("cqg.rtd",,"StudyData",$AM$3,"Bar",,"Close","5",AL14,,,,,"T") -> 901 | AO14: 0 | AP14: =RTD("cqg.rtd",,"StudyData",$AP$3,"Bar",,"Close","5",AO14,,,,,"T") -> 145 | AR14: 0 | AS14: =RTD("cqg.rtd",,"StudyData",$AS$3,"Bar",,"Close","5",AR14,,,,,"T") -> 184 | AU14: 0 | AV14: =RTD("cqg.rtd",,"StudyData",$AV$3,"Bar",,"Close","5",AU14,,,,,"T") -> 553 | AX14: 0 | AY14: =RTD("cqg.rtd",,"StudyData",$AY$3,"Bar",,"Close","5",AX14,,,,,"T") -> 608
C15: F.US.CLE | D15: =RTD("cqg.rtd", ,"ContractData",C15, "LongDescription",, "T") -> Crude Light (Globex), Sep 21 | H15: S.US.QQQ | I15: =RTD("cqg.rtd", ,"ContractData",H15, "LongDescription",, "T") -> Invesco QQQ Trust Series 1
C16: F.US.HOE | D16: =RTD("cqg.rtd", ,"ContractData",C16, "LongDescription",, "T") -> NY Harbor ULSD, Sep 21 | H16: S.US.CSCO | I16: =RTD("cqg.rtd", ,"ContractData",H16, "LongDescription",, "T") -> Cisco Systems Inc
C17: F.US.RBE | D17: =RTD("cqg.rtd", ,"ContractData",C17, "LongDescription",, "T") -> RBOB Gasoline (Globex), Sep 21 | H17: S.US.FB | I17: =RTD("cqg.rtd", ,"ContractData",H17, "LongDescription",, "T") -> Facebook, Inc. | K17: -24 | L17: =RTD("cqg.rtd",,"StudyData",$C$5,"Bar",,"Time","5",K17,,,,,"T") -> 44397.55208 | M17: =RTD("cqg.rtd",,"StudyData",$C$5,"Bar",,"Open","5",K17,,,,,"T") -> 4328.94 | N17: =RTD("cqg.rtd",,"StudyData",$C$5,"Bar",,"High","5",K17,,,,,"T") -> 4330.97 | O17: =RTD("cqg.rtd",,"StudyData",$C$5,"Bar",,"Low","5",K17,,,,,"T") -> 4328.94 | P17: =RTD("cqg.rtd",,"StudyData",$C$5,"Bar",,"Close","5",K17,,,,,"T") -> 4330.45 | R17: -24 | S17: =RTD("cqg.rtd",,"StudyData",$H$5,"Bar",,"Time","5",R17,,,,,"T") -> 44397.54167 | T17: =RTD("cqg.rtd",,"StudyData",$H$5,"Bar",,"Open","5",R17,,,,,"T") -> 14496.54 | U17: =RTD("cqg.rtd",,"StudyData",$H$5,"Bar",,"High","5",R17,,,,,"T") -> 14508.82 | V17: =RTD("cqg.rtd",,"StudyData",$H$5,"Bar",,"Low","5",R17,,,,,"T") -> 14496.22 | W17: =RTD("cqg.rtd",,"StudyData",$H$5,"Bar",,"Close","5",R17,,,,,"T") -> 14508.06
C18: F.US.GCE | D18: =RTD("cqg.rtd", ,"ContractData",C18, "LongDescription",, "T") -> Gold (Globex), Aug 21 | H18: S.US.TLT | I18: =RTD("cqg.rtd", ,"ContractData",H18, "LongDescription",, "T") -> iShares 20+ Year Treasury Bond ETF | K18: =K17+1 -> -23 | L18: =RTD("cqg.rtd",,"StudyData",$C$5,"Bar",,"Time","5",K18,,,,,"T") -> 44397.55556 | M18: =RTD("cqg.rtd",,"StudyData",$C$5,"Bar",,"Open","5",K18,,,,,"T") -> 4330.46 | N18: =RTD("cqg.rtd",,"StudyData",$C$5,"Bar",,"High","5",K18,,,,,"T") -> 4330.87 | O18: =RTD("cqg.rtd",,"StudyData",$C$5,"Bar",,"Low","5",K18,,,,,"T") -> 4328.87 | P18: =RTD("cqg.rtd",,"StudyData",$C$5,"Bar",,"Close","5",K18,,,,,"T") -> 4329.63 | R18: =R17+1 -> -23 | S18: =RTD("cqg.rtd",,"StudyData",$H$5,"Bar",,"Time","5",R18,,,,,"T") -> 44397.54514 | T18: =RTD("cqg.rtd",,"StudyData",$H$5,"Bar",,"Open","5",R18,,,,,"T") -> 14508.09 | U18: =RTD("cqg.rtd",,"StudyData",$H$5,"Bar",,"High","5",R18,,,,,"T") -> 14515.8 | V18: =RTD("cqg.rtd",,"StudyData",$H$5,"Bar",,"Low","5",R18,,,,,"T") -> 14506.99 | W18: =RTD("cqg.rtd",,"StudyData",$H$5,"Bar",,"Close","5",R18,,,,,"T") -> 14515.6
C19: F.US.DD | D19: =RTD("cqg.rtd", ,"ContractData",C19, "LongDescription",, "T") -> DAX Index, Sep 21 | H19: S.US.INTC | I19: =RTD("cqg.rtd", ,"ContractData",H19, "LongDescription",, "T") -> Intel Corporation | K19: =K18+1 -> -22 | L19: =RTD("cqg.rtd",,"StudyData",$C$5,"Bar",,"Time","5",K19,,,,,"T") -> 44397.55903 | M19: =RTD("cqg.rtd",,"StudyData",$C$5,"Bar",,"Open","5",K19,,,,,"T") -> 4329.64 | N19: =RTD("cqg.rtd",,"StudyData",$C$5,"Bar",,"High","5",K19,,,,,"T") -> 4330.93 | O19: =RTD("cqg.rtd",,"StudyData",$C$5,"Bar",,"Low","5",K19,,,,,"T") -> 4329.3 | P19: =RTD("cqg.rtd",,"StudyData",$C$5,"Bar",,"Close","5",K19,,,,,"T") -> 4330.7 | R19: =R18+1 -> -22 | S19: =RTD("cqg.rtd",,"StudyData",$H$5,"Bar",,"Time","5",R19,,,,,"T") -> 44397.54861 | T19: =RTD("cqg.rtd",,"StudyData",$H$5,"Bar",,"Open","5",R19,,,,,"T") -> 14516.01 | U19: =RTD("cqg.rtd",,"StudyData",$H$5,"Bar",,"High","5",R19,,,,,"T") -> 14523.12 | V19: =RTD("cqg.rtd",,"StudyData",$H$5,"Bar",,"Low","5",R19,,,,,"T") -> 14515.8 | W19: =RTD("cqg.rtd",,"StudyData",$H$5,"Bar",,"Close","5",R19,,,,,"T") -> 14517.33
C20: F.US.DSX | D20: =RTD("cqg.rtd", ,"ContractData",C20, "LongDescription",, "T") -> Euro STOXX 50, Sep 21 | H20: S.US.QCOM | I20: =RTD("cqg.rtd", ,"ContractData",H20, "LongDescription",, "T") -> QUALCOMM Inc | K20: -21 | L20: =RTD("cqg.rtd",,"StudyData",$C$5,"Bar",,"Time","5",K20,,,,,"T") -> 44397.5625 | M20: =RTD("cqg.rtd",,"StudyData",$C$5,"Bar",,"Open","5",K20,,,,,"T") -> 4330.71 | N20: =RTD("cqg.rtd",,"StudyData",$C$5,"Bar",,"High","5",K20,,,,,"T") -> 4331.92 | O20: =RTD("cqg.rtd",,"StudyData",$C$5,"Bar",,"Low","5",K20,,,,,"T") -> 4330.54 | P20: =RTD("cqg.rtd",,"StudyData",$C$5,"Bar",,"Close","5",K20,,,,,"T") -> 4330.54 | R20: -21 | S20: =RTD("cqg.rtd",,"StudyData",$H$5,"Bar",,"Time","5",R20,,,,,"T") -> 44397.55208 | T20: =RTD("cqg.rtd",,"StudyData",$H$5,"Bar",,"Open","5",R20,,,,,"T") -> 14517.4 | U20: =RTD("cqg.rtd",,"StudyData",$H$5,"Bar",,"High","5",R20,,,,,"T") -> 14521.64 | V20: =RTD("cqg.rtd",,"StudyData",$H$5,"Bar",,"Low","5",R20,,,,,"T") -> 14516.19 | W20: =RTD("cqg.rtd",,"StudyData",$H$5,"Bar",,"Close","5",R20,,,,,"T") -> 14520.49
C21: S.SPLV | D21: =RTD("cqg.rtd", ,"ContractData",C21, "LongDescription",, "T") -> PowerShares Exchange-Traded Fund Trust II | H21: S.US.AAL | I21: =RTD("cqg.rtd", ,"ContractData",H21, "LongDescription",, "T") -> American Airlines Group Inc. | K21: -20 | L21: =RTD("cqg.rtd",,"StudyData",$C$5,"Bar",,"Time","5",K21,,,,,"T") -> 44397.56597 | M21: =RTD("cqg.rtd",,"StudyData",$C$5,"Bar",,"Open","5",K21,,,,,"T") -> 4330.55 | N21: =RTD("cqg.rtd",,"StudyData",$C$5,"Bar",,"High","5",K21,,,,,"T") -> 4331.54 | O21: =RTD("cqg.rtd",,"StudyData",$C$5,"Bar",,"Low","5",K21,,,,,"T") -> 4329.27 | P21: =RTD("cqg.rtd",,"StudyData",$C$5,"Bar",,"Close","5",K21,,,,,"T") -> 4329.27 | R21: -20 | S21: =RTD("cqg.rtd",,"StudyData",$H$5,"Bar",,"Time","5",R21,,,,,"T") -> 44397.55556 | T21: =RTD("cqg.rtd",,"StudyData",$H$5,"Bar",,"Open","5",R21,,,,,"T") -> 14520.6 | U21: =RTD("cqg.rtd",,"StudyData",$H$5,"Bar",,"High","5",R21,,,,,"T") -> 14526.13 | V21: =RTD("cqg.rtd",,"StudyData",$H$5,"Bar",,"Low","5",R21,,,,,"T") -> 14518.63 | W21: =RTD("cqg.rtd",,"StudyData",$H$5,"Bar",,"Close","5",R21,,,,,"T") -> 14521.63
K22: -19 | L22: =RTD("cqg.rtd",,"StudyData",$C$5,"Bar",,"Time","5",K22,,,,,"T") -> 44397.56944 | M22: =RTD("cqg.rtd",,"StudyData",$C$5,"Bar",,"Open","5",K22,,,,,"T") -> 4329.14 | N22: =RTD("cqg.rtd",,"StudyData",$C$5,"Bar",,"High","5",K22,,,,,"T") -> 4331.46 | O22: =RTD("cqg.rtd",,"StudyData",$C$5,"Bar",,"Low","5",K22,,,,,"T") -> 4328.75 | P22: =RTD("cqg.rtd",,"StudyData",$C$5,"Bar",,"Close","5",K22,,,,,"T") -> 4329.75 | R22: -19 | S22: =RTD("cqg.rtd",,"StudyData",$H$5,"Bar",,"Time","5",R22,,,,,"T") -> 44397.55903 | T22: =RTD("cqg.rtd",,"StudyData",$H$5,"Bar",,"Open","5",R22,,,,,"T") -> 14521.62 | U22: =RTD("cqg.rtd",,"StudyData",$H$5,"Bar",,"High","5",R22,,,,,"T") -> 14533.21 | V22: =RTD("cqg.rtd",,"StudyData",$H$5,"Bar",,"Low","5",R22,,,,,"T") -> 14520.96 | W22: =RTD("cqg.rtd",,"StudyData",$H$5,"Bar",,"Close","5",R22,,,,,"T") -> 14533.1
C23: Enter in the symbols you require. | K23: -18 | L23: =RTD("cqg.rtd",,"StudyData",$C$5,"Bar",,"Time","5",K23,,,,,"T") -> 44397.57292 | M23: =RTD("cqg.rtd",,"StudyData",$C$5,"Bar",,"Open","5",K23,,,,,"T") -> 4329.72 | N23: =RTD("cqg.rtd",,"StudyData",$C$5,"Bar",,"High","5",K23,,,,,"T") -> 4329.95 | O23: =RTD("cqg.rtd",,"StudyData",$C$5,"Bar",,"Low","5",K23,,,,,"T") -> 4327.25 | P23: =RTD("cqg.rtd",,"StudyData",$C$5,"Bar",,"Close","5",K23,,,,,"T") -> 4328.86 | R23: -18 | S23: =RTD("cqg.rtd",,"StudyData",$H$5,"Bar",,"Time","5",R23,,,,,"T") -> 44397.5625 | T23: =RTD("cqg.rtd",,"StudyData",$H$5,"Bar",,"Open","5",R23,,,,,"T") -> 14533.04 | U23: =RTD("cqg.rtd",,"StudyData",$H$5,"Bar",,"High","5",R23,,,,,"T") -> 14538.28 | V23: =RTD("cqg.rtd",,"StudyData",$H$5,"Bar",,"Low","5",R23,,,,,"T") -> 14533 | W23: =RTD("cqg.rtd",,"StudyData",$H$5,"Bar",,"Close","5",R23,,,,,"T") -> 14533.22
C24: The two charts in the center top of the main page use the first symbol in the Left Hand and Right Hand Display columns above. | K24: -17 | L24: =RTD("cqg.rtd",,"StudyData",$C$5,"Bar",,"Time","5",K24,,,,,"T") -> 44397.57639 | M24: =RTD("cqg.rtd",,"StudyData",$C$5,"Bar",,"Open","5",K24,,,,,"T") -> 4328.86 | N24: =RTD("cqg.rtd",,"StudyData",$C$5,"Bar",,"High","5",K24,,,,,"T") -> 4330.93 | O24: =RTD("cqg.rtd",,"StudyData",$C$5,"Bar",,"Low","5",K24,,,,,"T") -> 4328.63 | P24: =RTD("cqg.rtd",,"StudyData",$C$5,"Bar",,"Close","5",K24,,,,,"T") -> 4329.85 | R24: -17 | S24: =RTD("cqg.rtd",,"StudyData",$H$5,"Bar",,"Time","5",R24,,,,,"T") -> 44397.56597 | T24: =RTD("cqg.rtd",,"StudyData",$H$5,"Bar",,"Open","5",R24,,,,,"T") -> 14533.18 | U24: =RTD("cqg.rtd",,"StudyData",$H$5,"Bar",,"High","5",R24,,,,,"T") -> 14533.54 | V24: =RTD("cqg.rtd",,"StudyData",$H$5,"Bar",,"Low","5",R24,,,,,"T") -> 14523.69 | W24: =RTD("cqg.rtd",,"StudyData",$H$5,"Bar",,"Close","5",R24,,,,,"T") -> 14524.53
K25: -16 | L25: =RTD("cqg.rtd",,"StudyData",$C$5,"Bar",,"Time","5",K25,,,,,"T") -> 44397.57986 | M25: =RTD("cqg.rtd",,"StudyData",$C$5,"Bar",,"Open","5",K25,,,,,"T") -> 4329.72 | N25: =RTD("cqg.rtd",,"StudyData",$C$5,"Bar",,"High","5",K25,,,,,"T") -> 4329.83 | O25: =RTD("cqg.rtd",,"StudyData",$C$5,"Bar",,"Low","5",K25,,,,,"T") -> 4327.7 | P25: =RTD("cqg.rtd",,"StudyData",$C$5,"Bar",,"Close","5",K25,,,,,"T") -> 4328.3 | R25: -16 | S25: =RTD("cqg.rtd",,"StudyData",$H$5,"Bar",,"Time","5",R25,,,,,"T") -> 44397.56944 | T25: =RTD("cqg.rtd",,"StudyData",$H$5,"Bar",,"Open","5",R25,,,,,"T") -> 14524.57 | U25: =RTD("cqg.rtd",,"StudyData",$H$5,"Bar",,"High","5",R25,,,,,"T") -> 14529.03 | V25: =RTD("cqg.rtd",,"StudyData",$H$5,"Bar",,"Low","5",R25,,,,,"T") -> 14517.33 | W25: =RTD("cqg.rtd",,"StudyData",$H$5,"Bar",,"Close","5",R25,,,,,"T") -> 14520.12
K26: -15 | L26: =RTD("cqg.rtd",,"StudyData",$C$5,"Bar",,"Time","5",K26,,,,,"T") -> 44397.58333 | M26: =RTD("cqg.rtd",,"StudyData",$C$5,"Bar",,"Open","5",K26,,,,,"T") -> 4328.35 | N26: =RTD("cqg.rtd",,"StudyData",$C$5,"Bar",,"High","5",K26,,,,,"T") -> 4330.86 | O26: =RTD("cqg.rtd",,"StudyData",$C$5,"Bar",,"Low","5",K26,,,,,"T") -> 4328.35 | P26: =RTD("cqg.rtd",,"StudyData",$C$5,"Bar",,"Close","5",K26,,,,,"T") -> 4330.66 | R26: -15 | S26: =RTD("cqg.rtd",,"StudyData",$H$5,"Bar",,"Time","5",R26,,,,,"T") -> 44397.57292 | T26: =RTD("cqg.rtd",,"StudyData",$H$5,"Bar",,"Open","5",R26,,,,,"T") -> 14520.14 | U26: =RTD("cqg.rtd",,"StudyData",$H$5,"Bar",,"High","5",R26,,,,,"T") -> 14523.33 | V26: =RTD("cqg.rtd",,"StudyData",$H$5,"Bar",,"Low","5",R26,,,,,"T") -> 14513.18 | W26: =RTD("cqg.rtd",,"StudyData",$H$5,"Bar",,"Close","5",R26,,,,,"T") -> 14523.33
C27: When entering symbols the "F.US." for futures or the "S.US." for stocks or the "X.US." for indicies are required. | K27: -14 | L27: =RTD("cqg.rtd",,"StudyData",$C$5,"Bar",,"Time","5",K27,,,,,"T") -> 44397.58681 | M27: =RTD("cqg.rtd",,"StudyData",$C$5,"Bar",,"Open","5",K27,,,,,"T") -> 4330.67 | N27: =RTD("cqg.rtd",,"StudyData",$C$5,"Bar",,"High","5",K27,,,,,"T") -> 4332.38 | O27: =RTD("cqg.rtd",,"StudyData",$C$5,"Bar",,"Low","5",K27,,,,,"T") -> 4330.58 | P27: =RTD("cqg.rtd",,"StudyData",$C$5,"Bar",,"Close","5",K27,,,,,"T") -> 4330.78 | R27: -14 | S27: =RTD("cqg.rtd",,"StudyData",$H$5,"Bar",,"Time","5",R27,,,,,"T") -> 44397.57639 | T27: =RTD("cqg.rtd",,"StudyData",$H$5,"Bar",,"Open","5",R27,,,,,"T") -> 14523.5 | U27: =RTD("cqg.rtd",,"StudyData",$H$5,"Bar",,"High","5",R27,,,,,"T") -> 14530.19 | V27: =RTD("cqg.rtd",,"StudyData",$H$5,"Bar",,"Low","5",R27,,,,,"T") -> 14523.5 | W27: =RTD("cqg.rtd",,"StudyData",$H$5,"Bar",,"Close","5",R27,,,,,"T") -> 14529.22
C28: Use all capital letters. | K28: -13 | L28: =RTD("cqg.rtd",,"StudyData",$C$5,"Bar",,"Time","5",K28,,,,,"T") -> 44397.59028 | M28: =RTD("cqg.rtd",,"StudyData",$C$5,"Bar",,"Open","5",K28,,,,,"T") -> 4330.81 | N28: =RTD("cqg.rtd",,"StudyData",$C$5,"Bar",,"High","5",K28,,,,,"T") -> 4336.21 | O28: =RTD("cqg.rtd",,"StudyData",$C$5,"Bar",,"Low","5",K28,,,,,"T") -> 4330.81 | P28: =RTD("cqg.rtd",,"StudyData",$C$5,"Bar",,"Close","5",K28,,,,,"T") -> 4335.52 | R28: -13 | S28: =RTD("cqg.rtd",,"StudyData",$H$5,"Bar",,"Time","5",R28,,,,,"T") -> 44397.57986 | T28: =RTD("cqg.rtd",,"StudyData",$H$5,"Bar",,"Open","5",R28,,,,,"T") -> 14529.19 | U28: =RTD("cqg.rtd",,"StudyData",$H$5,"Bar",,"High","5",R28,,,,,"T") -> 14529.19 | V28: =RTD("cqg.rtd",,"StudyData",$H$5,"Bar",,"Low","5",R28,,,,,"T") -> 14522.91 | W28: =RTD("cqg.rtd",,"StudyData",$H$5,"Bar",,"Close","5",R28,,,,,"T") -> 14525.55
K29: -12 | L29: =RTD("cqg.rtd",,"StudyData",$C$5,"Bar",,"Time","5",K29,,,,,"T") -> 44397.59375 | M29: =RTD("cqg.rtd",,"StudyData",$C$5,"Bar",,"Open","5",K29,,,,,"T") -> 4335.52 | N29: =RTD("cqg.rtd",,"StudyData",$C$5,"Bar",,"High","5",K29,,,,,"T") -> 4336.09 | O29: =RTD("cqg.rtd",,"StudyData",$C$5,"Bar",,"Low","5",K29,,,,,"T") -> 4334.53 | P29: =RTD("cqg.rtd",,"StudyData",$C$5,"Bar",,"Close","5",K29,,,,,"T") -> 4335 | R29: -12 | S29: =RTD("cqg.rtd",,"StudyData",$H$5,"Bar",,"Time","5",R29,,,,,"T") -> 44397.58333 | T29: =RTD("cqg.rtd",,"StudyData",$H$5,"Bar",,"Open","5",R29,,,,,"T") -> 14525.54 | U29: =RTD("cqg.rtd",,"StudyData",$H$5,"Bar",,"High","5",R29,,,,,"T") -> 14537.32 | V29: =RTD("cqg.rtd",,"StudyData",$H$5,"Bar",,"Low","5",R29,,,,,"T") -> 14524.84 | W29: =RTD("cqg.rtd",,"StudyData",$H$5,"Bar",,"Close","5",R29,,,,,"T") -> 14537.31
K30: -11 | L30: =RTD("cqg.rtd",,"StudyData",$C$5,"Bar",,"Time","5",K30,,,,,"T") -> 44397.59722 | M30: =RTD("cqg.rtd",,"StudyData",$C$5,"Bar",,"Open","5",K30,,,,,"T") -> 4334.98 | N30: =RTD("cqg.rtd",,"StudyData",$C$5,"Bar",,"High","5",K30,,,,,"T") -> 4336.51 | O30: =RTD("cqg.rtd",,"StudyData",$C$5,"Bar",,"Low","5",K30,,,,,"T") -> 4334.98 | P30: =RTD("cqg.rtd",,"StudyData",$C$5,"Bar",,"Close","5",K30,,,,,"T") -> 4336.27 | R30: -11 | S30: =RTD("cqg.rtd",,"StudyData",$H$5,"Bar",,"Time","5",R30,,,,,"T") -> 44397.58681 | T30: =RTD("cqg.rtd",,"StudyData",$H$5,"Bar",,"Open","5",R30,,,,,"T") -> 14537.27 | U30: =RTD("cqg.rtd",,"StudyData",$H$5,"Bar",,"High","5",R30,,,,,"T") -> 14541.07 | V30: =RTD("cqg.rtd",,"StudyData",$H$5,"Bar",,"Low","5",R30,,,,,"T") -> 14535.55 | W30: =RTD("cqg.rtd",,"StudyData",$H$5,"Bar",,"Close","5",R30,,,,,"T") -> 14535.75
K31: -10 | L31: =RTD("cqg.rtd",,"StudyData",$C$5,"Bar",,"Time","5",K31,,,,,"T") -> 44397.60069 | M31: =RTD("cqg.rtd",,"StudyData",$C$5,"Bar",,"Open","5",K31,,,,,"T") -> 4336.25 | N31: =RTD("cqg.rtd",,"StudyData",$C$5,"Bar",,"High","5",K31,,,,,"T") -> 4336.84 | O31: =RTD("cqg.rtd",,"StudyData",$C$5,"Bar",,"Low","5",K31,,,,,"T") -> 4332.54 | P31: =RTD("cqg.rtd",,"StudyData",$C$5,"Bar",,"Close","5",K31,,,,,"T") -> 4333.66 | R31: -10 | S31: =RTD("cqg.rtd",,"StudyData",$H$5,"Bar",,"Time","5",R31,,,,,"T") -> 44397.59028 | T31: =RTD("cqg.rtd",,"StudyData",$H$5,"Bar",,"Open","5",R31,,,,,"T") -> 14535.73 | U31: =RTD("cqg.rtd",,"StudyData",$H$5,"Bar",,"High","5",R31,,,,,"T") -> 14551.2 | V31: =RTD("cqg.rtd",,"StudyData",$H$5,"Bar",,"Low","5",R31,,,,,"T") -> 14535.73 | W31: =RTD("cqg.rtd",,"StudyData",$H$5,"Bar",,"Close","5",R31,,,,,"T") -> 14549.42
K32: -9 | L32: =RTD("cqg.rtd",,"StudyData",$C$5,"Bar",,"Time","5",K32,,,,,"T") -> 44397.60417 | M32: =RTD("cqg.rtd",,"StudyData",$C$5,"Bar",,"Open","5",K32,,,,,"T") -> 4333.66 | N32: =RTD("cqg.rtd",,"StudyData",$C$5,"Bar",,"High","5",K32,,,,,"T") -> 4334.38 | O32: =RTD("cqg.rtd",,"StudyData",$C$5,"Bar",,"Low","5",K32,,,,,"T") -> 4331.58 | P32: =RTD("cqg.rtd",,"StudyData",$C$5,"Bar",,"Close","5",K32,,,,,"T") -> 4332.7 | R32: -9 | S32: =RTD("cqg.rtd",,"StudyData",$H$5,"Bar",,"Time","5",R32,,,,,"T") -> 44397.59375 | T32: =RTD("cqg.rtd",,"StudyData",$H$5,"Bar",,"Open","5",R32,,,,,"T") -> 14549.23 | U32: =RTD("cqg.rtd",,"StudyData",$H$5,"Bar",,"High","5",R32,,,,,"T") -> 14551.68 | V32: =RTD("cqg.rtd",,"StudyData",$H$5,"Bar",,"Low","5",R32,,,,,"T") -> 14544.34 | W32: =RTD("cqg.rtd",,"StudyData",$H$5,"Bar",,"Close","5",R32,,,,,"T") -> 14545.41
K33: -8 | L33: =RTD("cqg.rtd",,"StudyData",$C$5,"Bar",,"Time","5",K33,,,,,"T") -> 44397.60764 | M33: =RTD("cqg.rtd",,"StudyData",$C$5,"Bar",,"Open","5",K33,,,,,"T") -> 4332.82 | N33: =RTD("cqg.rtd",,"StudyData",$C$5,"Bar",,"High","5",K33,,,,,"T") -> 4332.82 | O33: =RTD("cqg.rtd",,"StudyData",$C$5,"Bar",,"Low","5",K33,,,,,"T") -> 4331.24 | P33: =RTD("cqg.rtd",,"StudyData",$C$5,"Bar",,"Close","5",K33,,,,,"T") -> 4331.6 | R33: -8 | S33: =RTD("cqg.rtd",,"StudyData",$H$5,"Bar",,"Time","5",R33,,,,,"T") -> 44397.59722 | T33: =RTD("cqg.rtd",,"StudyData",$H$5,"Bar",,"Open","5",R33,,,,,"T") -> 14545.41 | U33: =RTD("cqg.rtd",,"StudyData",$H$5,"Bar",,"High","5",R33,,,,,"T") -> 14552.51 | V33: =RTD("cqg.rtd",,"StudyData",$H$5,"Bar",,"Low","5",R33,,,,,"T") -> 14544.96 | W33: =RTD("cqg.rtd",,"StudyData",$H$5,"Bar",,"Close","5",R33,,,,,"T") -> 14551.19
K34: -7 | L34: =RTD("cqg.rtd",,"StudyData",$C$5,"Bar",,"Time","5",K34,,,,,"T") -> 44397.61111 | M34: =RTD("cqg.rtd",,"StudyData",$C$5,"Bar",,"Open","5",K34,,,,,"T") -> 4331.6 | N34: =RTD("cqg.rtd",,"StudyData",$C$5,"Bar",,"High","5",K34,,,,,"T") -> 4332.61 | O34: =RTD("cqg.rtd",,"StudyData",$C$5,"Bar",,"Low","5",K34,,,,,"T") -> 4330.58 | P34: =RTD("cqg.rtd",,"StudyData",$C$5,"Bar",,"Close","5",K34,,,,,"T") -> 4330.92 | R34: -7 | S34: =RTD("cqg.rtd",,"StudyData",$H$5,"Bar",,"Time","5",R34,,,,,"T") -> 44397.60069 | T34: =RTD("cqg.rtd",,"StudyData",$H$5,"Bar",,"Open","5",R34,,,,,"T") -> 14551.2 | U34: =RTD("cqg.rtd",,"StudyData",$H$5,"Bar",,"High","5",R34,,,,,"T") -> 14552.73 | V34: =RTD("cqg.rtd",,"StudyData",$H$5,"Bar",,"Low","5",R34,,,,,"T") -> 14545.59 | W34: =RTD("cqg.rtd",,"StudyData",$H$5,"Bar",,"Close","5",R34,,,,,"T") -> 14550.49
K35: -6 | L35: =RTD("cqg.rtd",,"StudyData",$C$5,"Bar",,"Time","5",K35,,,,,"T") -> 44397.61458 | M35: =RTD("cqg.rtd",,"StudyData",$C$5,"Bar",,"Open","5",K35,,,,,"T") -> 4330.79 | N35: =RTD("cqg.rtd",,"StudyData",$C$5,"Bar",,"High","5",K35,,,,,"T") -> 4331.26 | O35: =RTD("cqg.rtd",,"StudyData",$C$5,"Bar",,"Low","5",K35,,,,,"T") -> 4329.72 | P35: =RTD("cqg.rtd",,"StudyData",$C$5,"Bar",,"Close","5",K35,,,,,"T") -> 4331.13 | R35: -6 | S35: =RTD("cqg.rtd",,"StudyData",$H$5,"Bar",,"Time","5",R35,,,,,"T") -> 44397.60417 | T35: =RTD("cqg.rtd",,"StudyData",$H$5,"Bar",,"Open","5",R35,,,,,"T") -> 14550.71 | U35: =RTD("cqg.rtd",,"StudyData",$H$5,"Bar",,"High","5",R35,,,,,"T") -> 14555.75 | V35: =RTD("cqg.rtd",,"StudyData",$H$5,"Bar",,"Low","5",R35,,,,,"T") -> 14548.68 | W35: =RTD("cqg.rtd",,"StudyData",$H$5,"Bar",,"Close","5",R35,,,,,"T") -> 14550.33
K36: -5 | L36: =RTD("cqg.rtd",,"StudyData",$C$5,"Bar",,"Time","5",K36,,,,,"T") -> 44397.61806 | M36: =RTD("cqg.rtd",,"StudyData",$C$5,"Bar",,"Open","5",K36,,,,,"T") -> 4331.44 | N36: =RTD("cqg.rtd",,"StudyData",$C$5,"Bar",,"High","5",K36,,,,,"T") -> 4333.37 | O36: =RTD("cqg.rtd",,"StudyData",$C$5,"Bar",,"Low","5",K36,,,,,"T") -> 4327.1 | P36: =RTD("cqg.rtd",,"StudyData",$C$5,"Bar",,"Close","5",K36,,,,,"T") -> 4331.18 | R36: -5 | S36: =RTD("cqg.rtd",,"StudyData",$H$5,"Bar",,"Time","5",R36,,,,,"T") -> 44397.60764 | T36: =RTD("cqg.rtd",,"StudyData",$H$5,"Bar",,"Open","5",R36,,,,,"T") -> 14550.63 | U36: =RTD("cqg.rtd",,"StudyData",$H$5,"Bar",,"High","5",R36,,,,,"T") -> 14551.14 | V36: =RTD("cqg.rtd",,"StudyData",$H$5,"Bar",,"Low","5",R36,,,,,"T") -> 14546.06 | W36: =RTD("cqg.rtd",,"StudyData",$H$5,"Bar",,"Close","5",R36,,,,,"T") -> 14547.59
K37: -4 | L37: =RTD("cqg.rtd",,"StudyData",$C$5,"Bar",,"Time","5",K37,,,,,"T") -> 44397.62153 | M37: =RTD("cqg.rtd",,"StudyData",$C$5,"Bar",,"Open","5",K37,,,,,"T") -> 4331.2 | N37: =RTD("cqg.rtd",,"StudyData",$C$5,"Bar",,"High","5",K37,,,,,"T") -> 4331.2 | O37: =RTD("cqg.rtd",,"StudyData",$C$5,"Bar",,"Low","5",K37,,,,,"T") -> 4323.06 | P37: =RTD("cqg.rtd",,"StudyData",$C$5,"Bar",,"Close","5",K37,,,,,"T") -> 4323.06 | R37: -4 | S37: =RTD("cqg.rtd",,"StudyData",$H$5,"Bar",,"Time","5",R37,,,,,"T") -> 44397.61111 | T37: =RTD("cqg.rtd",,"StudyData",$H$5,"Bar",,"Open","5",R37,,,,,"T") -> 14547.47 | U37: =RTD("cqg.rtd",,"StudyData",$H$5,"Bar",,"High","5",R37,,,,,"T") -> 14548.44 | V37: =RTD("cqg.rtd",,"StudyData",$H$5,"Bar",,"Low","5",R37,,,,,"T") -> 14541.52 | W37: =RTD("cqg.rtd",,"StudyData",$H$5,"Bar",,"Close","5",R37,,,,,"T") -> 14545.39
K38: -3 | L38: =RTD("cqg.rtd",,"StudyData",$C$5,"Bar",,"Time","5",K38,,,,,"T") -> 44397.625 | M38: =RTD("cqg.rtd",,"StudyData",$C$5,"Bar",,"Open","5",K38,,,,,"T") -> 4323.08 | N38: =RTD("cqg.rtd",,"StudyData",$C$5,"Bar",,"High","5",K38,,,,,"T") -> 4323.36 | O38: =RTD("cqg.rtd",,"StudyData",$C$5,"Bar",,"Low","5",K38,,,,,"T") -> 4323.07 | P38: =RTD("cqg.rtd",,"StudyData",$C$5,"Bar",,"Close","5",K38,,,,,"T") -> 4323.07 | R38: -3 | S38: =RTD("cqg.rtd",,"StudyData",$H$5,"Bar",,"Time","5",R38,,,,,"T") -> 44397.61458 | T38: =RTD("cqg.rtd",,"StudyData",$H$5,"Bar",,"Open","5",R38,,,,,"T") -> 14545.11 | U38: =RTD("cqg.rtd",,"StudyData",$H$5,"Bar",,"High","5",R38,,,,,"T") -> 14545.99 | V38: =RTD("cqg.rtd",,"StudyData",$H$5,"Bar",,"Low","5",R38,,,,,"T") -> 14536.55 | W38: =RTD("cqg.rtd",,"StudyData",$H$5,"Bar",,"Close","5",R38,,,,,"T") -> 14540.48
K39: -2 | L39: =RTD("cqg.rtd",,"StudyData",$C$5,"Bar",,"Time","5",K39,,,,,"T") -> 44397.62847 | M39: =RTD("cqg.rtd",,"StudyData",$C$5,"Bar",,"Open","5",K39,,,,,"T") -> 4323.06 | N39: =RTD("cqg.rtd",,"StudyData",$C$5,"Bar",,"High","5",K39,,,,,"T") -> 4323.07 | O39: =RTD("cqg.rtd",,"StudyData",$C$5,"Bar",,"Low","5",K39,,,,,"T") -> 4323.06 | P39: =RTD("cqg.rtd",,"StudyData",$C$5,"Bar",,"Close","5",K39,,,,,"T") -> 4323.06 | R39: -2 | S39: =RTD("cqg.rtd",,"StudyData",$H$5,"Bar",,"Time","5",R39,,,,,"T") -> 44397.61806 | T39: =RTD("cqg.rtd",,"StudyData",$H$5,"Bar",,"Open","5",R39,,,,,"T") -> 14543.33 | U39: =RTD("cqg.rtd",,"StudyData",$H$5,"Bar",,"High","5",R39,,,,,"T") -> 14544.4 | V39: =RTD("cqg.rtd",,"StudyData",$H$5,"Bar",,"Low","5",R39,,,,,"T") -> 14521.91 | W39: =RTD("cqg.rtd",,"StudyData",$H$5,"Bar",,"Close","5",R39,,,,,"T") -> 14532.65
K40: -1 | L40: =RTD("cqg.rtd",,"StudyData",$C$5,"Bar",,"Time","5",K40,,,,,"T") -> 44397.63194 | M40: =RTD("cqg.rtd",,"StudyData",$C$5,"Bar",,"Open","5",K40,,,,,"T") -> 4323.06 | N40: =RTD("cqg.rtd",,"StudyData",$C$5,"Bar",,"High","5",K40,,,,,"T") -> 4323.06 | O40: =RTD("cqg.rtd",,"StudyData",$C$5,"Bar",,"Low","5",K40,,,,,"T") -> 4323.06 | P40: =RTD("cqg.rtd",,"StudyData",$C$5,"Bar",,"Close","5",K40,,,,,"T") -> 4323.06 | R40: -1 | S40: =RTD("cqg.rtd",,"StudyData",$H$5,"Bar",,"Time","5",R40,,,,,"T") -> 44397.62153 | T40: =RTD("cqg.rtd",,"StudyData",$H$5,"Bar",,"Open","5",R40,,,,,"T") -> 14532.89 | U40: =RTD("cqg.rtd",,"StudyData",$H$5,"Bar",,"High","5",R40,,,,,"T") -> 14532.89 | V40: =RTD("cqg.rtd",,"StudyData",$H$5,"Bar",,"Low","5",R40,,,,,"T") -> 14498.28 | W40: =RTD("cqg.rtd",,"StudyData",$H$5,"Bar",,"Close","5",R40,,,,,"T") -> 14498.88
K41: 0 | L41: =RTD("cqg.rtd",,"StudyData",$C$5,"Bar",,"Time","5",K41,,,,,"T") -> 44398.35417 | M41: =IF(RTD("cqg.rtd",,"StudyData",$C$5,"Bar",,"Open","5",K41,,,,,"T")="",NA(),RTD("cqg.rtd",,"StudyData",$C$5,"Bar",,"Open","5",K41,,,,,"T")) -> 4331.13 | N41: =IF(RTD("cqg.rtd",,"StudyData",$C$5,"Bar",,"High","5",K41,,,,,"T")="",NA(),RTD("cqg.rtd",,"StudyData",$C$5,"Bar",,"High","5",K41,,,,,"T")) -> 4339.99 | O41: =IF(RTD("cqg.rtd",,"StudyData",$C$5,"Bar",,"Low","5",K41,,,,,"T")="",NA(),RTD("cqg.rtd",,"StudyData",$C$5,"Bar",,"Low","5",K41,,,,,"T")) -> 4331.13 | P41: =IF(RTD("cqg.rtd",,"StudyData",$C$5,"Bar",,"Close","5",K41,,,,,"T")="",NA(),RTD("cqg.rtd",,"StudyData",$C$5,"Bar",,"Close","5",K41,,,,,"T")) -> 4337.79 | R41: 0 | S41: =RTD("cqg.rtd",,"StudyData",$H$5,"Bar",,"Time","5",R41,,,,,"T") -> 44398.35417 | T41: =IF(RTD("cqg.rtd",,"StudyData",$H$5,"Bar",,"Open","5",R41,,,,,"T")="",NA(),RTD("cqg.rtd",,"StudyData",$H$5,"Bar",,"Open","5",R41,,,,,"T")) -> 14508.75 | U41: =IF(RTD("cqg.rtd",,"StudyData",$H$5,"Bar",,"High","5",R41,,,,,"T")="",NA(),RTD("cqg.rtd",,"StudyData",$H$5,"Bar",,"High","5",R41,,,,,"T")) -> 14518.98 | V41: =IF(RTD("cqg.rtd",,"StudyData",$H$5,"Bar",,"Low","5",R41,,,,,"T")="",NA(),RTD("cqg.rtd",,"StudyData",$H$5,"Bar",,"Low","5",R41,,,,,"T")) -> 14498.65 | W41: =IF(RTD("cqg.rtd",,"StudyData",$H$5,"Bar",,"Close","5",R41,,,,,"T")="",NA(),RTD("cqg.rtd",,"StudyData",$H$5,"Bar",,"Close","5",R41,,,,,"T")) -> 14518.98

Sheet NASDAQ100 (hidden)
C1: S.US.AAPL | D1: =IFERROR(RTD("cqg.rtd", ,"ContractData",C1, "PerCentNetLastTrade",, "T")/100,"") -> -0.002873759836 | E1: 79 | F1: =IFERROR(E1,"") -> 79 | G1: =C1 -> S.US.AAPL | H1: 1 | I1: =IFERROR(VLOOKUP(H1,$F$1:$G$103,2,FALSE),"") -> S.US.ASML | J1: =IFERROR(RTD("cqg.rtd", ,"ContractData",I1, "PerCentNetLastTrade",, "T")/100,"") -> 0.02989547548 | L1: =MIN(D1:D102) -> -0.02269916976 | M1: =VLOOKUP(L1,$D$1:$G$103,2,FALSE) -> 102 | N1: =VLOOKUP(M1,$F$1:$G$103,2,FALSE) -> S.US.NTES | O1: =IFERROR(RTD("cqg.rtd", ,"ContractData",N1, "PerCentNetLastTrade",, "T")/100,"") -> -0.02269916976
C2: S.US.ADBE | D2: =IFERROR(RTD("cqg.rtd", ,"ContractData",C2, "PerCentNetLastTrade",, "T")/100,"") -> -0.00418911815 | E2: 88 | F2: =IFERROR(E2,"") -> 88 | G2: =C2 -> S.US.ADBE | H2: =H1+1 -> 2 | I2: S.US.CHKP | J2: =IFERROR(RTD("cqg.rtd", ,"ContractData",I2, "PerCentNetLastTrade",, "T")/100,"") -> 0.01789525529 | M2: =M1-1 -> 101 | N2: =VLOOKUP(M2,$F$1:$G$103,2,FALSE) -> S.US.NFLX | O2: =IFERROR(RTD("cqg.rtd", ,"ContractData",N2, "PerCentNetLastTrade",, "T")/100,"") -> -0.01254119198
C3: S.US.ADI | D3: =IFERROR(RTD("cqg.rtd", ,"ContractData",C3, "PerCentNetLastTrade",, "T")/100,"") -> 0.005717481822 | E3: 25 | F3: 25 | G3: =C3 -> S.US.ADI | H3: =H2+1 -> 3 | I3: S.US.NVDA | J3: =IFERROR(RTD("cqg.rtd", ,"ContractData",I3, "PerCentNetLastTrade",, "T")/100,"") -> 0.01611863314 | M3: =M2-1 -> 100 | N3: S.US.ILMN | O3: =IFERROR(RTD("cqg.rtd", ,"ContractData",N3, "PerCentNetLastTrade",, "T")/100,"") -> -0.01007696254
C4: S.US.ADP | D4: =IFERROR(RTD("cqg.rtd", ,"ContractData",C4, "PerCentNetLastTrade",, "T")/100,"") -> 0.000590725608 | E4: 53 | F4: 53 | G4: S.US.ADP | H4: 4 | I4: S.US.LBTYA | J4: =IFERROR(RTD("cqg.rtd", ,"ContractData",I4, "PerCentNetLastTrade",, "T")/100,"") -> 0.01632335795 | M4: 99 | N4: S.US.ZM | O4: =IFERROR(RTD("cqg.rtd", ,"ContractData",N4, "PerCentNetLastTrade",, "T")/100,"") -> -0.007447795172
C5: S.US.ADSK | D5: =IFERROR(RTD("cqg.rtd", ,"ContractData",C5, "PerCentNetLastTrade",, "T")/100,"") -> -0.002600297177 | E5: 75 | F5: 75 | G5: S.US.ADSK | H5: 5 | I5: S.US.LBTYK | J5: =IFERROR(RTD("cqg.rtd", ,"ContractData",I5, "PerCentNetLastTrade",, "T")/100,"") -> 0.01617873652 | M5: 98 | N5: S.US.REGN | O5: =IFERROR(RTD("cqg.rtd", ,"ContractData",N5, "PerCentNetLastTrade",, "T")/100,"") -> -0.007254274232
C6: S.US.ALGN | D6: =IFERROR(RTD("cqg.rtd", ,"ContractData",C6, "PerCentNetLastTrade",, "T")/100,"") -> 0.004385181335 | E6: 31 | F6: 31 | G6: S.US.ALGN | H6: 6 | I6: S.US.EXPE | J6: =IFERROR(RTD("cqg.rtd", ,"ContractData",I6, "PerCentNetLastTrade",, "T")/100,"") -> 0.01614142967 | M6: 97 | N6: S.US.DOCU | O6: =IFERROR(RTD("cqg.rtd", ,"ContractData",N6, "PerCentNetLastTrade",, "T")/100,"") -> -0.009293988781
C7: S.US.ALXN | D7: =IFERROR(RTD("cqg.rtd", ,"ContractData",C7, "PerCentNetLastTrade",, "T")/100,"") ->  | G7: S.US.ALXN | H7: 7 | I7: S.US.FOXA | J7: =IFERROR(RTD("cqg.rtd", ,"ContractData",I7, "PerCentNetLastTrade",, "T")/100,"") -> 0.01458392908 | M7: 96 | N7: S.US.WDAY | O7: =IFERROR(RTD("cqg.rtd", ,"ContractData",N7, "PerCentNetLastTrade",, "T")/100,"") -> -0.006931508036
C8: S.US.AMAT | D8: =IFERROR(RTD("cqg.rtd", ,"ContractData",C8, "PerCentNetLastTrade",, "T")/100,"") -> 0.0140941123 | E8: 9 | F8: 9 | G8: S.US.AMAT | H8: 8 | I8: S.US.EA | J8: =IFERROR(RTD("cqg.rtd", ,"ContractData",I8, "PerCentNetLastTrade",, "T")/100,"") -> 0.01424824555 | M8: 95 | N8: S.US.SNPS | O8: =IFERROR(RTD("cqg.rtd", ,"ContractData",N8, "PerCentNetLastTrade",, "T")/100,"") -> -0.006765266832
C9: S.US.AMD | D9: =IFERROR(RTD("cqg.rtd", ,"ContractData",C9, "PerCentNetLastTrade",, "T")/100,"") -> 0.006084261279 | E9: 24 | F9: 24 | G9: S.US.AMD | H9: 9 | I9: S.US.AMAT | J9: =IFERROR(RTD("cqg.rtd", ,"ContractData",I9, "PerCentNetLastTrade",, "T")/100,"") -> 0.0140941123 | M9: 94 | N9: S.US.SGEN | O9: =IFERROR(RTD("cqg.rtd", ,"ContractData",N9, "PerCentNetLastTrade",, "T")/100,"") -> -0.005987611838
C10: S.US.AMGN | D10: =IFERROR(RTD("cqg.rtd", ,"ContractData",C10, "PerCentNetLastTrade",, "T")/100,"") -> -0.003928875208 | E10: 86 | F10: 86 | G10: S.US.AMGN | H10: 10 | I10: S.US.MAR | J10: =IFERROR(RTD("cqg.rtd", ,"ContractData",I10, "PerCentNetLastTrade",, "T")/100,"") -> 0.01333037103 | M10: 93 | N10: S.US.ANSS | O10: =IFERROR(RTD("cqg.rtd", ,"ContractData",N10, "PerCentNetLastTrade",, "T")/100,"") -> -0.005301108673
C11: S.US.AMZN | D11: =IFERROR(RTD("cqg.rtd", ,"ContractData",C11, "PerCentNetLastTrade",, "T")/100,"") -> 0.0006380852963 | E11: 52 | F11: 52 | G11: S.US.AMZN | H11: 11 | I11: S.US.NXPI
C12: S.US.ANSS | D12: =IFERROR(RTD("cqg.rtd", ,"ContractData",C12, "PerCentNetLastTrade",, "T")/100,"") -> -0.005301108673 | E12: 93 | F12: 93 | G12: S.US.ANSS | H12: 12 | I12: S.US.ULTA
C13: S.US.ASML | D13: =IFERROR(RTD("cqg.rtd", ,"ContractData",C13, "PerCentNetLastTrade",, "T")/100,"") -> 0.02989547548 | E13: 1 | F13: 1 | G13: S.US.ASML | H13: 13 | I13: S.US.KLAC
C14: S.US.ATVI | D14: =IFERROR(RTD("cqg.rtd", ,"ContractData",C14, "PerCentNetLastTrade",, "T")/100,"") -> 0.003606163261 | E14: 36 | F14: 36 | G14: S.US.ATVI | H14: 14 | I14: S.US.LRCX
C15: S.US.AVGO | D15: =IFERROR(RTD("cqg.rtd", ,"ContractData",C15, "PerCentNetLastTrade",, "T")/100,"") -> 0.002496852259 | E15: 42 | F15: 42 | G15: S.US.AVGO | H15: 15 | I15: S.US.SIRI
C16: S.US.BIDU | D16: =IFERROR(RTD("cqg.rtd", ,"ContractData",C16, "PerCentNetLastTrade",, "T")/100,"") -> -0.001068075777 | E16: 64 | F16: 64 | G16: S.US.BIDU | H16: 16 | I16: S.US.ISRG
C17: S.US.BIIB | D17: =IFERROR(RTD("cqg.rtd", ,"ContractData",C17, "PerCentNetLastTrade",, "T")/100,"") -> -0.00260473193 | E17: 76 | F17: 76 | G17: S.US.BIIB | H17: 17 | I17: S.US.FOX
C18: S.US.BKNG | D18: =IFERROR(RTD("cqg.rtd", ,"ContractData",C18, "PerCentNetLastTrade",, "T")/100,"") -> 0.007388179851 | E18: 21 | F18: 21 | G18: S.US.BKNG | H18: 18 | I18: S.US.TXN
C19: S.US.BMRN | D19: =IFERROR(RTD("cqg.rtd", ,"ContractData",C19, "PerCentNetLastTrade",, "T")/100,"") -> 0.0003773584906 | E19: 57 | F19: 57 | G19: S.US.BMRN | H19: 19 | I19: S.US.MCHP
C20: S.US.CDNS | D20: =IFERROR(RTD("cqg.rtd", ,"ContractData",C20, "PerCentNetLastTrade",, "T")/100,"") -> -0.003076042635 | E20: 80 | F20: 80 | G20: S.US.CDNS | H20: 20 | I20: S.US.ROST
C21: S.US.CDW | D21: =IFERROR(RTD("cqg.rtd", ,"ContractData",C21, "PerCentNetLastTrade",, "T")/100,"") -> -0.0014185202 | E21: 67 | F21: 67 | G21: S.US.CDW | H21: 21 | I21: S.US.BKNG
C22: S.US.CERN | D22: =IFERROR(RTD("cqg.rtd", ,"ContractData",C22, "PerCentNetLastTrade",, "T")/100,"") -> -0.0001285181853 | E22: 60 | F22: 60 | G22: S.US.CERN | H22: 22 | I22: S.US.SBUX
C23: S.US.CHKP | D23: =IFERROR(RTD("cqg.rtd", ,"ContractData",C23, "PerCentNetLastTrade",, "T")/100,"") -> 0.01789525529 | E23: 2 | F23: 2 | G23: S.US.CHKP | H23: 23 | I23: S.US.CSX
C24: S.US.CHTR | D24: =IFERROR(RTD("cqg.rtd", ,"ContractData",C24, "PerCentNetLastTrade",, "T")/100,"") -> -0.005259057265 | E24: 85 | F24: 85 | G24: S.US.CHTR | H24: 24 | I24: S.US.AMD
C25: S.US.CMCSA | D25: =IFERROR(RTD("cqg.rtd", ,"ContractData",C25, "PerCentNetLastTrade",, "T")/100,"") -> 0.0005255781359 | E25: 50 | F25: 50 | G25: S.US.CMCSA | H25: 25 | I25: S.US.ADI
C26: S.US.COST | D26: =IFERROR(RTD("cqg.rtd", ,"ContractData",C26, "PerCentNetLastTrade",, "T")/100,"") -> -0.001441476071 | E26: 68 | F26: 68 | G26: S.US.COST | H26: 26 | I26: S.US.WBA
C27: S.US.CPRT | D27: =IFERROR(RTD("cqg.rtd", ,"ContractData",C27, "PerCentNetLastTrade",, "T")/100,"") -> -0.001533635413 | E27: 71 | F27: 71 | G27: S.US.CPRT | H27: 27 | I27: S.US.MXIM
C28: S.US.CSCO | D28: =IFERROR(RTD("cqg.rtd", ,"ContractData",C28, "PerCentNetLastTrade",, "T")/100,"") -> -0.0009331840239 | E28: 65 | F28: 65 | G28: S.US.CSCO | H28: 28 | I28: S.US.TMUS
C29: S.US.CSX | D29: =IFERROR(RTD("cqg.rtd", ,"ContractData",C29, "PerCentNetLastTrade",, "T")/100,"") -> 0.006414368185 | E29: 23 | F29: 23 | G29: S.US.CSX | H29: 29 | I29: S.US.FAST
C30: S.US.CTAS | D30: =IFERROR(RTD("cqg.rtd", ,"ContractData",C30, "PerCentNetLastTrade",, "T")/100,"") -> 0.0004367934224 | E30: 56 | F30: 56 | G30: S.US.CTAS | H30: 30 | I30: S.US.TCOM
C31: S.US.CTSH | D31: =IFERROR(RTD("cqg.rtd", ,"ContractData",C31, "PerCentNetLastTrade",, "T")/100,"") -> 0.0001479071143 | E31: 59 | F31: 59 | G31: S.US.CTSH | H31: 31 | I31: S.US.ALGN
C32: S.US.CTXS | D32: =IFERROR(RTD("cqg.rtd", ,"ContractData",C32, "PerCentNetLastTrade",, "T")/100,"") -> -0.001046025105 | E32: 63 | F32: 63 | G32: S.US.CTXS | H32: 32 | I32: S.US.QCOM
C33: S.US.DLTR | D33: =IFERROR(RTD("cqg.rtd", ,"ContractData",C33, "PerCentNetLastTrade",, "T")/100,"") -> 0.00403999596 | E33: 34 | F33: 34 | G33: S.US.DLTR | H33: 33 | I33: =IFERROR(VLOOKUP(H33,$F$1:$G$103,2,FALSE),"") -> S.US.TTWO
C34: S.US.DOCU | D34: =IFERROR(RTD("cqg.rtd", ,"ContractData",C34, "PerCentNetLastTrade",, "T")/100,"") -> -0.009293988781 | E34: 97 | F34: 97 | G34: S.US.DOCU | H34: 34 | I34: S.US.DLTR
C35: S.US.DXCM | D35: =IFERROR(RTD("cqg.rtd", ,"ContractData",C35, "PerCentNetLastTrade",, "T")/100,"") -> -0.004623631896 | E35: 90 | F35: 90 | G35: S.US.DXCM | H35: 35 | I35: S.US.KHC
C36: S.US.EA | D36: =IFERROR(RTD("cqg.rtd", ,"ContractData",C36, "PerCentNetLastTrade",, "T")/100,"") -> 0.01424824555 | E36: 8 | F36: 8 | G36: S.US.EA | H36: 36 | I36: S.US.ATVI
C37: S.US.EBAY | D37: =IFERROR(RTD("cqg.rtd", ,"ContractData",C37, "PerCentNetLastTrade",, "T")/100,"") -> 0.002874802357 | E37: 40 | F37: 40 | G37: S.US.EBAY | H37: 37 | I37: S.US.SWKS
C38: S.US.EXC | D38: =IFERROR(RTD("cqg.rtd", ,"ContractData",C38, "PerCentNetLastTrade",, "T")/100,"") -> -0.002605297438 | E38: 77 | F38: 77 | G38: S.US.EXC | H38: 38 | I38: S.US.MU
C39: S.US.EXPE | D39: =IFERROR(RTD("cqg.rtd", ,"ContractData",C39, "PerCentNetLastTrade",, "T")/100,"") -> 0.01614142967 | E39: 6 | F39: 6 | G39: S.US.EXPE | H39: 39 | I39: S.US.PCAR
C40: S.US.FAST | D40: =IFERROR(RTD("cqg.rtd", ,"ContractData",C40, "PerCentNetLastTrade",, "T")/100,"") -> 0.004616805171 | E40: 29 | F40: 29 | G40: S.US.FAST | H40: 40 | I40: S.US.EBAY
C41: S.US.FB | D41: =IFERROR(RTD("cqg.rtd", ,"ContractData",C41, "PerCentNetLastTrade",, "T")/100,"") -> 0.002487853422 | E41: 45 | F41: 45 | G41: S.US.FB | H41: 41 | I41: S.US.MNST
C42: S.US.FISV | D42: =IFERROR(RTD("cqg.rtd", ,"ContractData",C42, "PerCentNetLastTrade",, "T")/100,"") -> 0.0004593899302 | E42: 55 | F42: 55 | G42: S.US.FISV | H42: 42 | I42: S.US.AVGO
C43: S.US.FOX | D43: =IFERROR(RTD("cqg.rtd", ,"ContractData",C43, "PerCentNetLastTrade",, "T")/100,"") -> 0.01338606632 | E43: 17 | F43: 17 | G43: S.US.FOX | H43: 43 | I43: S.US.LULU
C44: S.US.FOXA | D44: =IFERROR(RTD("cqg.rtd", ,"ContractData",C44, "PerCentNetLastTrade",, "T")/100,"") -> 0.01458392908 | E44: 7 | F44: 7 | G44: S.US.FOXA | H44: 44 | I44: S.US.VRSK
C45: S.US.GILD | D45: =IFERROR(RTD("cqg.rtd", ,"ContractData",C45, "PerCentNetLastTrade",, "T")/100,"") -> -0.004048582996 | E45: 87 | F45: 87 | G45: S.US.GILD | H45: 45 | I45: S.US.FB
C46: S.US.GOOG | D46: =IFERROR(RTD("cqg.rtd", ,"ContractData",C46, "PerCentNetLastTrade",, "T")/100,"") -> -0.003298970645 | E46: 82 | F46: 82 | G46: S.US.GOOG | H46: 46 | I46: S.US.MDLZ
C47: S.US.GOOGL | D47: =IFERROR(RTD("cqg.rtd", ,"ContractData",C47, "PerCentNetLastTrade",, "T")/100,"") -> -0.0009904167277 | E47: 62 | F47: 62 | G47: S.US.GOOGL | H47: 47 | I47: S.US.KDP
C48: S.US.IDXX | D48: =IFERROR(RTD("cqg.rtd", ,"ContractData",C48, "PerCentNetLastTrade",, "T")/100,"") -> -0.002345418964 | E48: 73 | F48: 73 | G48: S.US.IDXX | H48: 48 | I48: S.US.XLNX
C49: S.US.ILMN | D49: =IFERROR(RTD("cqg.rtd", ,"ContractData",C49, "PerCentNetLastTrade",, "T")/100,"") -> -0.01007696254 | E49: 100 | F49: 100 | G49: S.US.ILMN | H49: 49 | I49: S.US.PDD
C50: S.US.INCY | D50: =IFERROR(RTD("cqg.rtd", ,"ContractData",C50, "PerCentNetLastTrade",, "T")/100,"") -> -0.002903673779 | E50: 78 | F50: 78 | G50: S.US.INCY | H50: 50 | I50: S.US.CMCSA
C51: S.US.INTC | D51: =IFERROR(RTD("cqg.rtd", ,"ContractData",C51, "PerCentNetLastTrade",, "T")/100,"") -> -0.001448225923 | E51: 69 | F51: 69 | G51: S.US.INTC | H51: 51 | I51: S.US.TSLA
C52: S.US.INTU | D52: =IFERROR(RTD("cqg.rtd", ,"ContractData",C52, "PerCentNetLastTrade",, "T")/100,"") -> -0.005230454617 | E52: 92 | F52: 92 | G52: S.US.INTU | H52: 52 | I52: S.US.AMZN
C53: S.US.ISRG | D53: =IFERROR(RTD("cqg.rtd", ,"ContractData",C53, "PerCentNetLastTrade",, "T")/100,"") -> 0.01060677451 | E53: 16 | F53: 16 | G53: S.US.ISRG | H53: 53 | I53: S.US.ADP
C54: S.US.JD | D54: =IFERROR(RTD("cqg.rtd", ,"ContractData",C54, "PerCentNetLastTrade",, "T")/100,"") -> -0.0009476106674 | E54: 61 | F54: 61 | G54: S.US.JD | H54: 54 | I54: S.US.PAYX
C55: S.US.KDP | D55: =IFERROR(RTD("cqg.rtd", ,"ContractData",C55, "PerCentNetLastTrade",, "T")/100,"") -> 0.001393145723 | E55: 47 | F55: 47 | G55: S.US.KDP | H55: 55 | I55: S.US.FISV
C56: S.US.KHC | D56: =IFERROR(RTD("cqg.rtd", ,"ContractData",C56, "PerCentNetLastTrade",, "T")/100,"") -> 0.003807106599 | E56: 35 | F56: 35 | G56: S.US.KHC | H56: 56 | I56: S.US.CTAS
C57: S.US.KLAC | D57: =IFERROR(RTD("cqg.rtd", ,"ContractData",C57, "PerCentNetLastTrade",, "T")/100,"") -> 0.01172507184 | E57: 13 | F57: 13 | G57: S.US.KLAC | H57: 57 | I57: S.US.BMRN
C58: S.US.LBTYA | D58: =IFERROR(RTD("cqg.rtd", ,"ContractData",C58, "PerCentNetLastTrade",, "T")/100,"") -> 0.01632335795 | E58: 4 | F58: 4 | G58: S.US.LBTYA | H58: 58 | I58: S.US.PEP
C59: S.US.LBTYK | D59: =IFERROR(RTD("cqg.rtd", ,"ContractData",C59, "PerCentNetLastTrade",, "T")/100,"") -> 0.01617873652 | E59: 5 | F59: 5 | G59: S.US.LBTYK | H59: 59 | I59: S.US.CTSH
C60: S.US.LRCX | D60: =IFERROR(RTD("cqg.rtd", ,"ContractData",C60, "PerCentNetLastTrade",, "T")/100,"") -> 0.01134922334 | E60: 14 | F60: 14 | G60: S.US.LRCX | H60: 60 | I60: S.US.CERN
C61: S.US.LULU | D61: =IFERROR(RTD("cqg.rtd", ,"ContractData",C61, "PerCentNetLastTrade",, "T")/100,"") -> 0.002321941038 | E61: 43 | F61: 43 | G61: S.US.LULU | H61: 61 | I61: S.US.JD
C62: S.US.MAR | D62: =IFERROR(RTD("cqg.rtd", ,"ContractData",C62, "PerCentNetLastTrade",, "T")/100,"") -> 0.01333037103 | E62: 10 | F62: 10 | G62: S.US.MAR | H62: 62 | I62: S.US.GOOGL
C63: S.US.MCHP | D63: =IFERROR(RTD("cqg.rtd", ,"ContractData",C63, "PerCentNetLastTrade",, "T")/100,"") -> 0.009778880537 | E63: 19 | F63: 19 | G63: S.US.MCHP | H63: 63 | I63: S.US.CTXS
C64: S.US.MDLZ | D64: =IFERROR(RTD("cqg.rtd", ,"ContractData",C64, "PerCentNetLastTrade",, "T")/100,"") -> 0.001863064741 | E64: 46 | F64: 46 | G64: S.US.MDLZ | H64: 64 | I64: S.US.BIDU
C65: S.US.MELI | D65: =IFERROR(RTD("cqg.rtd", ,"ContractData",C65, "PerCentNetLastTrade",, "T")/100,"") -> -0.004409428395 | E65: 89 | F65: 89 | G65: S.US.MELI | H65: 65 | I65: =IFERROR(VLOOKUP(H65,$F$1:$G$103,2,FALSE),"") -> S.US.CSCO
C66: S.US.MNST | D66: =IFERROR(RTD("cqg.rtd", ,"ContractData",C66, "PerCentNetLastTrade",, "T")/100,"") -> 0.00266780493 | E66: 41 | F66: =IFERROR(E66,"") -> 41 | G66: S.US.MNST | H66: 66 | I66: S.US.VRSN
C67: S.US.MRNA | D67: =IFERROR(RTD("cqg.rtd", ,"ContractData",C67, "PerCentNetLastTrade",, "T")/100,"") -> -0.002537988481 | E67: 83 | F67: 83 | G67: =C67 -> S.US.MRNA | H67: =H66+1 -> 67 | I67: S.US.CDW
C68: S.US.MSFT | D68: =IFERROR(RTD("cqg.rtd", ,"ContractData",C68, "PerCentNetLastTrade",, "T")/100,"") -> -0.002506086209 | E68: 74 | F68: 74 | G68: S.US.MSFT | H68: 68 | I68: S.US.COST
C69: S.US.MU | D69: =IFERROR(RTD("cqg.rtd", ,"ContractData",C69, "PerCentNetLastTrade",, "T")/100,"") -> 0.003448733254 | E69: 38 | F69: 38 | G69: S.US.MU | H69: 69 | I69: S.US.INTC
C70: S.US.MXIM | D70: =IFERROR(RTD("cqg.rtd", ,"ContractData",C70, "PerCentNetLastTrade",, "T")/100,"") -> 0.005127153404 | E70: 27 | F70: 27 | G70: S.US.MXIM | H70: 70 | I70: S.US.ORLY
C71: S.US.NFLX | D71: =IFERROR(RTD("cqg.rtd", ,"ContractData",C71, "PerCentNetLastTrade",, "T")/100,"") -> -0.01254119198 | E71: 101 | F71: 101 | G71: S.US.NFLX | H71: 71 | I71: S.US.CPRT
C72: S.US.NTES | D72: =IFERROR(RTD("cqg.rtd", ,"ContractData",C72, "PerCentNetLastTrade",, "T")/100,"") -> -0.02269916976 | E72: 102 | F72: 102 | G72: S.US.NTES | H72: 72 | I72: S.US.PYPL
C73: S.US.NVDA | D73: =IFERROR(RTD("cqg.rtd", ,"ContractData",C73, "PerCentNetLastTrade",, "T")/100,"") -> 0.01611863314 | E73: 3 | F73: 3 | G73: S.US.NVDA | H73: 73 | I73: S.US.IDXX
C74: S.US.NXPI | D74: =IFERROR(RTD("cqg.rtd", ,"ContractData",C74, "PerCentNetLastTrade",, "T")/100,"") -> 0.01288086493 | E74: 11 | F74: 11 | G74: S.US.NXPI | H74: 74 | I74: S.US.MSFT
C75: S.US.ORLY | D75: =IFERROR(RTD("cqg.rtd", ,"ContractData",C75, "PerCentNetLastTrade",, "T")/100,"") -> -0.001448845863 | E75: 70 | F75: 70 | G75: S.US.ORLY | H75: 75 | I75: S.US.ADSK
C76: S.US.PAYX | D76: =IFERROR(RTD("cqg.rtd", ,"ContractData",C76, "PerCentNetLastTrade",, "T")/100,"") -> 0.0005431830527 | E76: 54 | F76: 54 | G76: S.US.PAYX | H76: 76 | I76: S.US.BIIB
C77: S.US.PCAR | D77: =IFERROR(RTD("cqg.rtd", ,"ContractData",C77, "PerCentNetLastTrade",, "T")/100,"") -> 0.003065047111 | E77: 39 | F77: 39 | G77: S.US.PCAR | H77: 77 | I77: S.US.EXC
C78: S.US.PDD | D78: =IFERROR(RTD("cqg.rtd", ,"ContractData",C78, "PerCentNetLastTrade",, "T")/100,"") -> 0.00097799511 | E78: 49 | F78: 49 | G78: S.US.PDD | H78: 78 | I78: S.US.INCY
C79: S.US.PEP | D79: =IFERROR(RTD("cqg.rtd", ,"ContractData",C79, "PerCentNetLastTrade",, "T")/100,"") -> 0.0003208830702 | E79: 58 | F79: 58 | G79: S.US.PEP | H79: 79 | I79: S.US.AAPL
C80: S.US.PYPL | D80: =IFERROR(RTD("cqg.rtd", ,"ContractData",C80, "PerCentNetLastTrade",, "T")/100,"") -> -0.00154326165 | E80: 72 | F80: 72 | G80: S.US.PYPL | H80: 80 | I80: S.US.CDNS
C81: S.US.QCOM | D81: =IFERROR(RTD("cqg.rtd", ,"ContractData",C81, "PerCentNetLastTrade",, "T")/100,"") -> 0.004227875314 | E81: 32 | F81: 32 | G81: S.US.QCOM | H81: 81 | I81: S.US.SPLK
C82: S.US.REGN | D82: =IFERROR(RTD("cqg.rtd", ,"ContractData",C82, "PerCentNetLastTrade",, "T")/100,"") -> -0.007254274232 | E82: 98 | F82: 98 | G82: S.US.REGN | H82: 82 | I82: S.US.GOOG
C83: S.US.ROST | D83: =IFERROR(RTD("cqg.rtd", ,"ContractData",C83, "PerCentNetLastTrade",, "T")/100,"") -> 0.009444303904 | E83: 20 | F83: 20 | G83: S.US.ROST | H83: 83 | I83: S.US.MRNA
C84: S.US.SBUX | D84: =IFERROR(RTD("cqg.rtd", ,"ContractData",C84, "PerCentNetLastTrade",, "T")/100,"") -> 0.006727985011 | E84: 22 | F84: 22 | G84: S.US.SBUX | H84: 84 | I84: S.US.XEL
C85: S.US.SGEN | D85: =IFERROR(RTD("cqg.rtd", ,"ContractData",C85, "PerCentNetLastTrade",, "T")/100,"") -> -0.005987611838 | E85: 94 | F85: 94 | G85: S.US.SGEN | H85: 85 | I85: S.US.CHTR
C86: S.US.SIRI | D86: =IFERROR(RTD("cqg.rtd", ,"ContractData",C86, "PerCentNetLastTrade",, "T")/100,"") -> 0.009188361409 | E86: 15 | F86: 15 | G86: S.US.SIRI | H86: 86 | I86: S.US.AMGN
C87: S.US.SNPS | D87: =IFERROR(RTD("cqg.rtd", ,"ContractData",C87, "PerCentNetLastTrade",, "T")/100,"") -> -0.006765266832 | E87: 95 | F87: 95 | G87: S.US.SNPS | H87: 87 | I87: S.US.GILD
C88: S.US.SPLK | D88: =IFERROR(RTD("cqg.rtd", ,"ContractData",C88, "PerCentNetLastTrade",, "T")/100,"") -> -0.003263944295 | E88: 81 | F88: 81 | G88: S.US.SPLK | H88: 88 | I88: S.US.ADBE
C89: S.US.SWKS | D89: =IFERROR(RTD("cqg.rtd", ,"ContractData",C89, "PerCentNetLastTrade",, "T")/100,"") -> 0.003378735086 | E89: 37 | F89: 37 | G89: S.US.SWKS | H89: 89 | I89: S.US.MELI
C90: S.US.TCOM | D90: =IFERROR(RTD("cqg.rtd", ,"ContractData",C90, "PerCentNetLastTrade",, "T")/100,"") -> 0.00449982693 | E90: 30 | F90: 30 | G90: S.US.TCOM | H90: 90 | I90: S.US.DXCM
C91: S.US.TMUS | D91: =IFERROR(RTD("cqg.rtd", ,"ContractData",C91, "PerCentNetLastTrade",, "T")/100,"") -> 0.004639889197 | E91: 28 | F91: 28 | G91: S.US.TMUS | H91: 91 | I91: S.US.VRTX
C92: S.US.TSLA | D92: =IFERROR(RTD("cqg.rtd", ,"ContractData",C92, "PerCentNetLastTrade",, "T")/100,"") -> 0.001438304315 | E92: 51 | F92: 51 | G92: S.US.TSLA | H92: 92 | I92: S.US.INTU
C93: S.US.TTWO | D93: =IFERROR(RTD("cqg.rtd", ,"ContractData",C93, "PerCentNetLastTrade",, "T")/100,"") -> 0.004117162687 | E93: 33 | F93: 33 | G93: S.US.TTWO | H93: 93 | I93: S.US.ANSS
C94: S.US.TXN | D94: =IFERROR(RTD("cqg.rtd", ,"ContractData",C94, "PerCentNetLastTrade",, "T")/100,"") -> 0.0102252756 | E94: 18 | F94: 18 | G94: S.US.TXN | H94: 94 | I94: S.US.SGEN
C95: S.US.ULTA | D95: =IFERROR(RTD("cqg.rtd", ,"ContractData",C95, "PerCentNetLastTrade",, "T")/100,"") -> 0.01282511211 | E95: 12 | F95: 12 | G95: S.US.ULTA | H95: 95 | I95: S.US.SNPS
C96: S.US.VRSK | D96: =IFERROR(RTD("cqg.rtd", ,"ContractData",C96, "PerCentNetLastTrade",, "T")/100,"") -> 0.002080776823 | E96: 44 | F96: 44 | G96: S.US.VRSK | H96: 96 | I96: S.US.WDAY
C97: S.US.VRSN | D97: =IFERROR(RTD("cqg.rtd", ,"ContractData",C97, "PerCentNetLastTrade",, "T")/100,"") -> -0.001220415813 | E97: 66 | F97: 66 | G97: S.US.VRSN | H97: 97 | I97: =IFERROR(VLOOKUP(H97,$F$1:$G$103,2,FALSE),"") -> S.US.DOCU
C98: S.US.VRTX | D98: =IFERROR(RTD("cqg.rtd", ,"ContractData",C98, "PerCentNetLastTrade",, "T")/100,"") -> -0.004731620453 | E98: 91 | F98: 91 | G98: S.US.VRTX | H98: 98 | I98: S.US.REGN
C99: S.US.WBA | D99: =IFERROR(RTD("cqg.rtd", ,"ContractData",C99, "PerCentNetLastTrade",, "T")/100,"") -> 0.005210594876 | E99: 26 | F99: 26 | G99: S.US.WBA | H99: 99 | I99: S.US.ZM
C100: S.US.WDAY | D100: =IFERROR(RTD("cqg.rtd", ,"ContractData",C100, "PerCentNetLastTrade",, "T")/100,"") -> -0.006931508036 | E100: 96 | F100: 96 | G100: S.US.WDAY | H100: 100 | I100: S.US.ILMN
C101: S.US.XEL | D101: =IFERROR(RTD("cqg.rtd", ,"ContractData",C101, "PerCentNetLastTrade",, "T")/100,"") -> -0.003374413146 | E101: 84 | F101: 84 | G101: S.US.XEL | H101: 101 | I101: S.US.NFLX
C102: S.US.XLNX | D102: =IFERROR(RTD("cqg.rtd", ,"ContractData",C102, "PerCentNetLastTrade",, "T")/100,"") -> 0.001296720061 | E102: 48 | F102: 48 | G102: S.US.XLNX | H102: 102 | I102: S.US.NTES
C103: S.US.ZM | D103: =IFERROR(RTD("cqg.rtd", ,"ContractData",C103, "PerCentNetLastTrade",, "T")/100,"") -> -0.007447795172 | E103: 99 | F103: 99 | G103: S.US.ZM | H103: 103 | I103: =IFERROR(VLOOKUP(H103,$F$1:$G$107,2,FALSE),"") -> 
D104: =IFERROR(RTD("cqg.rtd", ,"ContractData",C104, "PerCentNetLastTrade",, "T")/100,"") ->  | G104: 0 | H104: 104
D105: =IFERROR(RTD("cqg.rtd", ,"ContractData",C105, "PerCentNetLastTrade",, "T")/100,"") ->  | G105: 0 | H105: 105
D106: =IFERROR(RTD("cqg.rtd", ,"ContractData",C106, "PerCentNetLastTrade",, "T")/100,"") ->  | G106: 0 | H106: 106
D107: =IFERROR(RTD("cqg.rtd", ,"ContractData",C107, "PerCentNetLastTrade",, "T")/100,"") ->  | F107: =IFERROR(E107,"") ->  | G107: =C107 -> 0 | H107: 107
E506: 32

Sheet S&P500 (hidden)
C1: S.US.A | D1: =IFERROR(RTD("cqg.rtd", ,"ContractData",C1, "PerCentNetLastTrade",, "T")/100,"") -> -0.002612190221 | E1: 454 | F1: =IFERROR(E1,"") -> 454 | G1: =C1 -> S.US.A | H1: 1 | I1: =IFERROR(VLOOKUP(H1,$F$1:$G$505,2,FALSE),"") -> S.US.IPG | J1: =IFERROR(RTD("cqg.rtd", ,"ContractData",I1, "PerCentNetLastTrade",, "T")/100,"") -> 0.1071314359 | L1: =MIN(D1:D505) -> -0.06047490935 | M1: =VLOOKUP(L1,D1:G505,3,FALSE) -> 504 | N1: =VLOOKUP(M1,$H$1:$I$505,2,FALSE) -> S.US.STX | O1: =IFERROR(RTD("cqg.rtd", ,"ContractData",N1, "PerCentNetLastTrade",, "T")/100,"") -> -0.06047490935
C2: S.US.AAL | D2: =IFERROR(RTD("cqg.rtd", ,"ContractData",C2, "PerCentNetLastTrade",, "T")/100,"") -> 0.01507782101 | E2: 76 | F2: =IFERROR(E2,"") -> 76 | G2: =C2 -> S.US.AAL | H2: =H1+1 -> 2 | I2: =IFERROR(VLOOKUP(H2,$F$1:$G$505,2,FALSE),"") -> S.US.CMG | J2: =IFERROR(RTD("cqg.rtd", ,"ContractData",I2, "PerCentNetLastTrade",, "T")/100,"") -> 0.07132467367 | M2: =M1-1 -> 503 | N2: =VLOOKUP(M2,$H$1:$I$505,2,FALSE) -> S.US.WDC | O2: =IFERROR(RTD("cqg.rtd", ,"ContractData",N2, "PerCentNetLastTrade",, "T")/100,"") -> -0.03650990099
C3: S.US.AAP | D3: =IFERROR(RTD("cqg.rtd", ,"ContractData",C3, "PerCentNetLastTrade",, "T")/100,"") -> 0.00394805689 | E3: 278 | F3: 278 | G3: S.US.AAP | H3: =H2+1 -> 3 | I3: S.US.CCL | J3: =IFERROR(RTD("cqg.rtd", ,"ContractData",I3, "PerCentNetLastTrade",, "T")/100,"") -> 0.04200094384 | M3: =M2-1 -> 502 | N3: S.US.ALLE | O3: =IFERROR(RTD("cqg.rtd", ,"ContractData",N3, "PerCentNetLastTrade",, "T")/100,"") -> -0.01888928192
C4: S.US.AAPL | D4: =IFERROR(RTD("cqg.rtd", ,"ContractData",C4, "PerCentNetLastTrade",, "T")/100,"") -> -0.002873759836 | E4: 460 | F4: 460 | G4: S.US.AAPL | H4: 4 | I4: S.US.SLB | J4: =IFERROR(RTD("cqg.rtd", ,"ContractData",I4, "PerCentNetLastTrade",, "T")/100,"") -> 0.03671071953 | M4: 501 | N4: S.US.MTB | O4: =IFERROR(RTD("cqg.rtd", ,"ContractData",N4, "PerCentNetLastTrade",, "T")/100,"") -> -0.01888329384
C5: S.US.ABBV | D5: =IFERROR(RTD("cqg.rtd", ,"ContractData",C5, "PerCentNetLastTrade",, "T")/100,"") -> 0.003274450668 | E5: 298 | F5: 298 | G5: S.US.ABBV | H5: 5 | I5: S.US.OXY | J5: =IFERROR(RTD("cqg.rtd", ,"ContractData",I5, "PerCentNetLastTrade",, "T")/100,"") -> 0.03665746945 | M5: 500 | N5: S.US.DHR | O5: =IFERROR(RTD("cqg.rtd", ,"ContractData",N5, "PerCentNetLastTrade",, "T")/100,"") -> -0.01618476728
C6: S.US.ABC | D6: =IFERROR(RTD("cqg.rtd", ,"ContractData",C6, "PerCentNetLastTrade",, "T")/100,"") -> 0.007640140785 | E6: 199 | F6: 199 | G6: S.US.ABC | H6: 6 | I6: S.US.HAL | J6: =IFERROR(RTD("cqg.rtd", ,"ContractData",I6, "PerCentNetLastTrade",, "T")/100,"") -> 0.03139013453 | M6: 499 | N6: S.US.NFLX | O6: =IFERROR(RTD("cqg.rtd", ,"ContractData",N6, "PerCentNetLastTrade",, "T")/100,"") -> -0.01254119198
C7: S.US.ABMD | D7: =IFERROR(RTD("cqg.rtd", ,"ContractData",C7, "PerCentNetLastTrade",, "T")/100,"") -> 0.004882721963 | E7: 256 | F7: 256 | G7: S.US.ABMD | H7: 7 | I7: S.US.CMA | J7: =IFERROR(RTD("cqg.rtd", ,"ContractData",I7, "PerCentNetLastTrade",, "T")/100,"") -> 0.03228754188 | M7: 498 | N7: S.US.NVR | O7: =IFERROR(RTD("cqg.rtd", ,"ContractData",N7, "PerCentNetLastTrade",, "T")/100,"") -> -0.01230136299
C8: S.US.ABT | D8: =IFERROR(RTD("cqg.rtd", ,"ContractData",C8, "PerCentNetLastTrade",, "T")/100,"") -> 0.0004211235577 | E8: 389 | F8: 389 | G8: S.US.ABT | H8: 8 | I8: S.US.NOV | J8: =IFERROR(RTD("cqg.rtd", ,"ContractData",I8, "PerCentNetLastTrade",, "T")/100,"") -> 0.0295202952 | M8: 497 | N8: S.US.EXR | O8: =IFERROR(RTD("cqg.rtd", ,"ContractData",N8, "PerCentNetLastTrade",, "T")/100,"") -> -0.01171989452
C9: S.US.ACN | D9: =IFERROR(RTD("cqg.rtd", ,"ContractData",C9, "PerCentNetLastTrade",, "T")/100,"") -> -6.409023906e-05 | E9: 410 | F9: 410 | G9: S.US.ACN | H9: 9 | I9: S.US.NCLH | J9: =IFERROR(RTD("cqg.rtd", ,"ContractData",I9, "PerCentNetLastTrade",, "T")/100,"") -> 0.02913851351 | M9: 496 | N9: S.US.TMO | O9: =IFERROR(RTD("cqg.rtd", ,"ContractData",N9, "PerCentNetLastTrade",, "T")/100,"") -> -0.01046729687
C10: S.US.ADBE | D10: =IFERROR(RTD("cqg.rtd", ,"ContractData",C10, "PerCentNetLastTrade",, "T")/100,"") -> -0.00418911815 | E10: 476 | F10: 476 | G10: S.US.ADBE | H10: 10 | I10: S.US.MRO | J10: =IFERROR(RTD("cqg.rtd", ,"ContractData",I10, "PerCentNetLastTrade",, "T")/100,"") -> 0.02733686067 | M10: 495 | N10: S.US.ILMN | O10: =IFERROR(RTD("cqg.rtd", ,"ContractData",N10, "PerCentNetLastTrade",, "T")/100,"") -> -0.01007696254
C11: S.US.ADI | D11: =IFERROR(RTD("cqg.rtd", ,"ContractData",C11, "PerCentNetLastTrade",, "T")/100,"") -> 0.005717481822 | E11: 237 | F11: 237 | G11: S.US.ADI | H11: 11 | I11: S.US.MHK
C12: S.US.ADM | D12: =IFERROR(RTD("cqg.rtd", ,"ContractData",C12, "PerCentNetLastTrade",, "T")/100,"") -> 0.003274168534 | E12: 299 | F12: 299 | G12: S.US.ADM | H12: 12 | I12: S.US.FANG
C13: S.US.ADP | D13: =IFERROR(RTD("cqg.rtd", ,"ContractData",C13, "PerCentNetLastTrade",, "T")/100,"") -> 0.000590725608 | E13: 380 | F13: 380 | G13: S.US.ADP | H13: 13 | I13: S.US.BKR
C14: S.US.ADSK | D14: =IFERROR(RTD("cqg.rtd", ,"ContractData",C14, "PerCentNetLastTrade",, "T")/100,"") -> -0.002600297177 | E14: 451 | F14: 451 | G14: S.US.ADSK | H14: 14 | I14: S.US.COP
C15: S.US.AEE | D15: =IFERROR(RTD("cqg.rtd", ,"ContractData",C15, "PerCentNetLastTrade",, "T")/100,"") -> -0.001309835675 | E15: 425 | F15: 425 | G15: S.US.AEE | H15: 15 | I15: S.US.ALB
C16: S.US.AEP | D16: =IFERROR(RTD("cqg.rtd", ,"ContractData",C16, "PerCentNetLastTrade",, "T")/100,"") -> 0.0003498950315 | E16: 392 | F16: 392 | G16: S.US.AEP | H16: 16 | I16: S.US.ZION
C17: S.US.AES | D17: =IFERROR(RTD("cqg.rtd", ,"ContractData",C17, "PerCentNetLastTrade",, "T")/100,"") -> 0.01286307054 | E17: 105 | F17: 105 | G17: S.US.AES | H17: 17 | I17: S.US.LNC
C18: S.US.AFL | D18: =IFERROR(RTD("cqg.rtd", ,"ContractData",C18, "PerCentNetLastTrade",, "T")/100,"") -> 0.01057002643 | E18: 145 | F18: 145 | G18: S.US.AFL | H18: 18 | I18: S.US.APA
C19: S.US.AIG | D19: =IFERROR(RTD("cqg.rtd", ,"ContractData",C19, "PerCentNetLastTrade",, "T")/100,"") -> 0.01185687063 | E19: 124 | F19: 124 | G19: S.US.AIG | H19: 19 | I19: S.US.UNM
C20: S.US.AIZ | D20: =IFERROR(RTD("cqg.rtd", ,"ContractData",C20, "PerCentNetLastTrade",, "T")/100,"") -> 0.005904106923 | E20: 232 | F20: 232 | G20: S.US.AIZ | H20: 20 | I20: S.US.VLO
C21: S.US.AJG | D21: =IFERROR(RTD("cqg.rtd", ,"ContractData",C21, "PerCentNetLastTrade",, "T")/100,"") -> 0.0001436059453 | E21: 398 | F21: 398 | G21: S.US.AJG | H21: 21 | I21: S.US.KO
C22: S.US.AKAM | D22: =IFERROR(RTD("cqg.rtd", ,"ContractData",C22, "PerCentNetLastTrade",, "T")/100,"") -> -0.002382167773 | E22: 447 | F22: 447 | G22: S.US.AKAM | H22: 22 | I22: S.US.PSX
C23: S.US.ALB | D23: =IFERROR(RTD("cqg.rtd", ,"ContractData",C23, "PerCentNetLastTrade",, "T")/100,"") -> 0.02520694259 | E23: 15 | F23: 15 | G23: S.US.ALB | H23: 23 | I23: S.US.CZR
C24: S.US.ALGN | D24: =IFERROR(RTD("cqg.rtd", ,"ContractData",C24, "PerCentNetLastTrade",, "T")/100,"") -> 0.004385181335 | E24: 264 | F24: 264 | G24: S.US.ALGN | H24: 24 | I24: S.US.SIVB
C25: S.US.ALK | D25: =IFERROR(RTD("cqg.rtd", ,"ContractData",C25, "PerCentNetLastTrade",, "T")/100,"") -> 0.01550108147 | E25: 66 | F25: 66 | G25: S.US.ALK | H25: 25 | I25: S.US.FCX
C26: S.US.ALL | D26: =IFERROR(RTD("cqg.rtd", ,"ContractData",C26, "PerCentNetLastTrade",, "T")/100,"") -> 0.006727685207 | E26: 214 | F26: 214 | G26: S.US.ALL | H26: 26 | I26: S.US.GPS
C27: S.US.ALLE | D27: =IFERROR(RTD("cqg.rtd", ,"ContractData",C27, "PerCentNetLastTrade",, "T")/100,"") -> -0.01888928192 | E27: 502 | F27: 502 | G27: S.US.ALLE | H27: 27 | I27: S.US.CFG
C28: S.US.AMAT | D28: =IFERROR(RTD("cqg.rtd", ,"ContractData",C28, "PerCentNetLastTrade",, "T")/100,"") -> 0.0140941123 | E28: 84 | F28: 84 | G28: S.US.AMAT | H28: 28 | I28: S.US.UAA
C29: S.US.AMCR | D29: =IFERROR(RTD("cqg.rtd", ,"ContractData",C29, "PerCentNetLastTrade",, "T")/100,"") -> 0.002664298401 | E29: 318 | F29: 318 | G29: S.US.AMCR | H29: 29 | I29: S.US.WYNN
C30: S.US.AMD | D30: =IFERROR(RTD("cqg.rtd", ,"ContractData",C30, "PerCentNetLastTrade",, "T")/100,"") -> 0.006084261279 | E30: 233 | F30: 233 | G30: S.US.AMD | H30: 30 | I30: S.US.MPC
C31: S.US.AME | D31: =IFERROR(RTD("cqg.rtd", ,"ContractData",C31, "PerCentNetLastTrade",, "T")/100,"") -> 0.004607620859 | E31: 260 | F31: 260 | G31: S.US.AME | H31: 31 | I31: S.US.RJF
C32: S.US.AMGN | D32: =IFERROR(RTD("cqg.rtd", ,"ContractData",C32, "PerCentNetLastTrade",, "T")/100,"") -> -0.003928875208 | E32: 472 | F32: 472 | G32: S.US.AMGN | H32: 32 | I32: S.US.DVN
C33: S.US.AMP | D33: =IFERROR(RTD("cqg.rtd", ,"ContractData",C33, "PerCentNetLastTrade",, "T")/100,"") -> 0.01318037588 | E33: 97 | F33: 97 | G33: S.US.AMP | H33: 33 | I33: S.US.OKE
C34: S.US.AMT | D34: =IFERROR(RTD("cqg.rtd", ,"ContractData",C34, "PerCentNetLastTrade",, "T")/100,"") -> -0.00445229682 | E34: 477 | F34: 477 | G34: S.US.AMT | H34: 34 | I34: S.US.SCHW
C35: S.US.AMZN | D35: =IFERROR(RTD("cqg.rtd", ,"ContractData",C35, "PerCentNetLastTrade",, "T")/100,"") -> 0.0006380852963 | E35: 375 | F35: 375 | G35: S.US.AMZN | H35: 35 | I35: S.US.HES
C36: S.US.ANET | D36: =IFERROR(RTD("cqg.rtd", ,"ContractData",C36, "PerCentNetLastTrade",, "T")/100,"") -> 0.0004124391652 | E36: 390 | F36: 390 | G36: S.US.ANET | H36: 36 | I36: S.US.LUV
C37: S.US.ANSS | D37: =IFERROR(RTD("cqg.rtd", ,"ContractData",C37, "PerCentNetLastTrade",, "T")/100,"") -> -0.005301108673 | E37: 484 | F37: 484 | G37: S.US.ANSS | H37: 37 | I37: S.US.LYB
C38: S.US.ANTM | D38: =IFERROR(RTD("cqg.rtd", ,"ContractData",C38, "PerCentNetLastTrade",, "T")/100,"") -> 0.01046314818 | E38: 143 | F38: 143 | G38: S.US.ANTM | H38: 38 | I38: S.US.VZ
C39: S.US.AON | D39: =IFERROR(RTD("cqg.rtd", ,"ContractData",C39, "PerCentNetLastTrade",, "T")/100,"") -> 0.004370820403 | E39: 265 | F39: 265 | G39: S.US.AON | H39: 39 | I39: S.US.PVH
C40: S.US.AOS | D40: =IFERROR(RTD("cqg.rtd", ,"ContractData",C40, "PerCentNetLastTrade",, "T")/100,"") -> 0.007834757835 | E40: 196 | F40: 196 | G40: S.US.AOS | H40: 40 | I40: S.US.HST
C41: S.US.APA | D41: =IFERROR(RTD("cqg.rtd", ,"ContractData",C41, "PerCentNetLastTrade",, "T")/100,"") -> 0.02334851936 | E41: 18 | F41: 18 | G41: S.US.APA | H41: 41 | I41: S.US.RCL
C42: S.US.APD | D42: =IFERROR(RTD("cqg.rtd", ,"ContractData",C42, "PerCentNetLastTrade",, "T")/100,"") -> -3.49711488e-05 | E42: 408 | F42: 408 | G42: S.US.APD | H42: 42 | I42: S.US.UAL
C43: S.US.APH | D43: =IFERROR(RTD("cqg.rtd", ,"ContractData",C43, "PerCentNetLastTrade",, "T")/100,"") -> 0.008745080892 | E43: 180 | F43: 180 | G43: S.US.APH | H43: 43 | I43: S.US.XOM
C44: S.US.APTV | D44: =IFERROR(RTD("cqg.rtd", ,"ContractData",C44, "PerCentNetLastTrade",, "T")/100,"") -> 0.01364675155 | E44: 89 | F44: 89 | G44: S.US.APTV | H44: 44 | I44: S.US.DRI
C45: S.US.ARE | D45: =IFERROR(RTD("cqg.rtd", ,"ContractData",C45, "PerCentNetLastTrade",, "T")/100,"") -> 0.0007178382813 | E45: 369 | F45: 369 | G45: S.US.ARE | H45: 45 | I45: S.US.DOW
C46: S.US.ATO | D46: =IFERROR(RTD("cqg.rtd", ,"ContractData",C46, "PerCentNetLastTrade",, "T")/100,"") -> 0.004221529802 | E46: 270 | F46: 270 | G46: S.US.ATO | H46: 46 | I46: S.US.RL
C47: S.US.ATVI | D47: =IFERROR(RTD("cqg.rtd", ,"ContractData",C47, "PerCentNetLastTrade",, "T")/100,"") -> 0.003606163261 | E47: 284 | F47: 284 | G47: S.US.ATVI | H47: 47 | I47: S.US.UA
C48: S.US.AVB | D48: =IFERROR(RTD("cqg.rtd", ,"ContractData",C48, "PerCentNetLastTrade",, "T")/100,"") -> 0.00166127481 | E48: 345 | F48: 345 | G48: S.US.AVB | H48: 48 | I48: S.US.FITB
C49: S.US.AVGO | D49: =IFERROR(RTD("cqg.rtd", ,"ContractData",C49, "PerCentNetLastTrade",, "T")/100,"") -> 0.002496852259 | E49: 323 | F49: 323 | G49: S.US.AVGO | H49: 49 | I49: S.US.MGM
C50: S.US.AVY | D50: =IFERROR(RTD("cqg.rtd", ,"ContractData",C50, "PerCentNetLastTrade",, "T")/100,"") -> 0.00503113325 | E50: 252 | F50: 252 | G50: S.US.AVY | H50: 50 | I50: S.US.NVDA
C51: S.US.AWK | D51: =IFERROR(RTD("cqg.rtd", ,"ContractData",C51, "PerCentNetLastTrade",, "T")/100,"") -> -0.00299940012 | E51: 461 | F51: 461 | G51: S.US.AWK | H51: 51 | I51: S.US.HWM
C52: S.US.AXP | D52: =IFERROR(RTD("cqg.rtd", ,"ContractData",C52, "PerCentNetLastTrade",, "T")/100,"") -> 0.008171966602 | E52: 191 | F52: 191 | G52: S.US.AXP | H52: 52 | I52: S.US.DAL
C53: S.US.AZO | D53: =IFERROR(RTD("cqg.rtd", ,"ContractData",C53, "PerCentNetLastTrade",, "T")/100,"") -> 0.003958170751 | E53: 277 | F53: 277 | G53: S.US.AZO | H53: 53 | I53: S.US.PXD
C54: S.US.BA | D54: =IFERROR(RTD("cqg.rtd", ,"ContractData",C54, "PerCentNetLastTrade",, "T")/100,"") -> 0.01588763528 | E54: 61 | F54: 61 | G54: S.US.BA | H54: 54 | I54: S.US.RF
C55: S.US.BAC | D55: =IFERROR(RTD("cqg.rtd", ,"ContractData",C55, "PerCentNetLastTrade",, "T")/100,"") -> 0.009816927567 | E55: 163 | F55: 163 | G55: S.US.BAC | H55: 55 | I55: S.US.DISCK
C56: S.US.BAX | D56: =IFERROR(RTD("cqg.rtd", ,"ContractData",C56, "PerCentNetLastTrade",, "T")/100,"") -> 0.0007449714428 | E56: 367 | F56: 367 | G56: S.US.BAX | H56: 56 | I56: S.US.MOS
C57: S.US.BBY | D57: =IFERROR(RTD("cqg.rtd", ,"ContractData",C57, "PerCentNetLastTrade",, "T")/100,"") -> 0.007865473285 | E57: 195 | F57: 195 | G57: S.US.BBY | H57: 57 | I57: S.US.EXPE
C58: S.US.BDX | D58: =IFERROR(RTD("cqg.rtd", ,"ContractData",C58, "PerCentNetLastTrade",, "T")/100,"") -> -0.002348178138 | E58: 446 | F58: 446 | G58: S.US.BDX | H58: 58 | I58: S.US.VFC
C59: S.US.BEN | D59: =IFERROR(RTD("cqg.rtd", ,"ContractData",C59, "PerCentNetLastTrade",, "T")/100,"") -> 0.0136425648 | E59: 90 | F59: 90 | G59: S.US.BEN | H59: 59 | I59: S.US.EMN
C60: S.US.BFB | D60: =IFERROR(RTD("cqg.rtd", ,"ContractData",C60, "PerCentNetLastTrade",, "T")/100,"") -> 0.002493420141 | E60: 324 | F60: 324 | G60: S.US.BFB | H60: 60 | I60: S.US.EOG
C61: S.US.BIIB | D61: =IFERROR(RTD("cqg.rtd", ,"ContractData",C61, "PerCentNetLastTrade",, "T")/100,"") -> -0.00260473193 | E61: 452 | F61: 452 | G61: S.US.BIIB | H61: 61 | I61: S.US.BA
C62: S.US.BIO | D62: =IFERROR(RTD("cqg.rtd", ,"ContractData",C62, "PerCentNetLastTrade",, "T")/100,"") -> 0.001271655546 | E62: 356 | F62: 356 | G62: S.US.BIO | H62: 62 | I62: S.US.GE
C63: S.US.BK | D63: =IFERROR(RTD("cqg.rtd", ,"ContractData",C63, "PerCentNetLastTrade",, "T")/100,"") -> 0.005461165049 | E63: 243 | F63: 243 | G63: S.US.BK | H63: 63 | I63: S.US.VNO
C64: S.US.BKNG | D64: =IFERROR(RTD("cqg.rtd", ,"ContractData",C64, "PerCentNetLastTrade",, "T")/100,"") -> 0.007388179851 | E64: 204 | F64: 204 | G64: S.US.BKNG | H64: 64 | I64: S.US.MET
C65: S.US.BKR | D65: =IFERROR(RTD("cqg.rtd", ,"ContractData",C65, "PerCentNetLastTrade",, "T")/100,"") -> 0.02644710579 | E65: 13 | F65: 13 | G65: S.US.BKR | H65: 65 | I65: S.US.PFG
C66: S.US.BLK | D66: =IFERROR(RTD("cqg.rtd", ,"ContractData",C66, "PerCentNetLastTrade",, "T")/100,"") -> 0.007009239452 | E66: 210 | F66: =IFERROR(E66,"") -> 210 | G66: =C66 -> S.US.BLK | H66: 66 | I66: =IFERROR(VLOOKUP(H66,$F$1:$G$505,2,FALSE),"") -> S.US.ALK
C67: S.US.BLL | D67: =IFERROR(RTD("cqg.rtd", ,"ContractData",C67, "PerCentNetLastTrade",, "T")/100,"") -> -0.003198294243 | E67: 464 | F67: 464 | G67: S.US.BLL | H67: =H66+1 -> 67 | I67: S.US.SYY
C68: S.US.BMY | D68: =IFERROR(RTD("cqg.rtd", ,"ContractData",C68, "PerCentNetLastTrade",, "T")/100,"") -> 0.003147482014 | E68: 304 | F68: 304 | G68: S.US.BMY | H68: 68 | I68: S.US.NUE
C69: S.US.BR | D69: =IFERROR(RTD("cqg.rtd", ,"ContractData",C69, "PerCentNetLastTrade",, "T")/100,"") -> 0.0003547147502 | E69: 391 | F69: 391 | G69: S.US.BR | H69: 69 | I69: S.US.HBAN
C70: S.US.BRKB | D70: =IFERROR(RTD("cqg.rtd", ,"ContractData",C70, "PerCentNetLastTrade",, "T")/100,"") -> 0.004008812164 | E70: 275 | F70: 275 | G70: S.US.BRKB | H70: 70 | I70: S.US.F
C71: S.US.BSX | D71: =IFERROR(RTD("cqg.rtd", ,"ContractData",C71, "PerCentNetLastTrade",, "T")/100,"") -> 0.0112175742 | E71: 132 | F71: 132 | G71: S.US.BSX | H71: 71 | I71: S.US.DISCA
C72: S.US.BWA | D72: =IFERROR(RTD("cqg.rtd", ,"ContractData",C72, "PerCentNetLastTrade",, "T")/100,"") -> 0.01382096534 | E72: 87 | F72: 87 | G72: S.US.BWA | H72: 72 | I72: S.US.WRK
C73: S.US.BXP | D73: =IFERROR(RTD("cqg.rtd", ,"ContractData",C73, "PerCentNetLastTrade",, "T")/100,"") -> 0.009996552913 | E73: 153 | F73: 153 | G73: S.US.BXP | H73: 73 | I73: S.US.TXT
C74: S.US.C | D74: =IFERROR(RTD("cqg.rtd", ,"ContractData",C74, "PerCentNetLastTrade",, "T")/100,"") -> 0.01252074219 | E74: 115 | F74: 115 | G74: S.US.C | H74: 74 | I74: S.US.CVX
C75: S.US.CAG | D75: =IFERROR(RTD("cqg.rtd", ,"ContractData",C75, "PerCentNetLastTrade",, "T")/100,"") -> -0.001142530706 | E75: 420 | F75: 420 | G75: S.US.CAG | H75: 75 | I75: S.US.VIAC
C76: S.US.CAH | D76: =IFERROR(RTD("cqg.rtd", ,"ContractData",C76, "PerCentNetLastTrade",, "T")/100,"") -> 0.007280291212 | E76: 206 | F76: 206 | G76: S.US.CAH | H76: 76 | I76: S.US.AAL
C77: S.US.CARR | D77: =IFERROR(RTD("cqg.rtd", ,"ContractData",C77, "PerCentNetLastTrade",, "T")/100,"") -> 0.001803607214 | E77: 353 | F77: 353 | G77: S.US.CARR | H77: 77 | I77: S.US.FOXA
C78: S.US.CAT | D78: =IFERROR(RTD("cqg.rtd", ,"ContractData",C78, "PerCentNetLastTrade",, "T")/100,"") -> 0.0006251202154 | E78: 377 | F78: 377 | G78: S.US.CAT | H78: 78 | I78: S.US.HLT
C79: S.US.CB | D79: =IFERROR(RTD("cqg.rtd", ,"ContractData",C79, "PerCentNetLastTrade",, "T")/100,"") -> 0.006918351524 | E79: 212 | F79: 212 | G79: S.US.CB | H79: 79 | I79: S.US.CE
C80: S.US.CBOE | D80: =IFERROR(RTD("cqg.rtd", ,"ContractData",C80, "PerCentNetLastTrade",, "T")/100,"") -> 0.001471097265 | E80: 350 | F80: 350 | G80: S.US.CBOE | H80: 80 | I80: S.US.TFX
C81: S.US.CBRE | D81: =IFERROR(RTD("cqg.rtd", ,"ContractData",C81, "PerCentNetLastTrade",, "T")/100,"") -> 0.009897448128 | E81: 156 | F81: 156 | G81: S.US.CBRE | H81: 81 | I81: S.US.PENN
C82: S.US.CCI | D82: =IFERROR(RTD("cqg.rtd", ,"ContractData",C82, "PerCentNetLastTrade",, "T")/100,"") -> -0.002656434475 | E82: 458 | F82: 458 | G82: S.US.CCI | H82: 82 | I82: S.US.PWR
C83: S.US.CCL | D83: =IFERROR(RTD("cqg.rtd", ,"ContractData",C83, "PerCentNetLastTrade",, "T")/100,"") -> 0.04200094384 | E83: 3 | F83: 3 | G83: S.US.CCL | H83: 83 | I83: S.US.EA
C84: S.US.CDNS | D84: =IFERROR(RTD("cqg.rtd", ,"ContractData",C84, "PerCentNetLastTrade",, "T")/100,"") -> -0.003076042635 | E84: 462 | F84: 462 | G84: S.US.CDNS | H84: 84 | I84: S.US.AMAT
C85: S.US.CDW | D85: =IFERROR(RTD("cqg.rtd", ,"ContractData",C85, "PerCentNetLastTrade",, "T")/100,"") -> -0.0014185202 | E85: 427 | F85: 427 | G85: S.US.CDW | H85: 85 | I85: S.US.LYV
C86: S.US.CE | D86: =IFERROR(RTD("cqg.rtd", ,"ContractData",C86, "PerCentNetLastTrade",, "T")/100,"") -> 0.01443708609 | E86: 79 | F86: 79 | G86: S.US.CE | H86: 86 | I86: S.US.URI
C87: S.US.CERN | D87: =IFERROR(RTD("cqg.rtd", ,"ContractData",C87, "PerCentNetLastTrade",, "T")/100,"") -> -0.0001285181853 | E87: 412 | F87: 412 | G87: S.US.CERN | H87: 87 | I87: S.US.BWA
C88: S.US.CF | D88: =IFERROR(RTD("cqg.rtd", ,"ContractData",C88, "PerCentNetLastTrade",, "T")/100,"") -> 0.01235356763 | E88: 113 | F88: 113 | G88: S.US.CF | H88: 88 | I88: S.US.DD
C89: S.US.CFG | D89: =IFERROR(RTD("cqg.rtd", ,"ContractData",C89, "PerCentNetLastTrade",, "T")/100,"") -> 0.02132645887 | E89: 27 | F89: 27 | G89: S.US.CFG | H89: 89 | I89: S.US.APTV
C90: S.US.CHD | D90: =IFERROR(RTD("cqg.rtd", ,"ContractData",C90, "PerCentNetLastTrade",, "T")/100,"") -> -0.005173008392 | E90: 482 | F90: 482 | G90: S.US.CHD | H90: 90 | I90: S.US.BEN
C91: S.US.CHRW | D91: =IFERROR(RTD("cqg.rtd", ,"ContractData",C91, "PerCentNetLastTrade",, "T")/100,"") -> 0.00289979594 | E91: 310 | F91: 310 | G91: S.US.CHRW | H91: 91 | I91: S.US.OMC
C92: S.US.CHTR | D92: =IFERROR(RTD("cqg.rtd", ,"ContractData",C92, "PerCentNetLastTrade",, "T")/100,"") -> -0.005259057265 | E92: 470 | F92: 470 | G92: S.US.CHTR | H92: 92 | I92: S.US.HBI
C93: S.US.CI | D93: =IFERROR(RTD("cqg.rtd", ,"ContractData",C93, "PerCentNetLastTrade",, "T")/100,"") -> 0.007370054306 | E93: 205 | F93: 205 | G93: S.US.CI | H93: 93 | I93: S.US.MAR
C94: S.US.CINF | D94: =IFERROR(RTD("cqg.rtd", ,"ContractData",C94, "PerCentNetLastTrade",, "T")/100,"") -> 0.006400955876 | E94: 222 | F94: 222 | G94: S.US.CINF | H94: 94 | I94: S.US.WHR
C95: S.US.CL | D95: =IFERROR(RTD("cqg.rtd", ,"ContractData",C95, "PerCentNetLastTrade",, "T")/100,"") -> 0.0006046680372 | E95: 378 | F95: 378 | G95: S.US.CL | H95: 95 | I95: S.US.COF
C96: S.US.CLX | D96: =IFERROR(RTD("cqg.rtd", ,"ContractData",C96, "PerCentNetLastTrade",, "T")/100,"") -> -0.00345413674 | E96: 469 | F96: 469 | G96: S.US.CLX | H96: 96 | I96: S.US.SYF
C97: S.US.CMA | D97: =IFERROR(RTD("cqg.rtd", ,"ContractData",C97, "PerCentNetLastTrade",, "T")/100,"") -> 0.03228754188 | E97: 7 | F97: 7 | G97: S.US.CMA | H97: 97 | I97: S.US.AMP
C98: S.US.CMCSA | D98: =IFERROR(RTD("cqg.rtd", ,"ContractData",C98, "PerCentNetLastTrade",, "T")/100,"") -> 0.0005255781359 | E98: 371 | F98: 371 | G98: S.US.CMCSA | H98: 98 | I98: S.US.L
C99: S.US.CME | D99: =IFERROR(RTD("cqg.rtd", ,"ContractData",C99, "PerCentNetLastTrade",, "T")/100,"") -> 0.005849074696 | E99: 234 | F99: 234 | G99: S.US.CME | H99: 99 | I99: S.US.KEY
C100: S.US.CMG | D100: =IFERROR(RTD("cqg.rtd", ,"ContractData",C100, "PerCentNetLastTrade",, "T")/100,"") -> 0.07132467367 | E100: 2 | F100: 2 | G100: S.US.CMG | H100: 100 | I100: S.US.UHS
C101: S.US.CMI | D101: =IFERROR(RTD("cqg.rtd", ,"ContractData",C101, "PerCentNetLastTrade",, "T")/100,"") -> 0.008615617383 | E101: 182 | F101: 182 | G101: S.US.CMI | H101: 101 | I101: S.US.TFC
C102: S.US.CMS | D102: =IFERROR(RTD("cqg.rtd", ,"ContractData",C102, "PerCentNetLastTrade",, "T")/100,"") -> 0.0009686793671 | E102: 359 | F102: 359 | G102: S.US.CMS | H102: 102 | I102: S.US.HCA
C103: S.US.CNC | D103: =IFERROR(RTD("cqg.rtd", ,"ContractData",C103, "PerCentNetLastTrade",, "T")/100,"") -> 0.003627738245 | E103: 319 | F103: 319 | G103: S.US.CNC | H103: 103 | I103: S.US.NXPI
C104: S.US.CNP | D104: =IFERROR(RTD("cqg.rtd", ,"ContractData",C104, "PerCentNetLastTrade",, "T")/100,"") -> 0.003961965135 | E104: 302 | F104: 302 | G104: S.US.CNP | H104: 104 | I104: S.US.NTRS
C105: S.US.COF | D105: =IFERROR(RTD("cqg.rtd", ,"ContractData",C105, "PerCentNetLastTrade",, "T")/100,"") -> 0.01373591594 | E105: 95 | F105: 95 | G105: S.US.COF | H105: 105 | I105: S.US.AES
C106: S.US.COG | D106: =IFERROR(RTD("cqg.rtd", ,"ContractData",C106, "PerCentNetLastTrade",, "T")/100,"") -> 0.0102960103 | E106: 147 | F106: 147 | G106: S.US.COG | H106: 106 | I106: S.US.DOV
C107: S.US.COO | D107: =IFERROR(RTD("cqg.rtd", ,"ContractData",C107, "PerCentNetLastTrade",, "T")/100,"") -> 0.003579240406 | E107: 286 | F107: 286 | G107: S.US.COO | H107: 107 | I107: S.US.ULTA
C108: S.US.COP | D108: =IFERROR(RTD("cqg.rtd", ,"ContractData",C108, "PerCentNetLastTrade",, "T")/100,"") -> 0.02570222141 | E108: 14 | F108: 14 | G108: S.US.COP | H108: 108 | I108: S.US.LVS
C109: S.US.COST | D109: =IFERROR(RTD("cqg.rtd", ,"ContractData",C109, "PerCentNetLastTrade",, "T")/100,"") -> -0.001441476071 | E109: 428 | F109: 428 | G109: S.US.COST | H109: 109 | I109: S.US.PH
C110: S.US.CPB | D110: =IFERROR(RTD("cqg.rtd", ,"ContractData",C110, "PerCentNetLastTrade",, "T")/100,"") -> -0.002650176678 | E110: 457 | F110: 457 | G110: S.US.CPB | H110: 110 | I110: S.US.PNC
C111: S.US.CPRT | D111: =IFERROR(RTD("cqg.rtd", ,"ContractData",C111, "PerCentNetLastTrade",, "T")/100,"") -> -0.001533635413 | E111: 431 | F111: 431 | G111: S.US.CPRT | H111: 111 | I111: S.US.GS
C112: S.US.CRL | D112: =IFERROR(RTD("cqg.rtd", ,"ContractData",C112, "PerCentNetLastTrade",, "T")/100,"") -> 0.0001037667324 | E112: 401 | F112: 401 | G112: S.US.CRL | H112: 112 | I112: S.US.KMI
C113: S.US.CRM | D113: =IFERROR(RTD("cqg.rtd", ,"ContractData",C113, "PerCentNetLastTrade",, "T")/100,"") -> -0.002373911957 | E113: 448 | F113: 448 | G113: S.US.CRM | H113: 113 | I113: S.US.CF
C114: S.US.CSCO | D114: =IFERROR(RTD("cqg.rtd", ,"ContractData",C114, "PerCentNetLastTrade",, "T")/100,"") -> -0.0009331840239 | E114: 419 | F114: 419 | G114: S.US.CSCO | H114: 114 | I114: S.US.DFS
C115: S.US.CSX | D115: =IFERROR(RTD("cqg.rtd", ,"ContractData",C115, "PerCentNetLastTrade",, "T")/100,"") -> 0.006414368185 | E115: 220 | F115: 220 | G115: S.US.CSX | H115: 115 | I115: S.US.C
C116: S.US.CTAS | D116: =IFERROR(RTD("cqg.rtd", ,"ContractData",C116, "PerCentNetLastTrade",, "T")/100,"") -> 0.0004367934224 | E116: 388 | F116: 388 | G116: S.US.CTAS | H116: 116 | I116: S.US.NLSN
C117: S.US.CTLT | D117: =IFERROR(RTD("cqg.rtd", ,"ContractData",C117, "PerCentNetLastTrade",, "T")/100,"") -> 0.003105865649 | E117: 306 | F117: 306 | G117: S.US.CTLT | H117: 117 | I117: S.US.WFC
C118: S.US.CTSH | D118: =IFERROR(RTD("cqg.rtd", ,"ContractData",C118, "PerCentNetLastTrade",, "T")/100,"") -> 0.0001479071143 | E118: 397 | F118: 397 | G118: S.US.CTSH | H118: 118 | I118: S.US.JPM
C119: S.US.CTVA | D119: =IFERROR(RTD("cqg.rtd", ,"ContractData",C119, "PerCentNetLastTrade",, "T")/100,"") -> 0.01198178768 | E119: 119 | F119: 119 | G119: S.US.CTVA | H119: 119 | I119: S.US.CTVA
C120: S.US.CTXS | D120: =IFERROR(RTD("cqg.rtd", ,"ContractData",C120, "PerCentNetLastTrade",, "T")/100,"") -> -0.001046025105 | E120: 417 | F120: 417 | G120: S.US.CTXS | H120: 120 | I120: S.US.MKTX
C121: S.US.CVS | D121: =IFERROR(RTD("cqg.rtd", ,"ContractData",C121, "PerCentNetLastTrade",, "T")/100,"") -> 0.008924205379 | E121: 179 | F121: 179 | G121: S.US.CVS | H121: 121 | I121: S.US.IVZ
C122: S.US.CVX | D122: =IFERROR(RTD("cqg.rtd", ,"ContractData",C122, "PerCentNetLastTrade",, "T")/100,"") -> 0.01471045271 | E122: 74 | F122: 74 | G122: S.US.CVX | H122: 122 | I122: S.US.MS
C123: S.US.CZR | D123: =IFERROR(RTD("cqg.rtd", ,"ContractData",C123, "PerCentNetLastTrade",, "T")/100,"") -> 0.02190580504 | E123: 23 | F123: 23 | G123: S.US.CZR | H123: 123 | I123: S.US.NRG
C124: S.US.D | D124: =IFERROR(RTD("cqg.rtd", ,"ContractData",C124, "PerCentNetLastTrade",, "T")/100,"") -> 0.0007929166116 | E124: 364 | F124: 364 | G124: S.US.D | H124: 124 | I124: S.US.AIG
C125: S.US.DAL | D125: =IFERROR(RTD("cqg.rtd", ,"ContractData",C125, "PerCentNetLastTrade",, "T")/100,"") -> 0.01696999508 | E125: 52 | F125: 52 | G125: S.US.DAL | H125: 125 | I125: S.US.HSIC
C126: S.US.DD | D126: =IFERROR(RTD("cqg.rtd", ,"ContractData",C126, "PerCentNetLastTrade",, "T")/100,"") -> 0.01370234704 | E126: 88 | F126: 88 | G126: S.US.DD | H126: 126 | I126: S.US.KLAC
C127: S.US.DE | D127: =IFERROR(RTD("cqg.rtd", ,"ContractData",C127, "PerCentNetLastTrade",, "T")/100,"") -> 0.01140706261 | E127: 128 | F127: 128 | G127: S.US.DE | H127: 127 | I127: S.US.STT
C128: S.US.DFS | D128: =IFERROR(RTD("cqg.rtd", ,"ContractData",C128, "PerCentNetLastTrade",, "T")/100,"") -> 0.01253298153 | E128: 114 | F128: 114 | G128: S.US.DFS | H128: 128 | I128: S.US.DE
C129: S.US.DG | D129: =IFERROR(RTD("cqg.rtd", ,"ContractData",C129, "PerCentNetLastTrade",, "T")/100,"") -> -0.002120047701 | E129: 443 | F129: 443 | G129: S.US.DG | H129: 129 | I129: S.US.LRCX
C130: S.US.DGX | D130: =IFERROR(RTD("cqg.rtd", ,"ContractData",C130, "PerCentNetLastTrade",, "T")/100,"") -> 0.00315550011 | E130: 303 | F130: =IFERROR(E130,"") -> 303 | G130: =C130 -> S.US.DGX | H130: 130 | I130: =IFERROR(VLOOKUP(H130,$F$1:$G$505,2,FALSE),"") -> S.US.RHI
C131: S.US.DHI | D131: =IFERROR(RTD("cqg.rtd", ,"ContractData",C131, "PerCentNetLastTrade",, "T")/100,"") -> 0.0006737031215 | E131: 374 | F131: 374 | G131: S.US.DHI | H131: =H130+1 -> 131 | I131: S.US.FMC
C132: S.US.DHR | D132: =IFERROR(RTD("cqg.rtd", ,"ContractData",C132, "PerCentNetLastTrade",, "T")/100,"") -> -0.01618476728 | E132: 500 | F132: 500 | G132: S.US.DHR | H132: 132 | I132: S.US.BSX
C133: S.US.DIS | D133: =IFERROR(RTD("cqg.rtd", ,"ContractData",C133, "PerCentNetLastTrade",, "T")/100,"") -> -0.00198019802 | E133: 438 | F133: 438 | G133: S.US.DIS | H133: 133 | I133: S.US.XRAY
C134: S.US.DISCA | D134: =IFERROR(RTD("cqg.rtd", ,"ContractData",C134, "PerCentNetLastTrade",, "T")/100,"") -> 0.01493067899 | E134: 71 | F134: 71 | G134: S.US.DISCA | H134: 134 | I134: S.US.TAP
C135: S.US.DISCK | D135: =IFERROR(RTD("cqg.rtd", ,"ContractData",C135, "PerCentNetLastTrade",, "T")/100,"") -> 0.01625708885 | E135: 55 | F135: 55 | G135: S.US.DISCK | H135: 135 | I135: S.US.DVA
C136: S.US.DISH | D136: =IFERROR(RTD("cqg.rtd", ,"ContractData",C136, "PerCentNetLastTrade",, "T")/100,"") -> 0.006606312699 | E136: 215 | F136: 215 | G136: S.US.DISH | H136: 136 | I136: S.US.MCK
C137: S.US.DLR | D137: =IFERROR(RTD("cqg.rtd", ,"ContractData",C137, "PerCentNetLastTrade",, "T")/100,"") -> -0.005159235669 | E137: 488 | F137: 488 | G137: S.US.DLR | H137: 137 | I137: S.US.PM
C138: S.US.DLTR | D138: =IFERROR(RTD("cqg.rtd", ,"ContractData",C138, "PerCentNetLastTrade",, "T")/100,"") -> 0.00403999596 | E138: 273 | F138: 273 | G138: S.US.DLTR | H138: 138 | I138: S.US.PRU
C139: S.US.DOV | D139: =IFERROR(RTD("cqg.rtd", ,"ContractData",C139, "PerCentNetLastTrade",, "T")/100,"") -> 0.01282841988 | E139: 106 | F139: 106 | G139: S.US.DOV | H139: 139 | I139: S.US.FRC
C140: S.US.DOW | D140: =IFERROR(RTD("cqg.rtd", ,"ContractData",C140, "PerCentNetLastTrade",, "T")/100,"") -> 0.01774138519 | E140: 45 | F140: 45 | G140: S.US.DOW | H140: 140 | I140: S.US.PNR
C141: S.US.DPZ | D141: =IFERROR(RTD("cqg.rtd", ,"ContractData",C141, "PerCentNetLastTrade",, "T")/100,"") -> 0.002568583279 | E141: 320 | F141: 320 | G141: S.US.DPZ | H141: 141 | I141: S.US.ISRG
C142: S.US.DRE | D142: =IFERROR(RTD("cqg.rtd", ,"ContractData",C142, "PerCentNetLastTrade",, "T")/100,"") -> -0.001370667711 | E142: 426 | F142: 426 | G142: S.US.DRE | H142: 142 | I142: S.US.KIM
C143: S.US.DRI | D143: =IFERROR(RTD("cqg.rtd", ,"ContractData",C143, "PerCentNetLastTrade",, "T")/100,"") -> 0.01776274054 | E143: 44 | F143: 44 | G143: S.US.DRI | H143: 143 | I143: S.US.ANTM
C144: S.US.DTE | D144: =IFERROR(RTD("cqg.rtd", ,"ContractData",C144, "PerCentNetLastTrade",, "T")/100,"") -> 0.003789183603 | E144: 281 | F144: 281 | G144: S.US.DTE | H144: 144 | I144: S.US.GL
C145: S.US.DUK | D145: =IFERROR(RTD("cqg.rtd", ,"ContractData",C145, "PerCentNetLastTrade",, "T")/100,"") -> 0.0009639483324 | E145: 360 | F145: 360 | G145: S.US.DUK | H145: 145 | I145: S.US.AFL
C146: S.US.DVA | D146: =IFERROR(RTD("cqg.rtd", ,"ContractData",C146, "PerCentNetLastTrade",, "T")/100,"") -> 0.01097060548 | E146: 135 | F146: 135 | G146: S.US.DVA | H146: 146 | I146: S.US.FOX
C147: S.US.DVN | D147: =IFERROR(RTD("cqg.rtd", ,"ContractData",C147, "PerCentNetLastTrade",, "T")/100,"") -> 0.02013422819 | E147: 32 | F147: 32 | G147: S.US.DVN | H147: 147 | I147: S.US.COG
C148: S.US.DXC | D148: =IFERROR(RTD("cqg.rtd", ,"ContractData",C148, "PerCentNetLastTrade",, "T")/100,"") -> 0.009060315817 | E148: 175 | F148: 175 | G148: S.US.DXC | H148: 148 | I148: S.US.HIG
C149: S.US.DXCM | D149: =IFERROR(RTD("cqg.rtd", ,"ContractData",C149, "PerCentNetLastTrade",, "T")/100,"") -> -0.004623631896 | E149: 478 | F149: 478 | G149: S.US.DXCM | H149: 149 | I149: S.US.TXN
C150: S.US.EA | D150: =IFERROR(RTD("cqg.rtd", ,"ContractData",C150, "PerCentNetLastTrade",, "T")/100,"") -> 0.01424824555 | E150: 83 | F150: 83 | G150: S.US.EA | H150: 150 | I150: S.US.TROW
C151: S.US.EBAY | D151: =IFERROR(RTD("cqg.rtd", ,"ContractData",C151, "PerCentNetLastTrade",, "T")/100,"") -> 0.002874802357 | E151: 311 | F151: 311 | G151: S.US.EBAY | H151: 151 | I151: S.US.LEG
C152: S.US.ECL | D152: =IFERROR(RTD("cqg.rtd", ,"ContractData",C152, "PerCentNetLastTrade",, "T")/100,"") -> 0.005135387488 | E152: 250 | F152: 250 | G152: S.US.ECL | H152: 152 | I152: S.US.REG
C153: S.US.ED | D153: =IFERROR(RTD("cqg.rtd", ,"ContractData",C153, "PerCentNetLastTrade",, "T")/100,"") -> 0.0006796248471 | E153: 373 | F153: 373 | G153: S.US.ED | H153: 153 | I153: S.US.BXP
C154: S.US.EFX | D154: =IFERROR(RTD("cqg.rtd", ,"ContractData",C154, "PerCentNetLastTrade",, "T")/100,"") -> 0.0007794839816 | E154: 365 | F154: 365 | G154: S.US.EFX | H154: 154 | I154: S.US.ZBH
C155: S.US.EIX | D155: =IFERROR(RTD("cqg.rtd", ,"ContractData",C155, "PerCentNetLastTrade",, "T")/100,"") -> 0.007915567282 | E155: 193 | F155: 193 | G155: S.US.EIX | H155: 155 | I155: S.US.RTX
C156: S.US.EL | D156: =IFERROR(RTD("cqg.rtd", ,"ContractData",C156, "PerCentNetLastTrade",, "T")/100,"") -> 0.00618333591 | E156: 227 | F156: 227 | G156: S.US.EL | H156: 156 | I156: S.US.CBRE
C157: S.US.EMN | D157: =IFERROR(RTD("cqg.rtd", ,"ContractData",C157, "PerCentNetLastTrade",, "T")/100,"") -> 0.01599038728 | E157: 59 | F157: 59 | G157: S.US.EMN | H157: 157 | I157: S.US.MCD
C158: S.US.EMR | D158: =IFERROR(RTD("cqg.rtd", ,"ContractData",C158, "PerCentNetLastTrade",, "T")/100,"") -> 0.003912282508 | E158: 297 | F158: 297 | G158: S.US.EMR | H158: 158 | I158: S.US.MDT
C159: S.US.ENPH | D159: =IFERROR(RTD("cqg.rtd", ,"ContractData",C159, "PerCentNetLastTrade",, "T")/100,"") -> 0.009065024115 | E159: 174 | F159: 174 | G159: S.US.ENPH | H159: 159 | I159: S.US.MCHP
C160: S.US.EOG | D160: =IFERROR(RTD("cqg.rtd", ,"ContractData",C160, "PerCentNetLastTrade",, "T")/100,"") -> 0.01594405594 | E160: 60 | F160: 60 | G160: S.US.EOG | H160: 160 | I160: S.US.SYK
C161: S.US.EQIX | D161: =IFERROR(RTD("cqg.rtd", ,"ContractData",C161, "PerCentNetLastTrade",, "T")/100,"") -> -0.008118657299 | E161: 493 | F161: 493 | G161: S.US.EQIX | H161: 161 | I161: S.US.WMB
C162: S.US.EQR | D162: =IFERROR(RTD("cqg.rtd", ,"ContractData",C162, "PerCentNetLastTrade",, "T")/100,"") -> 0.001413760603 | E162: 352 | F162: 352 | G162: S.US.EQR | H162: 162 | I162: S.US.IR
C163: S.US.ES | D163: =IFERROR(RTD("cqg.rtd", ,"ContractData",C163, "PerCentNetLastTrade",, "T")/100,"") -> -0.003956248545 | E163: 473 | F163: 473 | G163: S.US.ES | H163: 163 | I163: S.US.BAC
C164: S.US.ESS | D164: =IFERROR(RTD("cqg.rtd", ,"ContractData",C164, "PerCentNetLastTrade",, "T")/100,"") -> 0.003084086717 | E164: 307 | F164: 307 | G164: S.US.ESS | H164: 164 | I164: S.US.KMX
C165: S.US.ETN | D165: =IFERROR(RTD("cqg.rtd", ,"ContractData",C165, "PerCentNetLastTrade",, "T")/100,"") -> 0.006359919528 | E165: 223 | F165: 223 | G165: S.US.ETN | H165: 165 | I165: S.US.TJX
C166: S.US.ETR | D166: =IFERROR(RTD("cqg.rtd", ,"ContractData",C166, "PerCentNetLastTrade",, "T")/100,"") -> 0.002735710796 | E166: 315 | F166: 315 | G166: S.US.ETR | H166: 166 | I166: S.US.NWSA
C167: S.US.ETSY | D167: =IFERROR(RTD("cqg.rtd", ,"ContractData",C167, "PerCentNetLastTrade",, "T")/100,"") -> -0.009750089803 | E167: 494 | F167: 494 | G167: S.US.ETSY | H167: 167 | I167: S.US.TER
C168: S.US.EVRG | D168: =IFERROR(RTD("cqg.rtd", ,"ContractData",C168, "PerCentNetLastTrade",, "T")/100,"") -> 0 | E168: 404 | F168: 404 | G168: S.US.EVRG | H168: 168 | I168: S.US.ROST
C169: S.US.EW | D169: =IFERROR(RTD("cqg.rtd", ,"ContractData",C169, "PerCentNetLastTrade",, "T")/100,"") -> 0.00394070182 | E169: 255 | F169: 255 | G169: S.US.EW | H169: 169 | I169: S.US.GM
C170: S.US.EXC | D170: =IFERROR(RTD("cqg.rtd", ,"ContractData",C170, "PerCentNetLastTrade",, "T")/100,"") -> -0.002605297438 | E170: 453 | F170: 453 | G170: S.US.EXC | H170: 170 | I170: S.US.SPG
C171: S.US.EXPD | D171: =IFERROR(RTD("cqg.rtd", ,"ContractData",C171, "PerCentNetLastTrade",, "T")/100,"") -> 0.001243974499 | E171: 357 | F171: 357 | G171: S.US.EXPD | H171: 171 | I171: S.US.FBHS
C172: S.US.EXPE | D172: =IFERROR(RTD("cqg.rtd", ,"ContractData",C172, "PerCentNetLastTrade",, "T")/100,"") -> 0.01614142967 | E172: 57 | F172: 57 | G172: S.US.EXPE | H172: 172 | I172: S.US.SNA
C173: S.US.EXR | D173: =IFERROR(RTD("cqg.rtd", ,"ContractData",C173, "PerCentNetLastTrade",, "T")/100,"") -> -0.01171989452 | E173: 497 | F173: 497 | G173: S.US.EXR | H173: 173 | I173: S.US.LB
C174: S.US.F | D174: =IFERROR(RTD("cqg.rtd", ,"ContractData",C174, "PerCentNetLastTrade",, "T")/100,"") -> 0.01509705248 | E174: 70 | F174: 70 | G174: S.US.F | H174: 174 | I174: S.US.ENPH
C175: S.US.FANG | D175: =IFERROR(RTD("cqg.rtd", ,"ContractData",C175, "PerCentNetLastTrade",, "T")/100,"") -> 0.02669514148 | E175: 12 | F175: 12 | G175: S.US.FANG | H175: 175 | I175: S.US.DXC
C176: S.US.FAST | D176: =IFERROR(RTD("cqg.rtd", ,"ContractData",C176, "PerCentNetLastTrade",, "T")/100,"") -> 0.004616805171 | E176: 259 | F176: 259 | G176: S.US.FAST | H176: 176 | I176: S.US.WLTW
C177: S.US.FB | D177: =IFERROR(RTD("cqg.rtd", ,"ContractData",C177, "PerCentNetLastTrade",, "T")/100,"") -> 0.002487853422 | E177: 340 | F177: 340 | G177: S.US.FB | H177: 177 | I177: S.US.WY
C178: S.US.FBHS | D178: =IFERROR(RTD("cqg.rtd", ,"ContractData",C178, "PerCentNetLastTrade",, "T")/100,"") -> 0.009278565471 | E178: 171 | F178: 171 | G178: S.US.FBHS | H178: 178 | I178: S.US.RE
C179: S.US.FCX | D179: =IFERROR(RTD("cqg.rtd", ,"ContractData",C179, "PerCentNetLastTrade",, "T")/100,"") -> 0.02185128983 | E179: 25 | F179: 25 | G179: S.US.FCX | H179: 179 | I179: S.US.CVS
C180: S.US.FDX | D180: =IFERROR(RTD("cqg.rtd", ,"ContractData",C180, "PerCentNetLastTrade",, "T")/100,"") -> 0.0008724246695 | E180: 361 | F180: 361 | G180: S.US.FDX | H180: 180 | I180: S.US.APH
C181: S.US.FE | D181: =IFERROR(RTD("cqg.rtd", ,"ContractData",C181, "PerCentNetLastTrade",, "T")/100,"") -> 0.001860712387 | E181: 341 | F181: 341 | G181: S.US.FE | H181: 181 | I181: S.US.NWS
C182: S.US.FFIV | D182: =IFERROR(RTD("cqg.rtd", ,"ContractData",C182, "PerCentNetLastTrade",, "T")/100,"") -> -5.356760231e-05 | E182: 409 | F182: 409 | G182: S.US.FFIV | H182: 182 | I182: S.US.CMI
C183: S.US.FIS | D183: =IFERROR(RTD("cqg.rtd", ,"ContractData",C183, "PerCentNetLastTrade",, "T")/100,"") -> 0.0001380929365 | E183: 399 | F183: 399 | G183: S.US.FIS | H183: 183 | I183: S.US.PKG
C184: S.US.FISV | D184: =IFERROR(RTD("cqg.rtd", ,"ContractData",C184, "PerCentNetLastTrade",, "T")/100,"") -> 0.0004593899302 | E184: 386 | F184: 386 | G184: S.US.FISV | H184: 184 | I184: S.US.MLM
C185: S.US.FITB | D185: =IFERROR(RTD("cqg.rtd", ,"ContractData",C185, "PerCentNetLastTrade",, "T")/100,"") -> 0.01724137931 | E185: 48 | F185: 48 | G185: S.US.FITB | H185: 185 | I185: S.US.USB
C186: S.US.FLT | D186: =IFERROR(RTD("cqg.rtd", ,"ContractData",C186, "PerCentNetLastTrade",, "T")/100,"") -> 0.005227662716 | E186: 247 | F186: 247 | G186: S.US.FLT | H186: 186 | I186: S.US.TEL
C187: S.US.FMC | D187: =IFERROR(RTD("cqg.rtd", ,"ContractData",C187, "PerCentNetLastTrade",, "T")/100,"") -> 0.01122508225 | E187: 131 | F187: 131 | G187: S.US.FMC | H187: 187 | I187: S.US.TRV
C188: S.US.FOX | D188: =IFERROR(RTD("cqg.rtd", ,"ContractData",C188, "PerCentNetLastTrade",, "T")/100,"") -> 0.01338606632 | E188: 146 | F188: 146 | G188: S.US.FOX | H188: 188 | I188: S.US.NSC
C189: S.US.FOXA | D189: =IFERROR(RTD("cqg.rtd", ,"ContractData",C189, "PerCentNetLastTrade",, "T")/100,"") -> 0.01458392908 | E189: 77 | F189: 77 | G189: S.US.FOXA | H189: 189 | I189: S.US.LKQ
C190: S.US.FRC | D190: =IFERROR(RTD("cqg.rtd", ,"ContractData",C190, "PerCentNetLastTrade",, "T")/100,"") -> 0.01085439603 | E190: 139 | F190: 139 | G190: S.US.FRC | H190: 190 | I190: S.US.IEX
C191: S.US.FRT | D191: =IFERROR(RTD("cqg.rtd", ,"ContractData",C191, "PerCentNetLastTrade",, "T")/100,"") -> 0.007274905854 | E191: 207 | F191: 207 | G191: S.US.FRT | H191: 191 | I191: S.US.AXP
C192: S.US.FTNT | D192: =IFERROR(RTD("cqg.rtd", ,"ContractData",C192, "PerCentNetLastTrade",, "T")/100,"") -> 0.000530624621 | E192: 383 | F192: 383 | G192: S.US.FTNT | H192: 192 | I192: S.US.YUM
C193: S.US.FTV | D193: =IFERROR(RTD("cqg.rtd", ,"ContractData",C193, "PerCentNetLastTrade",, "T")/100,"") -> 0.005014326648 | E193: 253 | F193: 253 | G193: S.US.FTV | H193: 193 | I193: S.US.EIX
C194: S.US.GD | D194: =IFERROR(RTD("cqg.rtd", ,"ContractData",C194, "PerCentNetLastTrade",, "T")/100,"") -> 0.006999631598 | E194: 211 | F194: =IFERROR(E194,"") -> 211 | G194: =C194 -> S.US.GD | H194: 194 | I194: =IFERROR(VLOOKUP(H194,$F$1:$G$505,2,FALSE),"") -> S.US.T
C195: S.US.GE | D195: =IFERROR(RTD("cqg.rtd", ,"ContractData",C195, "PerCentNetLastTrade",, "T")/100,"") -> 0.01653543307 | E195: 62 | F195: 62 | G195: S.US.GE | H195: =H194+1 -> 195 | I195: S.US.BBY
C196: S.US.GILD | D196: =IFERROR(RTD("cqg.rtd", ,"ContractData",C196, "PerCentNetLastTrade",, "T")/100,"") -> -0.004048582996 | E196: 474 | F196: 474 | G196: S.US.GILD | H196: 196 | I196: S.US.AOS
C197: S.US.GIS | D197: =IFERROR(RTD("cqg.rtd", ,"ContractData",C197, "PerCentNetLastTrade",, "T")/100,"") -> -0.001168224299 | E197: 421 | F197: 421 | G197: S.US.GIS | H197: 197 | I197: S.US.J
C198: S.US.GL | D198: =IFERROR(RTD("cqg.rtd", ,"ContractData",C198, "PerCentNetLastTrade",, "T")/100,"") -> 0.0104189044 | E198: 144 | F198: 144 | G198: S.US.GL | H198: 198 | I198: S.US.ORCL
C199: S.US.GLW | D199: =IFERROR(RTD("cqg.rtd", ,"ContractData",C199, "PerCentNetLastTrade",, "T")/100,"") -> 0.004986287709 | E199: 261 | F199: 261 | G199: S.US.GLW | H199: 199 | I199: S.US.ABC
C200: S.US.GM | D200: =IFERROR(RTD("cqg.rtd", ,"ContractData",C200, "PerCentNetLastTrade",, "T")/100,"") -> 0.009439002671 | E200: 169 | F200: 169 | G200: S.US.GM | H200: 200 | I200: S.US.STZ
... 330 more rows
